BODY,BODY NAME,SUPPLIER CODE,SUPPLIER NAME,TRANSACTION NUMBER,INVOICE DATE,THEIR REF,NARR1,PAID DATE,VAT AMOUNT,EXCLUSIVE AMOUNT,INCLUSIVE AMOUNT,EXPENSE AREA,EXPENSE TYPE,EXPENSE CODE
http://statistics.data.gov.uk/id/local-authority/12UE,Huntingdonshire District Council,201266,Woodwalton Parish Council,80396,17/05/2023,APJ000273,Woodwalton Parish,27/10/2023,0,343.38,343.38,Income Account,Income Suspense Account,10084
http://statistics.data.gov.uk/id/local-authority/12UE,Huntingdonshire District Council,201199,Bluntisham Parish Council,87588,13/10/2023,CIL FUNDING 23-24 - 1,CIL Funding 2023-2024,13/10/2023,0,4352.68,4352.68,Cil Capital Grant Element,Cil Payment To Parishes,66402
http://statistics.data.gov.uk/id/local-authority/12UE,Huntingdonshire District Council,201200,Brampton Parish Council,87588,13/10/2023,CIL FUNDING 23-24 - 2,CIL Funding 2023-2024,13/10/2023,0,3557.76,3557.76,Cil Capital Grant Element,Cil Payment To Parishes,66402
http://statistics.data.gov.uk/id/local-authority/12UE,Huntingdonshire District Council,201208,Bythorn & Keyston Parish Council,87588,13/10/2023,CIL FUNDING 23-24 - 3,CIL Funding 2023-2024,13/10/2023,0,975.83,975.83,Cil Capital Grant Element,Cil Payment To Parishes,66402
http://statistics.data.gov.uk/id/local-authority/12UE,Huntingdonshire District Council,201209,Catworth Parish Council,87588,13/10/2023,CIL FUNDING 23-24 - 4,CIL Funding 2023-2024,13/10/2023,0,679.37,679.37,Cil Capital Grant Element,Cil Payment To Parishes,66402
http://statistics.data.gov.uk/id/local-authority/12UE,Huntingdonshire District Council,201211,Colne Parish Council,87588,13/10/2023,CIL FUNDING 23-24 - 5,CIL Funding 2023-2024,13/10/2023,0,4978.76,4978.76,Cil Capital Grant Element,Cil Payment To Parishes,66402
http://statistics.data.gov.uk/id/local-authority/12UE,Huntingdonshire District Council,201242,Little Paxton Parish Council,87588,13/10/2023,CIL FUNDING 23-24 - 10,CIL Funding 2023-2024,13/10/2023,0,63003.69,63003.69,Cil Capital Grant Element,Cil Payment To Parishes,66402
http://statistics.data.gov.uk/id/local-authority/12UE,Huntingdonshire District Council,201247,Pidley-Cum-Fenton Parish Council,87588,13/10/2023,CIL FUNDING 23-24 - 11,CIL Funding 2023-2024,13/10/2023,0,1532.66,1532.66,Cil Capital Grant Element,Cil Payment To Parishes,66402
http://statistics.data.gov.uk/id/local-authority/12UE,Huntingdonshire District Council,201248,Ramsey Town Council,87588,13/10/2023,CIL FUNDING 23-24 - 12,CIL Funding 2023-2024,13/10/2023,0,79412.35,79412.35,Cil Capital Grant Element,Cil Payment To Parishes,66402
http://statistics.data.gov.uk/id/local-authority/12UE,Huntingdonshire District Council,200923,ST IVES TOWN COUNCIL,87588,13/10/2023,CIL FUNDING 23-24 - 16,CIL Funding 2023-2024,13/10/2023,0,2206.11,2206.11,Cil Capital Grant Element,Cil Payment To Parishes,66402
http://statistics.data.gov.uk/id/local-authority/12UE,Huntingdonshire District Council,201249,Sawtry Parish Council,87588,13/10/2023,CIL FUNDING 23-24 - 13,CIL Funding 2023-2024,13/10/2023,0,107240.22,107240.22,Cil Capital Grant Element,Cil Payment To Parishes,66402
http://statistics.data.gov.uk/id/local-authority/12UE,Huntingdonshire District Council,201251,Somersham Parish Council,87588,13/10/2023,CIL FUNDING 23-24 - 15,CIL Funding 2023-2024,13/10/2023,0,28867.06,28867.06,Cil Capital Grant Element,Cil Payment To Parishes,66402
http://statistics.data.gov.uk/id/local-authority/12UE,Huntingdonshire District Council,201255,Stilton Parish Council,87588,13/10/2023,CIL FUNDING 23-24 - 18,CIL Funding 2023-2024,13/10/2023,0,673.86,673.86,Cil Capital Grant Element,Cil Payment To Parishes,66402
http://statistics.data.gov.uk/id/local-authority/12UE,Huntingdonshire District Council,201257,Stukeley Parish Council,87588,13/10/2023,CIL FUNDING 23-24 - 19,CIL Funding 2023-2024,13/10/2023,0,234268.39,234268.39,Cil Capital Grant Element,Cil Payment To Parishes,66402
http://statistics.data.gov.uk/id/local-authority/12UE,Huntingdonshire District Council,201047,WARBOYS PARISH COUNCIL,87588,13/10/2023,CIL FUNDING 23-24 - 20,CIL Funding 2023-2024,13/10/2023,0,2121.52,2121.52,Cil Capital Grant Element,Cil Payment To Parishes,66402
http://statistics.data.gov.uk/id/local-authority/12UE,Huntingdonshire District Council,201268,Yaxley Parish Council,87588,13/10/2023,CIL FUNDING 23-24 - 21,CIL Funding 2023-2024,13/10/2023,0,1004.15,1004.15,Cil Capital Grant Element,Cil Payment To Parishes,66402
http://statistics.data.gov.uk/id/local-authority/12UE,Huntingdonshire District Council,201220,Ellington Parish Council,87588,13/10/2023,CIL FUNDING 23-24 - 6,CIL Funding 2023-2024,13/10/2023,0,16279.82,16279.82,Cil Capital Grant Element,Cil Payment To Parishes,66402
http://statistics.data.gov.uk/id/local-authority/12UE,Huntingdonshire District Council,201224,Godmanchester Town Council,87588,13/10/2023,CIL FUNDING 23-24 - 7,CIL Funding 2023-2024,13/10/2023,0,74016.83,74016.83,Cil Capital Grant Element,Cil Payment To Parishes,66402
http://statistics.data.gov.uk/id/local-authority/12UE,Huntingdonshire District Council,201238,Houghton & Wyton Parish Council,87588,13/10/2023,CIL FUNDING 23-24 - 8,CIL Funding 2023-2024,13/10/2023,0,66162.26,66162.26,Cil Capital Grant Element,Cil Payment To Parishes,66402
http://statistics.data.gov.uk/id/local-authority/12UE,Huntingdonshire District Council,201131,HUNTINGDON TOWN COUNCIL,87588,13/10/2023,CIL FUNDING 23-24 - 9,CIL Funding 2023-2024,13/10/2023,0,64263.18,64263.18,Cil Capital Grant Element,Cil Payment To Parishes,66402
http://statistics.data.gov.uk/id/local-authority/12UE,Huntingdonshire District Council,201254,St Neots Town Council,87588,13/10/2023,CIL FUNDING 23-24 - 17,CIL Funding 2023-2024,13/10/2023,0,559660.3,559660.3,Cil Capital Grant Element,Cil Payment To Parishes,66402
http://statistics.data.gov.uk/id/local-authority/12UE,Huntingdonshire District Council,200669,REESINK  UK LTD REESINK  UK LTD,89850,20/10/2023,PSI2334152,Winter Overhaul Parts,04/12/2023,65.33,326.64,391.97,Grounds Maintenance,Vehicle Repairs And Maintenance,60904
http://statistics.data.gov.uk/id/local-authority/12UE,Huntingdonshire District Council,200669,REESINK  UK LTD REESINK  UK LTD,89850,20/10/2023,PSI2334152,Winter Overhaul Parts,04/12/2023,65.33,326.64,391.97,Grounds Maintenance,Vehicle Repairs And Maintenance,60904
http://statistics.data.gov.uk/id/local-authority/12UE,Huntingdonshire District Council,200669,REESINK  UK LTD REESINK  UK LTD,88671,30/10/2023,PSI2334805,AE16BVY/BVZ/BWO Winter Parts,24/11/2023,176.55,882.74,1059.29,Grounds Maintenance,Vehicle Repairs And Maintenance,60904
http://statistics.data.gov.uk/id/local-authority/12UE,Huntingdonshire District Council,200669,REESINK  UK LTD REESINK  UK LTD,88671,30/10/2023,PSI2334805,AE16BVY/BVZ/BWO Winter Parts,24/11/2023,176.55,882.74,1059.29,Grounds Maintenance,Vehicle Repairs And Maintenance,60904
http://statistics.data.gov.uk/id/local-authority/12UE,Huntingdonshire District Council,200669,REESINK  UK LTD REESINK  UK LTD,88671,30/10/2023,PSI2334805,AE16BVY/BVZ/BWO Winter Parts,24/11/2023,176.55,882.75,1059.3,Grounds Maintenance,Vehicle Repairs And Maintenance,60904
http://statistics.data.gov.uk/id/local-authority/12UE,Huntingdonshire District Council,200028,AEBI SCHMIDT AEBI SCHMIDT,90412,30/11/2023,60295102,AJ66AVV Brushes x10,21/12/2023,87.7,438.52,526.22,Street Cleansing,Vehicle Repairs And Maintenance,60904
http://statistics.data.gov.uk/id/local-authority/12UE,Huntingdonshire District Council,200028,AEBI SCHMIDT AEBI SCHMIDT,87131,29/09/2023,60293147,AJ66AVV Supply&Fit Air Flow/Sensor&Filt,19/10/2023,210.07,1050.35,1260.42,Street Cleansing,Vehicle Repairs And Maintenance,60904
http://statistics.data.gov.uk/id/local-authority/12UE,Huntingdonshire District Council,200028,AEBI SCHMIDT AEBI SCHMIDT,86461,12/09/2023,60292736,AJ66AVV Diagnose EML Fault,05/10/2023,67.7,338.5,406.2,Street Cleansing,Vehicle Maintenance - External,60921
http://statistics.data.gov.uk/id/local-authority/12UE,Huntingdonshire District Council,200028,AEBI SCHMIDT AEBI SCHMIDT,89849,30/10/2023,60294140,AJ66AVV Engine Repairs,04/12/2023,88.6,443,531.6,Street Cleansing,Vehicle Maintenance - External,60921
http://statistics.data.gov.uk/id/local-authority/12UE,Huntingdonshire District Council,200351,GUEST MOTORS LTD GUEST MOTORS LTD,87446,05/10/2023,18531444,BG17OMA Diagnostic Check,27/10/2023,81,405,486,Bulky Refuse,Vehicle Repairs And Maintenance,60904
http://statistics.data.gov.uk/id/local-authority/12UE,Huntingdonshire District Council,200515,M & N VEHICLE SERVICES M & N VEHICLE SERVICES,89323,08/11/2023,56362,BG17OMA Engine Repairs,01/12/2023,643.61,3218.07,3861.68,Bulky Refuse,Vehicle Repairs And Maintenance,60904
http://statistics.data.gov.uk/id/local-authority/12UE,Huntingdonshire District Council,200515,M & N VEHICLE SERVICES M & N VEHICLE SERVICES,87802,10/10/2023,55854,CE14BTF MOT Service/Test Fees,02/11/2023,537.39,2686.96,3224.35,Green Waste Collection,Vehicle Repairs And Maintenance,60904
http://statistics.data.gov.uk/id/local-authority/12UE,Huntingdonshire District Council,200279,ERNEST DOE & SONS ERNEST DOE & SONS,86775,22/09/2023,778041,Motor Deck,13/10/2023,115.86,579.31,695.17,Grounds Maintenance,Vehicle Repairs And Maintenance,60904
http://statistics.data.gov.uk/id/local-authority/12UE,Huntingdonshire District Council,200279,ERNEST DOE & SONS ERNEST DOE & SONS,89851,24/10/2023,779150,Winter Overhaul Parts,04/12/2023,55.11,275.53,330.64,Grounds Maintenance,Vehicle Repairs And Maintenance,60904
http://statistics.data.gov.uk/id/local-authority/12UE,Huntingdonshire District Council,200279,ERNEST DOE & SONS ERNEST DOE & SONS,89851,24/10/2023,779150,Winter Overhaul Parts,04/12/2023,55.11,275.53,330.64,Grounds Maintenance,Vehicle Repairs And Maintenance,60904
http://statistics.data.gov.uk/id/local-authority/12UE,Huntingdonshire District Council,200279,ERNEST DOE & SONS ERNEST DOE & SONS,89851,24/10/2023,779150,Winter Overhaul Parts,04/12/2023,55.11,275.52,330.63,Grounds Maintenance,Vehicle Repairs And Maintenance,60904
http://statistics.data.gov.uk/id/local-authority/12UE,Huntingdonshire District Council,200279,ERNEST DOE & SONS ERNEST DOE & SONS,89851,24/10/2023,779150,Winter Overhaul Parts,04/12/2023,55.11,275.53,330.64,Grounds Maintenance,Vehicle Repairs And Maintenance,60904
http://statistics.data.gov.uk/id/local-authority/12UE,Huntingdonshire District Council,203382,Sawtry Glaziers Ltd,88007,12/09/2023,173,Accidental Vehicle Damage,27/10/2023,0,398.1,398.1,Grounds Maintenance,Insurance Excess,63009
http://statistics.data.gov.uk/id/local-authority/12UE,Huntingdonshire District Council,200279,ERNEST DOE & SONS ERNEST DOE & SONS,89851,24/10/2023,779150,Winter Overhaul Parts,04/12/2023,55.11,275.52,330.63,Grounds Maintenance,Vehicle Repairs And Maintenance,60904
http://statistics.data.gov.uk/id/local-authority/12UE,Huntingdonshire District Council,200398,IAN'S TYRE & EXHAUST CENTRE IAN'S TYRE & EXHAUST CENTRE,87212,02/10/2023,INV-6517,EU21CFK 20.00-10.00-8 Tyres,27/10/2023,54,270,324,Grounds Maintenance,Tyres,62926
http://statistics.data.gov.uk/id/local-authority/12UE,Huntingdonshire District Council,202559,BUCHER MUNICIPAL LTD,87320,05/09/2023,62244517,LD23XXH Brushes,13/10/2023,68.42,342.12,410.54,Street Cleansing,Vehicle Repairs And Maintenance,60904
http://statistics.data.gov.uk/id/local-authority/12UE,Huntingdonshire District Council,202559,BUCHER MUNICIPAL LTD,89313,10/11/2023,62263846,Brushes,01/12/2023,171.06,855.3,1026.36,Street Cleansing,Vehicle Repairs And Maintenance,60904
http://statistics.data.gov.uk/id/local-authority/12UE,Huntingdonshire District Council,202559,BUCHER MUNICIPAL LTD,89313,10/11/2023,62263846,Brushes,01/12/2023,171.06,855.3,1026.36,Street Cleansing,Vehicle Repairs And Maintenance,60904
http://statistics.data.gov.uk/id/local-authority/12UE,Huntingdonshire District Council,202450,MANCHETTS PB LTD,86590,15/09/2023,23.21.011497,LK17WZF Check & Replace EGR Cooler,05/10/2023,75,375,450,Narrow Access,Vehicle Maintenance - External,60921
http://statistics.data.gov.uk/id/local-authority/12UE,Huntingdonshire District Council,200079,BANDVULC TRUCK TYRES BANDVULC TRUCK TYRES,86819,28/09/2023,191276,Tyres P:9 W:0,19/10/2023,182.28,911.42,1093.7,Narrow Access,Tyres,62926
http://statistics.data.gov.uk/id/local-authority/12UE,Huntingdonshire District Council,200308,FRANK RATCLIFFE & SON FRANK RATCLIFFE & SON,86583,19/09/2023,109565,LK17WZG Recover From Connington,13/10/2023,72.65,363.25,435.9,Domestic Waste Collection,Vehicle Maintenance - External,60921
http://statistics.data.gov.uk/id/local-authority/12UE,Huntingdonshire District Council,200000,A C COMMERCIALS A C COMMERCIALS,86932,29/09/2023,INV0024523,LN65UVB Load Net,19/10/2023,78.3,391.5,469.8,Street Cleansing,Vehicle Repairs And Maintenance,60904
http://statistics.data.gov.uk/id/local-authority/12UE,Huntingdonshire District Council,200515,M & N VEHICLE SERVICES M & N VEHICLE SERVICES,87926,12/10/2023,55888,LN65UVB Supply & Fit Crankcase Sensor,02/11/2023,122.87,614.34,737.21,Street Cleansing,Vehicle Repairs And Maintenance,60904
http://statistics.data.gov.uk/id/local-authority/12UE,Huntingdonshire District Council,200515,M & N VEHICLE SERVICES M & N VEHICLE SERVICES,86929,27/09/2023,55649,LN65UVB MOT/Service/Brake Work,19/10/2023,906.24,4531.19,5437.43,Street Cleansing,Vehicle Repairs And Maintenance,60904
http://statistics.data.gov.uk/id/local-authority/12UE,Huntingdonshire District Council,200079,BANDVULC TRUCK TYRES BANDVULC TRUCK TYRES,88383,30/10/2023,192670,Tyres P:10 W:0,24/11/2023,168.06,840.28,1008.34,Street Cleansing,Tyres,62926
http://statistics.data.gov.uk/id/local-authority/12UE,Huntingdonshire District Council,200308,FRANK RATCLIFFE & SON FRANK RATCLIFFE & SON,89052,03/11/2023,110036,LO67YKS Recovery St Ives - EFH,24/11/2023,56.9,284.5,341.4,Street Cleansing,Vehicle Repairs And Maintenance,60904
http://statistics.data.gov.uk/id/local-authority/12UE,Huntingdonshire District Council,200279,ERNEST DOE & SONS ERNEST DOE & SONS,89848,24/10/2023,779149,PM3092/3094 Winter Overhaul Parts,04/12/2023,61.62,308.12,369.74,Grounds Maintenance,Vehicle Repairs And Maintenance,60904
http://statistics.data.gov.uk/id/local-authority/12UE,Huntingdonshire District Council,200382,HQ FORKLIFTS LTD HQ FORKLIFTS LTD,87360,25/09/2023,INV-75756,Service/Loler Flift 4,19/10/2023,52.89,264.47,317.36,Vehicle Maintenance,Vehicle Maintenance - External,60921
http://statistics.data.gov.uk/id/local-authority/12UE,Huntingdonshire District Council,200236,DENNIS EAGLE LTD DENNIS EAGLE LTD,89391,13/11/2023,DE11630124,VA21ZGN Seat Belt Guide/Cover,07/12/2023,65.6,328,393.6,Recycling Collections,Vehicle Repairs And Maintenance,60904
http://statistics.data.gov.uk/id/local-authority/12UE,Huntingdonshire District Council,200774,TERBERG MATEC UK LTD TERBERG MATEC UK LTD,89400,14/11/2023,96449027,VA21ZGN Protective Plate/Sensors,07/12/2023,79.13,395.64,474.77,Recycling Collections,Vehicle Repairs And Maintenance,60904
http://statistics.data.gov.uk/id/local-authority/12UE,Huntingdonshire District Council,200079,BANDVULC TRUCK TYRES BANDVULC TRUCK TYRES,88383,30/10/2023,192670,Tyres P:10 W:0,24/11/2023,364.17,1820.85,2185.02,Domestic Waste Collection,Tyres,62926
http://statistics.data.gov.uk/id/local-authority/12UE,Huntingdonshire District Council,202487,GARNER COMMERCIALS LTD,88132,20/10/2023,13082,VA21ZGR Steam Clean,09/11/2023,57.8,289,346.8,Domestic Waste Collection,Vehicle Repairs And Maintenance,60904
http://statistics.data.gov.uk/id/local-authority/12UE,Huntingdonshire District Council,200774,TERBERG MATEC UK LTD TERBERG MATEC UK LTD,89858,30/10/2023,96448177,VA21ZGR Curtains/Sensor/Cable,04/12/2023,100.82,504.08,604.9,Domestic Waste Collection,Vehicle Repairs And Maintenance,60904
http://statistics.data.gov.uk/id/local-authority/12UE,Huntingdonshire District Council,200236,DENNIS EAGLE LTD DENNIS EAGLE LTD,88360,23/10/2023,DE11624651,VA21ZR Filters/Seat Cushion/Door Card,17/11/2023,210.78,1053.92,1264.7,Domestic Waste Collection,Vehicle Repairs And Maintenance,60904
http://statistics.data.gov.uk/id/local-authority/12UE,Huntingdonshire District Council,200815,VEHICLE WEIGHTING SOLUTIONS LTD VEHICLE WEIGHTING SOLUTIONS LTD,89615,21/11/2023,INV52087,VA21ZGR Replace Loadcell,18/12/2023,72,360,432,Domestic Waste Collection,Vehicle Maintenance - External,60921
http://statistics.data.gov.uk/id/local-authority/12UE,Huntingdonshire District Council,200079,BANDVULC TRUCK TYRES BANDVULC TRUCK TYRES,88383,30/10/2023,192670,Tyres P:10 W:0,24/11/2023,52.52,262.57,315.09,Domestic Waste Collection,Tyres,62926
http://statistics.data.gov.uk/id/local-authority/12UE,Huntingdonshire District Council,200079,BANDVULC TRUCK TYRES BANDVULC TRUCK TYRES,89920,29/11/2023,193970,Tyres P:11 W:0,21/12/2023,78.81,394.03,472.84,Domestic Waste Collection,Tyres,62926
http://statistics.data.gov.uk/id/local-authority/12UE,Huntingdonshire District Council,200236,DENNIS EAGLE LTD DENNIS EAGLE LTD,86417,12/09/2023,DE11614395,VE18JNX Door Casting/Bush/Blade/Cap,05/10/2023,67.11,335.55,402.66,Recycling Collections,Vehicle Repairs And Maintenance,60904
http://statistics.data.gov.uk/id/local-authority/12UE,Huntingdonshire District Council,200236,DENNIS EAGLE LTD DENNIS EAGLE LTD,89613,21/11/2023,DE11632442,VE18JNX Selector Unit/Latch/Strap,18/12/2023,303.62,1518.12,1821.74,Recycling Collections,Vehicle Repairs And Maintenance,60904
http://statistics.data.gov.uk/id/local-authority/12UE,Huntingdonshire District Council,200236,DENNIS EAGLE LTD DENNIS EAGLE LTD,90795,14/11/2023,DE30056552,Credit DE11440378,21/12/2023,0,-288.69,-288.69,Recycling Collections,Vehicle Repairs And Maintenance,60904
http://statistics.data.gov.uk/id/local-authority/12UE,Huntingdonshire District Council,200079,BANDVULC TRUCK TYRES BANDVULC TRUCK TYRES,89920,29/11/2023,193970,Tyres P:11 W:0,21/12/2023,63.94,319.7,383.64,Recycling Collections,Tyres,62926
http://statistics.data.gov.uk/id/local-authority/12UE,Huntingdonshire District Council,200079,BANDVULC TRUCK TYRES BANDVULC TRUCK TYRES,88383,30/10/2023,192670,Tyres P:10 W:0,24/11/2023,135.06,675.29,810.35,Domestic Waste Collection,Tyres,62926
http://statistics.data.gov.uk/id/local-authority/12UE,Huntingdonshire District Council,200774,TERBERG MATEC UK LTD TERBERG MATEC UK LTD,89406,13/11/2023,96448951,VE18JWF Hopper Plate Switch,07/12/2023,71.54,357.68,429.22,Green Waste Collection,Vehicle Repairs And Maintenance,60904
http://statistics.data.gov.uk/id/local-authority/12UE,Huntingdonshire District Council,200774,TERBERG MATEC UK LTD TERBERG MATEC UK LTD,87445,05/10/2023,96447144,VE18JEF Bracket/Splitter Box/Cables,27/10/2023,83.5,417.48,500.98,Green Waste Collection,Vehicle Repairs And Maintenance,60904
http://statistics.data.gov.uk/id/local-authority/12UE,Huntingdonshire District Council,200815,VEHICLE WEIGHTING SOLUTIONS LTD VEHICLE WEIGHTING SOLUTIONS LTD,86864,28/09/2023,INV50720,VE18JWF Supply & Fit Loadcell,19/10/2023,127.06,635.31,762.37,Green Waste Collection,Vehicle Repairs And Maintenance,60904
http://statistics.data.gov.uk/id/local-authority/12UE,Huntingdonshire District Council,200236,DENNIS EAGLE LTD DENNIS EAGLE LTD,90795,14/11/2023,DE30056552,Credit DE11440378,21/12/2023,0,-288.69,-288.69,Green Waste Collection,Vehicle Repairs And Maintenance,60904
http://statistics.data.gov.uk/id/local-authority/12UE,Huntingdonshire District Council,200236,DENNIS EAGLE LTD DENNIS EAGLE LTD,89058,30/10/2023,DE11626407,VE18JXA Filters/Bracket,24/11/2023,63.01,315.05,378.06,Domestic Waste Collection,Vehicle Repairs And Maintenance,60904
http://statistics.data.gov.uk/id/local-authority/12UE,Huntingdonshire District Council,200236,DENNIS EAGLE LTD DENNIS EAGLE LTD,88893,31/10/2023,DE11626745,VE18JXA Slide Block,24/11/2023,76.66,383.32,459.98,Domestic Waste Collection,Vehicle Repairs And Maintenance,60904
http://statistics.data.gov.uk/id/local-authority/12UE,Huntingdonshire District Council,200774,TERBERG MATEC UK LTD TERBERG MATEC UK LTD,87946,12/10/2023,96447443,VE18JXA Cylinders/Sensors,02/11/2023,208.26,1041.29,1249.55,Domestic Waste Collection,Vehicle Repairs And Maintenance,60904
http://statistics.data.gov.uk/id/local-authority/12UE,Huntingdonshire District Council,200815,VEHICLE WEIGHTING SOLUTIONS LTD VEHICLE WEIGHTING SOLUTIONS LTD,87917,16/10/2023,INV51148,VK20NTN Supply & Fit Loadcell,09/11/2023,114.06,570.31,684.37,Domestic Waste Collection,Vehicle Repairs And Maintenance,60904
http://statistics.data.gov.uk/id/local-authority/12UE,Huntingdonshire District Council,200236,DENNIS EAGLE LTD DENNIS EAGLE LTD,89393,13/11/2023,DE11630123,VK20NTN Front Discs,07/12/2023,131.75,658.74,790.49,Domestic Waste Collection,Vehicle Repairs And Maintenance,60904
http://statistics.data.gov.uk/id/local-authority/12UE,Huntingdonshire District Council,200236,DENNIS EAGLE LTD DENNIS EAGLE LTD,86416,12/09/2023,DE11614394,VK20NTN MOT Parts,05/10/2023,213.71,1068.57,1282.28,Domestic Waste Collection,Vehicle Repairs And Maintenance,60904
http://statistics.data.gov.uk/id/local-authority/12UE,Huntingdonshire District Council,200774,TERBERG MATEC UK LTD TERBERG MATEC UK LTD,86411,13/09/2023,96446150,Bin Lift Parts,05/10/2023,215.46,1077.3,1292.76,Domestic Waste Collection,Vehicle Repairs And Maintenance,60904
http://statistics.data.gov.uk/id/local-authority/12UE,Huntingdonshire District Council,200079,BANDVULC TRUCK TYRES BANDVULC TRUCK TYRES,88383,30/10/2023,192670,Tyres P:10 W:0,24/11/2023,219.34,1096.67,1316.01,Domestic Waste Collection,Tyres,62926
http://statistics.data.gov.uk/id/local-authority/12UE,Huntingdonshire District Council,200236,DENNIS EAGLE LTD DENNIS EAGLE LTD,90701,01/12/2023,DE11635115,VK20NTO Wiper Motor,21/12/2023,63.18,315.91,379.09,Weekly Bags,Vehicle Repairs And Maintenance,60904
http://statistics.data.gov.uk/id/local-authority/12UE,Huntingdonshire District Council,200236,DENNIS EAGLE LTD DENNIS EAGLE LTD,90699,01/12/2023,DE11635114,VK20NTO Front Discs,21/12/2023,139.65,698.24,837.89,Weekly Bags,Vehicle Repairs And Maintenance,60904
http://statistics.data.gov.uk/id/local-authority/12UE,Huntingdonshire District Council,200515,M & N VEHICLE SERVICES M & N VEHICLE SERVICES,90409,30/11/2023,56769,Replace Mid Axel Disc/Pads/Abs Sensors,21/12/2023,184.9,924.5,1109.4,Weekly Bags,Vehicle Repairs And Maintenance,60904
http://statistics.data.gov.uk/id/local-authority/12UE,Huntingdonshire District Council,200815,VEHICLE WEIGHTING SOLUTIONS LTD VEHICLE WEIGHTING SOLUTIONS LTD,86585,18/09/2023,INV50374,VK20NTO Fit O/S F Loadcell,13/10/2023,72,360,432,Weekly Bags,Vehicle Maintenance - External,60921
http://statistics.data.gov.uk/id/local-authority/12UE,Huntingdonshire District Council,200079,BANDVULC TRUCK TYRES BANDVULC TRUCK TYRES,88383,30/10/2023,192670,Tyres P:10 W:0,24/11/2023,135.06,675.29,810.35,Weekly Bags,Tyres,62926
http://statistics.data.gov.uk/id/local-authority/12UE,Huntingdonshire District Council,200236,DENNIS EAGLE LTD DENNIS EAGLE LTD,86768,21/09/2023,DE11616788,VK20NTT Gear Selector,13/10/2023,221.04,1105.18,1326.22,Domestic Waste Collection,Vehicle Repairs And Maintenance,60904
http://statistics.data.gov.uk/id/local-authority/12UE,Huntingdonshire District Council,200079,BANDVULC TRUCK TYRES BANDVULC TRUCK TYRES,89920,29/11/2023,193970,Tyres P:11 W:0,21/12/2023,72.68,363.37,436.05,Domestic Waste Collection,Tyres,62926
http://statistics.data.gov.uk/id/local-authority/12UE,Huntingdonshire District Council,200236,DENNIS EAGLE LTD DENNIS EAGLE LTD,86578,18/09/2023,DE11615723,VK20XWJ Exp Tank/Head Bolt/Nut,13/10/2023,68.81,344.04,412.85,Recycling Collections,Vehicle Repairs And Maintenance,60904
http://statistics.data.gov.uk/id/local-authority/12UE,Huntingdonshire District Council,200515,M & N VEHICLE SERVICES M & N VEHICLE SERVICES,87947,12/10/2023,55881,VK20XWJ Replace Middle Axle/Discs/Sensor,02/11/2023,168.3,841.5,1009.8,Recycling Collections,Vehicle Repairs And Maintenance,60904
http://statistics.data.gov.uk/id/local-authority/12UE,Huntingdonshire District Council,200236,DENNIS EAGLE LTD DENNIS EAGLE LTD,86933,25/09/2023,DE11617425,VK20XWJ Brake Pads,19/10/2023,245.68,1228.37,1474.05,Recycling Collections,Vehicle Repairs And Maintenance,60904
http://statistics.data.gov.uk/id/local-authority/12UE,Huntingdonshire District Council,200236,DENNIS EAGLE LTD DENNIS EAGLE LTD,87537,05/10/2023,DE11620464,VK22BXY Flap/Cap/Pump/Cover,27/10/2023,72.19,360.97,433.16,Green Waste Collection,Vehicle Repairs And Maintenance,60904
http://statistics.data.gov.uk/id/local-authority/12UE,Huntingdonshire District Council,200079,BANDVULC TRUCK TYRES BANDVULC TRUCK TYRES,89920,29/11/2023,193970,Tyres P:11 W:0,21/12/2023,68.63,343.17,411.8,Green Waste Collection,Tyres,62926
http://statistics.data.gov.uk/id/local-authority/12UE,Huntingdonshire District Council,200079,BANDVULC TRUCK TYRES BANDVULC TRUCK TYRES,88383,30/10/2023,192670,Tyres P:10 W:0,24/11/2023,191.66,958.3,1149.96,Green Waste Collection,Tyres,62926
http://statistics.data.gov.uk/id/local-authority/12UE,Huntingdonshire District Council,200079,BANDVULC TRUCK TYRES BANDVULC TRUCK TYRES,89920,29/11/2023,193970,Tyres P:11 W:0,21/12/2023,86.59,432.92,519.51,Green Waste Collection,Tyres,62926
http://statistics.data.gov.uk/id/local-authority/12UE,Huntingdonshire District Council,200079,BANDVULC TRUCK TYRES BANDVULC TRUCK TYRES,86819,28/09/2023,191276,Tyres P:9 W:0,19/10/2023,340.41,1702.05,2042.46,Green Waste Collection,Tyres,62926
http://statistics.data.gov.uk/id/local-authority/12UE,Huntingdonshire District Council,200079,BANDVULC TRUCK TYRES BANDVULC TRUCK TYRES,88383,30/10/2023,192670,Tyres P:10 W:0,24/11/2023,99.09,495.43,594.52,Green Waste Collection,Tyres,62926
http://statistics.data.gov.uk/id/local-authority/12UE,Huntingdonshire District Council,200774,TERBERG MATEC UK LTD TERBERG MATEC UK LTD,88344,31/10/2023,96448266,Excess - Accident Repairs VK22BYA,24/11/2023,0,1000,1000,Green Waste Collection,Insurance Excess,63009
http://statistics.data.gov.uk/id/local-authority/12UE,Huntingdonshire District Council,200308,FRANK RATCLIFFE & SON FRANK RATCLIFFE & SON,89314,08/11/2023,110081,VN23CCZ Recover St Neots To EFH,01/12/2023,94.27,471.37,565.64,Domestic Waste Collection,Vehicle Repairs And Maintenance,60904
http://statistics.data.gov.uk/id/local-authority/12UE,Huntingdonshire District Council,200515,M & N VEHICLE SERVICES M & N VEHICLE SERVICES,86421,14/09/2023,55435,VN23UDU MOT Service/Test Fee,05/10/2023,271.27,1356.35,1627.62,Domestic Waste Collection,Vehicle Repairs And Maintenance,60904
http://statistics.data.gov.uk/id/local-authority/12UE,Huntingdonshire District Council,202487,GARNER COMMERCIALS LTD,87536,06/10/2023,12927,VU66NUJ Steam Clean,27/10/2023,57.8,289,346.8,Green Waste Collection,Vehicle Repairs And Maintenance,60904
http://statistics.data.gov.uk/id/local-authority/12UE,Huntingdonshire District Council,200236,DENNIS EAGLE LTD DENNIS EAGLE LTD,87812,09/10/2023,DE11621087,VU66NUJ Filters/Seat Belt/Lamp/Fuel Tank,02/11/2023,718.31,3591.56,4309.87,Green Waste Collection,Vehicle Repairs And Maintenance,60904
http://statistics.data.gov.uk/id/local-authority/12UE,Huntingdonshire District Council,200079,BANDVULC TRUCK TYRES BANDVULC TRUCK TYRES,88383,30/10/2023,192670,Tyres P:10 W:0,24/11/2023,267.34,1336.67,1604.01,Green Waste Collection,Tyres,62926
http://statistics.data.gov.uk/id/local-authority/12UE,Huntingdonshire District Council,200236,DENNIS EAGLE LTD DENNIS EAGLE LTD,89890,27/11/2023,DE11633720,VU66NUK Hose/Filter/Buckle,21/12/2023,54.63,273.15,327.78,Green Waste Collection,Vehicle Repairs And Maintenance,60904
http://statistics.data.gov.uk/id/local-authority/12UE,Huntingdonshire District Council,202487,GARNER COMMERCIALS LTD,89394,17/11/2023,13272,VU66NUK Steam Clean 17.11.23,07/12/2023,57.8,289,346.8,Green Waste Collection,Vehicle Repairs And Maintenance,60904
http://statistics.data.gov.uk/id/local-authority/12UE,Huntingdonshire District Council,200079,BANDVULC TRUCK TYRES BANDVULC TRUCK TYRES,89920,29/11/2023,193970,Tyres P:11 W:0,21/12/2023,93.64,468.17,561.81,Green Waste Collection,Tyres,62926
http://statistics.data.gov.uk/id/local-authority/12UE,Huntingdonshire District Council,200774,TERBERG MATEC UK LTD TERBERG MATEC UK LTD,87118,02/10/2023,96446910,VU67HXX Curtain/Decal/Lead,27/10/2023,82.17,410.87,493.04,Trade Refuse,Contract Charges (Transport),60900
http://statistics.data.gov.uk/id/local-authority/12UE,Huntingdonshire District Council,202487,GARNER COMMERCIALS LTD,86887,27/09/2023,12841,VU67HXX Steam Clean & Loan Car,19/10/2023,57.8,289,346.8,Trade Refuse,Vehicle Repairs And Maintenance,60904
http://statistics.data.gov.uk/id/local-authority/12UE,Huntingdonshire District Council,200721,SILVER SHIELD WINDSCREENS SILVER SHIELD WINDSCREENS,86771,27/09/2023,SSA77936,VU67HXX Front Screen,19/10/2023,58,290,348,Trade Refuse,Vehicle Repairs And Maintenance,60904
http://statistics.data.gov.uk/id/local-authority/12UE,Huntingdonshire District Council,200774,TERBERG MATEC UK LTD TERBERG MATEC UK LTD,89614,21/11/2023,96449365,VU67HXX Strip & Sensor,18/12/2023,78.58,392.91,471.49,Trade Refuse,Vehicle Repairs And Maintenance,60904
http://statistics.data.gov.uk/id/local-authority/12UE,Huntingdonshire District Council,200236,DENNIS EAGLE LTD DENNIS EAGLE LTD,86860,25/09/2023,DE11617424,VU67HXX MOT Parts,19/10/2023,365.62,1828.09,2193.71,Trade Refuse,Vehicle Repairs And Maintenance,60904
http://statistics.data.gov.uk/id/local-authority/12UE,Huntingdonshire District Council,200774,TERBERG MATEC UK LTD TERBERG MATEC UK LTD,87868,17/10/2023,96447688,VU67HXX Cover/Decal,09/11/2023,77.24,386.22,463.46,Trade Refuse,Vehicle Accident Damage,60925
http://statistics.data.gov.uk/id/local-authority/12UE,Huntingdonshire District Council,200079,BANDVULC TRUCK TYRES BANDVULC TRUCK TYRES,88383,30/10/2023,192670,Tyres P:10 W:0,24/11/2023,257.16,1285.8,1542.96,Trade Refuse,Tyres,62926
http://statistics.data.gov.uk/id/local-authority/12UE,Huntingdonshire District Council,202487,GARNER COMMERCIALS LTD,89030,03/11/2023,13169,VU67HXY Steam Clean,24/11/2023,57.8,289,346.8,Domestic Waste Collection,Vehicle Repairs And Maintenance,60904
http://statistics.data.gov.uk/id/local-authority/12UE,Huntingdonshire District Council,200236,DENNIS EAGLE LTD DENNIS EAGLE LTD,89317,09/11/2023,DE11629280,VU67HXY MOT Parts,01/12/2023,155.86,779.28,935.14,Domestic Waste Collection,Vehicle Repairs And Maintenance,60904
http://statistics.data.gov.uk/id/local-authority/12UE,Huntingdonshire District Council,200236,DENNIS EAGLE LTD DENNIS EAGLE LTD,86770,25/09/2023,484410,Welding Repairs/Replace Carriage Plate,19/10/2023,1664.86,8324.31,9989.17,Domestic Waste Collection,Vehicle Maintenance - External,60921
http://statistics.data.gov.uk/id/local-authority/12UE,Huntingdonshire District Council,200079,BANDVULC TRUCK TYRES BANDVULC TRUCK TYRES,89920,29/11/2023,193970,Tyres P:11 W:0,21/12/2023,213.49,1067.42,1280.91,Domestic Waste Collection,Tyres,62926
http://statistics.data.gov.uk/id/local-authority/12UE,Huntingdonshire District Council,202487,GARNER COMMERCIALS LTD,90408,01/12/2023,13464,VU67HXZ Steam Clean,21/12/2023,57.8,289,346.8,Recycling Collections,Vehicle Repairs And Maintenance,60904
http://statistics.data.gov.uk/id/local-authority/12UE,Huntingdonshire District Council,200308,FRANK RATCLIFFE & SON FRANK RATCLIFFE & SON,89057,02/11/2023,110020,VU67HXZ Winch Vehicle To Hard Standing,24/11/2023,124.57,622.85,747.42,Recycling Collections,Vehicle Maintenance - External,60921
http://statistics.data.gov.uk/id/local-authority/12UE,Huntingdonshire District Council,200236,DENNIS EAGLE LTD DENNIS EAGLE LTD,89857,24/10/2023,DE11625044,VX70ZMO Front Discs,04/12/2023,131.75,658.74,790.49,Domestic Waste Collection,Vehicle Repairs And Maintenance,60904
http://statistics.data.gov.uk/id/local-authority/12UE,Huntingdonshire District Council,200236,DENNIS EAGLE LTD DENNIS EAGLE LTD,89889,27/11/2023,DE11633721,VX70ZMO Brake Pads,21/12/2023,261.61,1308.03,1569.64,Domestic Waste Collection,Vehicle Repairs And Maintenance,60904
http://statistics.data.gov.uk/id/local-authority/12UE,Huntingdonshire District Council,202742,NFC Property Maintenance Ltd,86574,21/09/2023,1108,OLSI Poolside Tiles & Fitting,13/10/2023,50,250,300,Community Centres,Maintenance - Building,60201
http://statistics.data.gov.uk/id/local-authority/12UE,Huntingdonshire District Council,203223,Key Lime PR and Marketing Ltd,89349,16/11/2023,INV-6229A,Printing - Pool Timetables/A5 Leaflets,07/12/2023,69.75,348.75,418.5,One Leisure Support Team,"Advertising, Publicity And Marketing",62005
http://statistics.data.gov.uk/id/local-authority/12UE,Huntingdonshire District Council,203223,Key Lime PR and Marketing Ltd,87374,01/10/2023,INV-6122,OLSI Social Media Content Oct23,19/10/2023,340,1700,2040,One Leisure Support Team,"Advertising, Publicity And Marketing",62005
http://statistics.data.gov.uk/id/local-authority/12UE,Huntingdonshire District Council,203223,Key Lime PR and Marketing Ltd,88425,01/11/2023,INV-6186,Social Media Content Nov23,24/11/2023,340,1700,2040,One Leisure Support Team,"Advertising, Publicity And Marketing",62005
http://statistics.data.gov.uk/id/local-authority/12UE,Huntingdonshire District Council,203223,Key Lime PR and Marketing Ltd,89971,01/12/2023,INV-6246,OL Advertising Dec23,21/12/2023,340,1700,2040,One Leisure Support Team,"Advertising, Publicity And Marketing",62005
http://statistics.data.gov.uk/id/local-authority/12UE,Huntingdonshire District Council,203395,First Point Management & Consultancy Limited,88664,01/11/2023,FP0323,OL Operating Model,24/11/2023,1272,6360,7632,One Leisure Support Team,Consultancy Fees,62400
http://statistics.data.gov.uk/id/local-authority/12UE,Huntingdonshire District Council,203395,First Point Management & Consultancy Limited,89958,01/12/2023,FP0523,OL Operating Model,21/12/2023,1272,6360,7632,One Leisure Support Team,Consultancy Fees,62400
http://statistics.data.gov.uk/id/local-authority/12UE,Huntingdonshire District Council,202112,CAMBRIDGE MERIDIAN ACADEMIES TRUST,89729,23/11/2023,SPORT ENGLAND SP SUPPORT FUND,Sport England Swimming Pool Support Fund,07/12/2023,0,38245,38245,One Leisure Management Team,Grants - Other,50100
http://statistics.data.gov.uk/id/local-authority/12UE,Huntingdonshire District Council,200054,APSE APSE,88069,23/10/2023,2324/1837,Sport & Leisure Seminar 02.11.23,27/10/2023,73.6,368,441.6,One Leisure Management Team,Staff Development And Training,60115
http://statistics.data.gov.uk/id/local-authority/12UE,Huntingdonshire District Council,203090,REDACTED,86177,12/09/2023,9,Consultancy Fees - Staff Restructure,05/10/2023,0,900,900,One Leisure Management Team,Consultancy Fees,62400
http://statistics.data.gov.uk/id/local-authority/12UE,Huntingdonshire District Council,200726,SNACKLINE DIRECT LTD SNACKLINE DIRECT LTD,87570,26/09/2023,143845,OLH Vending Materials,19/10/2023,81.75,408.75,490.5,OLH - Hospitality,Vending Materials,61907
http://statistics.data.gov.uk/id/local-authority/12UE,Huntingdonshire District Council,202688,NUTRIVEND LTD,89175,15/11/2023,2039411,OLSTI DRINKS,07/12/2023,180.07,900.36,1080.43,OLH - Hospitality,Vending Materials,61907
http://statistics.data.gov.uk/id/local-authority/12UE,Huntingdonshire District Council,202688,NUTRIVEND LTD,87201,27/09/2023,2035536,OLH Bottled Drinks,19/10/2023,190.08,950.38,1140.46,OLH - Hospitality,Vending Materials,61907
http://statistics.data.gov.uk/id/local-authority/12UE,Huntingdonshire District Council,203413,REDACTED,89114,16/11/2023,OLH MONTHLY MEMBERSHIP,OLH Monthly Membership As Agreed,24/11/2023,135.33,676.67,812,OLH - Impressions,Membership,55011
http://statistics.data.gov.uk/id/local-authority/12UE,Huntingdonshire District Council,200447,JOHNSON HEALTH TECH UK LTD JOHNSON HEALTH TECH UK LTD,88727,31/05/2023,9502825886,ol community 369 ADV,09/11/2023,479,2395,2874,OLH - Impressions,"Maintenance - Equipment, Furniture And Materials",61702
http://statistics.data.gov.uk/id/local-authority/12UE,Huntingdonshire District Council,200427,J A K  SYSTEMS LTD J A K SYSTEMS LTD,90315,17/11/2023,17440,OLH Granudos Dosing Fault,07/12/2023,56.7,283.5,340.2,OLH - Site & Centre Management,Maintenance - Building,60201
http://statistics.data.gov.uk/id/local-authority/12UE,Huntingdonshire District Council,200065,ASP ASP,86331,11/09/2023,16063,Maintenance Renewal 2023 OL,05/10/2023,119,595,714,OLH - Site & Centre Management,Maintenance - Mechanical And Electrical,60203
http://statistics.data.gov.uk/id/local-authority/12UE,Huntingdonshire District Council,200913,WAVE  ANGLIAN WATER BUSINESS,90250,05/12/2023,12873496,OLH Sep-Dec23,07/12/2023,0,2553,2553,OLH - Site & Centre Management,Water And Sewerage,60302
http://statistics.data.gov.uk/id/local-authority/12UE,Huntingdonshire District Council,202135,TOTAL GAS AND POWER LTD,87561,08/10/2023,316397878/23,OLH Dry Sep23,13/10/2023,1038.55,5192.77,6231.32,OLH - Site & Centre Management,Electricity,60303
http://statistics.data.gov.uk/id/local-authority/12UE,Huntingdonshire District Council,202135,TOTAL GAS AND POWER LTD,89360,18/11/2023,321055080/23,OLH Dry Oct23,24/11/2023,1168.97,5844.85,7013.82,OLH - Site & Centre Management,Electricity,60303
http://statistics.data.gov.uk/id/local-authority/12UE,Huntingdonshire District Council,202135,TOTAL GAS AND POWER LTD,90679,10/12/2023,323555303/23,OLH Dry Nov23,21/12/2023,1220.6,6103.02,7323.62,OLH - Site & Centre Management,Electricity,60303
http://statistics.data.gov.uk/id/local-authority/12UE,Huntingdonshire District Council,200126,BRITISH GAS BUSINESS BRITISH GAS BUSINESS,88121,23/10/2023,721559427,OLH Dry Oct23,27/10/2023,51.73,258.64,310.37,OLH - Site & Centre Management,Gas,60305
http://statistics.data.gov.uk/id/local-authority/12UE,Huntingdonshire District Council,200126,BRITISH GAS BUSINESS BRITISH GAS BUSINESS,89150,07/11/2023,876832230,OLH Dry Otc23,21/11/2023,66.39,331.96,398.35,OLH - Site & Centre Management,Gas,60305
http://statistics.data.gov.uk/id/local-authority/12UE,Huntingdonshire District Council,200126,BRITISH GAS BUSINESS BRITISH GAS BUSINESS,90354,05/12/2023,888015105,OLH Dry Nov23,11/12/2023,110.93,554.64,665.57,OLH - Site & Centre Management,Gas,60305
http://statistics.data.gov.uk/id/local-authority/12UE,Huntingdonshire District Council,200126,BRITISH GAS BUSINESS BRITISH GAS BUSINESS,87254,05/10/2023,814471463,OLH Dry Sep23,13/10/2023,156.82,784.09,940.91,OLH - Site & Centre Management,Gas,60305
http://statistics.data.gov.uk/id/local-authority/12UE,Huntingdonshire District Council,200615,PHS GROUP LTD PHS GROUP LTD,87632,09/10/2023,70135825,OLH Cleaning Service,02/11/2023,50.75,253.74,304.49,OLH - Site & Centre Management,Cleaning Services,60501
http://statistics.data.gov.uk/id/local-authority/12UE,Huntingdonshire District Council,203401,Elev8 Access Platforms Ltd T/A Elev8 Group Services,90437,30/11/2023,2415,Gutter Services Various Sites,21/12/2023,59,295,354,OLH - Site & Centre Management,Cleaning Contract,60502
http://statistics.data.gov.uk/id/local-authority/12UE,Huntingdonshire District Council,202728,ESCOREFRESH,88263,26/10/2023,43998,OLH Cleaning Materials,17/11/2023,97.31,486.55,583.86,OLH - Site & Centre Management,Cleaning Materials,61300
http://statistics.data.gov.uk/id/local-authority/12UE,Huntingdonshire District Council,202728,ESCOREFRESH,86743,22/09/2023,43899,OLH Cleaning Materials,13/10/2023,114.33,571.66,685.99,OLH - Site & Centre Management,Cleaning Materials,61300
http://statistics.data.gov.uk/id/local-authority/12UE,Huntingdonshire District Council,202728,ESCOREFRESH,89636,23/11/2023,44080,OLH Cleaning Materials,18/12/2023,135.04,675.18,810.22,OLH - Site & Centre Management,Cleaning Materials,61300
http://statistics.data.gov.uk/id/local-authority/12UE,Huntingdonshire District Council,200737,SPORTMAX SPORTMAX,87817,16/10/2023,128628,OLH Items For Sale,09/11/2023,52.7,263.5,316.2,OLH - Site & Centre Management,Goods For Resale,61400
http://statistics.data.gov.uk/id/local-authority/12UE,Huntingdonshire District Council,200737,SPORTMAX SPORTMAX,89564,21/11/2023,129255,OLH Items For Sale,18/12/2023,77.54,387.7,465.24,OLH - Site & Centre Management,Goods For Resale,61400
http://statistics.data.gov.uk/id/local-authority/12UE,Huntingdonshire District Council,200737,SPORTMAX SPORTMAX,86791,21/09/2023,128176,OLH Items For Sale,13/10/2023,178.4,892,1070.4,OLH - Site & Centre Management,Goods For Resale,61400
http://statistics.data.gov.uk/id/local-authority/12UE,Huntingdonshire District Council,200737,SPORTMAX SPORTMAX,86208,15/09/2023,128025,OLH Goods For Sale,05/10/2023,217.12,1085.6,1302.72,OLH - Site & Centre Management,Goods For Resale,61400
http://statistics.data.gov.uk/id/local-authority/12UE,Huntingdonshire District Council,200737,SPORTMAX SPORTMAX,86328,15/09/2023,128026,OLH Goods Credit,05/10/2023,-56.95,-284.75,-341.7,OLH - Site & Centre Management,Goods For Resale,61400
http://statistics.data.gov.uk/id/local-authority/12UE,Huntingdonshire District Council,202289,HARVEST HEALTHCARE LTD,86210,14/09/2023,11133533,OLH Hoist Maintenance,05/10/2023,64.37,321.85,386.22,OLH - Site & Centre Management,"Maintenance - Equipment, Furniture And Materials",61702
http://statistics.data.gov.uk/id/local-authority/12UE,Huntingdonshire District Council,200430,J P LENNARD LTD J P LENNARD LTD,90761,01/12/2023,200193,OLH Equipment,21/12/2023,62,310,372,OLH - Site & Centre Management,Equipment,61713
http://statistics.data.gov.uk/id/local-authority/12UE,Huntingdonshire District Council,200430,J P LENNARD LTD J P LENNARD LTD,89507,20/10/2023,196315,OLH Equipment,27/11/2023,70.4,351.99,422.39,OLH - Site & Centre Management,Equipment,61713
http://statistics.data.gov.uk/id/local-authority/12UE,Huntingdonshire District Council,200772,TEMPLE LIFTS LIMITED TEMPLE LIFTS LIMITED,87166,29/09/2023,571880,OLH Equipment,19/10/2023,103.2,516,619.2,OLH - Site & Centre Management,Equipment,61713
http://statistics.data.gov.uk/id/local-authority/12UE,Huntingdonshire District Council,200689,RLSS UK Enterprise Ltd,89448,15/11/2023,SSI000482,OLH De-Fib,07/12/2023,216,1080,1296,OLH - Site & Centre Management,Equipment,61713
http://statistics.data.gov.uk/id/local-authority/12UE,Huntingdonshire District Council,200305,FORGE LEISURE LTD FORGE LEISURE LTD,86752,19/09/2023,15786,OLH Pool Cover Service,13/10/2023,83.53,417.64,501.17,OLH - Swimming,Maintenance - Building,60201
http://statistics.data.gov.uk/id/local-authority/12UE,Huntingdonshire District Council,200913,WAVE  ANGLIAN WATER BUSINESS,89810,26/11/2023,12837811,OLH Aug-Nov23,04/12/2023,0,709.83,709.83,OLH - Swimming,Water And Sewerage,60302
http://statistics.data.gov.uk/id/local-authority/12UE,Huntingdonshire District Council,202135,TOTAL GAS AND POWER LTD,87566,08/10/2023,316402773/23,OLH Wet Sep23,13/10/2023,168.98,844.89,1013.87,OLH - Swimming,Electricity,60303
http://statistics.data.gov.uk/id/local-authority/12UE,Huntingdonshire District Council,202135,TOTAL GAS AND POWER LTD,90680,10/12/2023,323574597/23,OLH Wet Nov23,21/12/2023,263.38,1316.9,1580.28,OLH - Swimming,Electricity,60303
http://statistics.data.gov.uk/id/local-authority/12UE,Huntingdonshire District Council,202135,TOTAL GAS AND POWER LTD,89361,18/11/2023,321063968/23,OLH Wet Oct23,24/11/2023,358.7,1793.52,2152.22,OLH - Swimming,Electricity,60303
http://statistics.data.gov.uk/id/local-authority/12UE,Huntingdonshire District Council,200126,BRITISH GAS BUSINESS BRITISH GAS BUSINESS,87854,18/10/2023,806472312,OLH Sep23,27/10/2023,19.83,396.6,416.43,OLH - Swimming,Gas,60305
http://statistics.data.gov.uk/id/local-authority/12UE,Huntingdonshire District Council,200126,BRITISH GAS BUSINESS BRITISH GAS BUSINESS,89151,07/11/2023,876832231,OLH Wet Oct23,21/11/2023,20.49,409.82,430.31,OLH - Swimming,Gas,60305
http://statistics.data.gov.uk/id/local-authority/12UE,Huntingdonshire District Council,200126,BRITISH GAS BUSINESS BRITISH GAS BUSINESS,90482,08/12/2023,721829886,OLH Wet Jun23 Revised,18/12/2023,516.39,2581.93,3098.32,OLH - Swimming,Gas,60305
http://statistics.data.gov.uk/id/local-authority/12UE,Huntingdonshire District Council,200126,BRITISH GAS BUSINESS BRITISH GAS BUSINESS,90481,08/12/2023,721829887,OLH Wet Jul23 Revised,18/12/2023,534.81,2674.06,3208.87,OLH - Swimming,Gas,60305
http://statistics.data.gov.uk/id/local-authority/12UE,Huntingdonshire District Council,200126,BRITISH GAS BUSINESS BRITISH GAS BUSINESS,90623,08/12/2023,721829888,OLH Wet Aug23 Revised,18/12/2023,541.81,2709.04,3250.85,OLH - Swimming,Gas,60305
http://statistics.data.gov.uk/id/local-authority/12UE,Huntingdonshire District Council,200126,BRITISH GAS BUSINESS BRITISH GAS BUSINESS,90591,08/12/2023,721829889,OLH Wet Sep23 Revised,18/12/2023,550.19,2750.96,3301.15,OLH - Swimming,Gas,60305
http://statistics.data.gov.uk/id/local-authority/12UE,Huntingdonshire District Council,200126,BRITISH GAS BUSINESS BRITISH GAS BUSINESS,90576,08/12/2023,721829890,OLH Wet Oct23 Revised,18/12/2023,672.88,3364.38,4037.26,OLH - Swimming,Gas,60305
http://statistics.data.gov.uk/id/local-authority/12UE,Huntingdonshire District Council,200126,BRITISH GAS BUSINESS BRITISH GAS BUSINESS,90483,08/12/2023,721829891,OLH Wet Nov23 Revised,18/12/2023,712.6,3562.98,4275.58,OLH - Swimming,Gas,60305
http://statistics.data.gov.uk/id/local-authority/12UE,Huntingdonshire District Council,200126,BRITISH GAS BUSINESS BRITISH GAS BUSINESS,90632,08/12/2023,721829876,OLH Wet Jun23 Credit,18/12/2023,-417.72,-2088.62,-2506.34,OLH - Swimming,Grounds Maintenance,60503
http://statistics.data.gov.uk/id/local-authority/12UE,Huntingdonshire District Council,200126,BRITISH GAS BUSINESS BRITISH GAS BUSINESS,90477,08/12/2023,721829874,OLH Wet Credit 872026323 Aug23,18/12/2023,-173.85,-869.27,-1043.12,OLH - Swimming,Grounds Maintenance,60503
http://statistics.data.gov.uk/id/local-authority/12UE,Huntingdonshire District Council,200126,BRITISH GAS BUSINESS BRITISH GAS BUSINESS,90478,08/12/2023,721829875,OLH Wet Credit 872026322 Jul23,18/12/2023,-108.86,-544.31,-653.17,OLH - Swimming,Grounds Maintenance,60503
http://statistics.data.gov.uk/id/local-authority/12UE,Huntingdonshire District Council,200126,BRITISH GAS BUSINESS BRITISH GAS BUSINESS,90479,08/12/2023,721829863,OLH Wet Credit 876832231 Oct23,18/12/2023,-20.49,-409.82,-430.31,OLH - Swimming,Grounds Maintenance,60503
http://statistics.data.gov.uk/id/local-authority/12UE,Huntingdonshire District Council,200126,BRITISH GAS BUSINESS BRITISH GAS BUSINESS,90480,08/12/2023,721829873,OLH Wet Credit 806472312 Sep23,18/12/2023,-19.83,-396.6,-416.43,OLH - Swimming,Grounds Maintenance,60503
http://statistics.data.gov.uk/id/local-authority/12UE,Huntingdonshire District Council,202540,THOMPSON AUDIO VISUAL COMMUNICATIONS LTD,86332,14/09/2023,22449,LED Replacement,05/10/2023,61.68,308.4,370.08,OLH - Swimming,"Maintenance - Equipment, Furniture And Materials",61702
http://statistics.data.gov.uk/id/local-authority/12UE,Huntingdonshire District Council,202749,COMPLETE POOL CONTROLS LTD,87108,04/10/2023,INV092732,OLH Pool Chemicals,27/10/2023,127.21,636.03,763.24,OLH - Swimming,Chemicals,64000
http://statistics.data.gov.uk/id/local-authority/12UE,Huntingdonshire District Council,202749,COMPLETE POOL CONTROLS LTD,88659,02/11/2023,INV093724,OLH Pool Chemicals,24/11/2023,129.53,647.65,777.18,OLH - Swimming,Chemicals,64000
http://statistics.data.gov.uk/id/local-authority/12UE,Huntingdonshire District Council,200489,LES MILLS UK LES MILLS UK,87316,05/10/2023,LMUK-SIV-180821,OLH Licences,27/10/2023,51.63,258.17,309.8,OLH - Fitness Activities,Licences,60410
http://statistics.data.gov.uk/id/local-authority/12UE,Huntingdonshire District Council,200489,LES MILLS UK LES MILLS UK,90730,06/11/2023,LMUK-SIV-182175,OLH Licences,21/12/2023,51.63,258.17,309.8,OLH - Fitness Activities,Licences,60410
http://statistics.data.gov.uk/id/local-authority/12UE,Huntingdonshire District Council,202688,NUTRIVEND LTD,86476,20/09/2023,2034903,OLR Bottled Drinks,13/10/2023,54.68,273.42,328.1,OLR - Hospitality,Vending Materials,61907
http://statistics.data.gov.uk/id/local-authority/12UE,Huntingdonshire District Council,202688,NUTRIVEND LTD,87533,12/10/2023,2036765,OLR Vending Materials,02/11/2023,56.97,284.85,341.82,OLR - Hospitality,Vending Materials,61907
http://statistics.data.gov.uk/id/local-authority/12UE,Huntingdonshire District Council,200494,LIFE FITNESS UK LTD LIFE FITNESS UK LTD,89931,23/11/2023,510PI123048,OLR Call Out,18/12/2023,116.28,581.41,697.69,OLR - Impressions,"Maintenance - Equipment, Furniture And Materials",61702
http://statistics.data.gov.uk/id/local-authority/12UE,Huntingdonshire District Council,200542,MIRAMAR ENGINEERING LTD MIRAMAR ENGINEERING LTD,87159,20/09/2023,11938,OLR Safety Equipment HWS Cylinders,13/10/2023,531.32,2656.61,3187.93,OLR - Site & Centre Management,Maintenance - Building,60201
http://statistics.data.gov.uk/id/local-authority/12UE,Huntingdonshire District Council,200427,J A K  SYSTEMS LTD J A K SYSTEMS LTD,86552,18/09/2023,17138,OLR Fix Sample Valve,13/10/2023,92.14,460.7,552.84,OLR - Site & Centre Management,Maintenance - Mechanical And Electrical,60203
http://statistics.data.gov.uk/id/local-authority/12UE,Huntingdonshire District Council,202135,TOTAL GAS AND POWER LTD,87564,08/10/2023,316397821/23,OLR Sep23,13/10/2023,1641.98,8209.88,9851.86,OLR - Site & Centre Management,Electricity,60303
http://statistics.data.gov.uk/id/local-authority/12UE,Huntingdonshire District Council,202135,TOTAL GAS AND POWER LTD,89363,18/11/2023,321055025/23,OLR Oct23,24/11/2023,2295.54,11477.69,13773.23,OLR - Site & Centre Management,Electricity,60303
http://statistics.data.gov.uk/id/local-authority/12UE,Huntingdonshire District Council,202135,TOTAL GAS AND POWER LTD,90670,10/12/2023,323555171/23,OLR Nov23,21/12/2023,2578.11,12890.54,15468.65,OLR - Site & Centre Management,Electricity,60303
http://statistics.data.gov.uk/id/local-authority/12UE,Huntingdonshire District Council,203401,Elev8 Access Platforms Ltd T/A Elev8 Group Services,90437,30/11/2023,2415,Gutter Services Various Sites,21/12/2023,254,1270,1524,OLR - Site & Centre Management,Cleaning Contract,60502
http://statistics.data.gov.uk/id/local-authority/12UE,Huntingdonshire District Council,200232,DCRS LTD DCRS LTD,90454,27/11/2023,263334,OLR Radios,21/12/2023,58.2,291,349.2,OLR - Site & Centre Management,Equipment,61713
http://statistics.data.gov.uk/id/local-authority/12UE,Huntingdonshire District Council,200117,BRAMBLE HUB LTD BRAMBLE HUB LTD,87215,28/09/2023,INV-13678,OL Data Cleansing,19/10/2023,83.06,415.28,498.34,OLR - Site & Centre Management,Ict Hardware,64070
http://statistics.data.gov.uk/id/local-authority/12UE,Huntingdonshire District Council,202749,COMPLETE POOL CONTROLS LTD,89211,19/09/2023,INV092147,OLR Pool Chemicals,21/11/2023,64.73,323.65,388.38,OLR - Swimming,Chemicals,64000
http://statistics.data.gov.uk/id/local-authority/12UE,Huntingdonshire District Council,202749,COMPLETE POOL CONTROLS LTD,88652,02/11/2023,INV093725,OLR Pool Chemicals,24/11/2023,129.53,647.65,777.18,OLR - Swimming,Chemicals,64000
http://statistics.data.gov.uk/id/local-authority/12UE,Huntingdonshire District Council,200734,SOUTH LINCS FOOD SERVICE SOUTH LINCS FOOD SERVICE,87206,19/09/2023,325301,BH Catering&Vending/Confectionery,05/10/2023,0,264.61,264.61,OLSI - Burgess Bar,Catering Supplies,61900
http://statistics.data.gov.uk/id/local-authority/12UE,Huntingdonshire District Council,200734,SOUTH LINCS FOOD SERVICE SOUTH LINCS FOOD SERVICE,87208,28/09/2023,327907,BH Catering/Vending Supplies,05/10/2023,0,278.95,278.95,OLSI - Burgess Bar,Catering Supplies,61900
http://statistics.data.gov.uk/id/local-authority/12UE,Huntingdonshire District Council,200471,LACONS LACONS,87424,02/10/2023,937203,BH Bar Provisions,27/10/2023,65.99,329.97,395.96,OLSI - Burgess Bar,Bar Provisions,61905
http://statistics.data.gov.uk/id/local-authority/12UE,Huntingdonshire District Council,200583,OAKHAM ALES OAKHAM ALES,88306,20/10/2023,I284454,BH Bar Provisions,02/11/2023,66.48,332.4,398.88,OLSI - Burgess Bar,Bar Provisions,61905
http://statistics.data.gov.uk/id/local-authority/12UE,Huntingdonshire District Council,200583,OAKHAM ALES OAKHAM ALES,90743,15/12/2023,I286983,BH Bar Provisions,21/12/2023,99.97,499.86,599.83,OLSI - Burgess Bar,Bar Provisions,61905
http://statistics.data.gov.uk/id/local-authority/12UE,Huntingdonshire District Council,203100,Booker Wholesale Cambridge,88116,22/10/2023,3549927,ZEST&BH Catering/Confect/Bar/Materials,27/10/2023,101.95,509.73,611.68,OLSI - Burgess Bar,Bar Provisions,61905
http://statistics.data.gov.uk/id/local-authority/12UE,Huntingdonshire District Council,203100,Booker Wholesale Cambridge,88428,18/10/2023,3549746,BH Catering/Bar/Confectionery/Materials,06/11/2023,103.37,516.85,620.22,OLSI - Burgess Bar,Bar Provisions,61905
http://statistics.data.gov.uk/id/local-authority/12UE,Huntingdonshire District Council,203100,Booker Wholesale Cambridge,89833,28/11/2023,3551345,ZEST/BH Catering/Confect/Bar/Cleaning,04/12/2023,108.3,541.5,649.8,OLSI - Burgess Bar,Bar Provisions,61905
http://statistics.data.gov.uk/id/local-authority/12UE,Huntingdonshire District Council,200583,OAKHAM ALES OAKHAM ALES,88983,10/11/2023,I285332,BH Bar Provisions,17/11/2023,127.16,635.8,762.96,OLSI - Burgess Bar,Bar Provisions,61905
http://statistics.data.gov.uk/id/local-authority/12UE,Huntingdonshire District Council,200583,OAKHAM ALES OAKHAM ALES,87257,29/09/2023,I283610,BH Bar Provisions,09/10/2023,129.68,648.4,778.08,OLSI - Burgess Bar,Bar Provisions,61905
http://statistics.data.gov.uk/id/local-authority/12UE,Huntingdonshire District Council,203100,Booker Wholesale Cambridge,89212,13/11/2023,3550720,BH Catering/Bar/Confectionery/Materials,21/11/2023,182.11,910.54,1092.65,OLSI - Burgess Bar,Bar Provisions,61905
http://statistics.data.gov.uk/id/local-authority/12UE,Huntingdonshire District Council,200471,LACONS LACONS,89191,02/11/2023,940712,OLSTI DRINKS,24/11/2023,213.76,1068.8,1282.56,OLSI - Burgess Bar,Bar Provisions,61905
http://statistics.data.gov.uk/id/local-authority/12UE,Huntingdonshire District Council,200471,LACONS LACONS,89968,28/11/2023,943828,BH Bar Provisions/Gas Cylinders,21/12/2023,223.68,1118.39,1342.07,OLSI - Burgess Bar,Bar Provisions,61905
http://statistics.data.gov.uk/id/local-authority/12UE,Huntingdonshire District Council,203100,Booker Wholesale Cambridge,90726,11/12/2023,3551806,OLSI Catering&Vending/Bar Provisions,21/12/2023,240.61,1203.06,1443.67,OLSI - Burgess Bar,Bar Provisions,61905
http://statistics.data.gov.uk/id/local-authority/12UE,Huntingdonshire District Council,203100,Booker Wholesale Cambridge,87111,27/09/2023,3548987,OLSI Bar Provisions/Cleaning Materials,05/10/2023,331.39,1656.93,1988.32,OLSI - Burgess Bar,Bar Provisions,61905
http://statistics.data.gov.uk/id/local-authority/12UE,Huntingdonshire District Council,200471,LACONS LACONS,87102,26/09/2023,936673,BH Bar Provisions,19/10/2023,405.27,2026.35,2431.62,OLSI - Burgess Bar,Bar Provisions,61905
http://statistics.data.gov.uk/id/local-authority/12UE,Huntingdonshire District Council,200734,SOUTH LINCS FOOD SERVICE SOUTH LINCS FOOD SERVICE,90233,05/12/2023,346107,BH Catering/Bar Provisions/Confectionery,07/12/2023,74.15,370.76,444.91,OLSI - Burgess Bar,Confectionery,61906
http://statistics.data.gov.uk/id/local-authority/12UE,Huntingdonshire District Council,203175,SRS Security,87553,09/10/2023,INV-000325,BH Event Security 07.10.23,13/10/2023,0,315,315,OLSI - Burgess Hall,Agency Staff,60011
http://statistics.data.gov.uk/id/local-authority/12UE,Huntingdonshire District Council,200611,PPL PRS LTD PERFORMING RIGHT SOCIETY,88054,23/10/2023,SIN2541830,Music Licence Recharge Jun-Sep23,17/11/2023,194.6,973.01,1167.61,OLSI - Burgess Hall,Licences,60410
http://statistics.data.gov.uk/id/local-authority/12UE,Huntingdonshire District Council,201033,CAMBRIDGESHIRE COUNTY COUNCIL,88882,10/11/2023,AP/BURGESS HALL,Marriages & Civil Partnership Licences,17/11/2023,0,1900,1900,OLSI - Burgess Hall,Licences,60410
http://statistics.data.gov.uk/id/local-authority/12UE,Huntingdonshire District Council,200734,SOUTH LINCS FOOD SERVICE SOUTH LINCS FOOD SERVICE,87421,05/10/2023,329936,ZEST Catering Supplies/Confectionery,13/10/2023,0,331.32,331.32,OLSI - Burgess Hall,Catering Supplies,61900
http://statistics.data.gov.uk/id/local-authority/12UE,Huntingdonshire District Council,200746,STARLITE ROADSHOW STARLITE ROADSHOW,89568,19/11/2023,1107,BH Police Awards Entertainment,01/12/2023,0,435,435,OLSI - Burgess Hall,Entertainments,64079
http://statistics.data.gov.uk/id/local-authority/12UE,Huntingdonshire District Council,200455,KEN BOOTH & CO KEN BOOTH & CO,87203,21/09/2023,426993,OLSI Materials,13/10/2023,59,295,354,OLSI - Hospitality,Materials,61709
http://statistics.data.gov.uk/id/local-authority/12UE,Huntingdonshire District Council,200734,SOUTH LINCS FOOD SERVICE SOUTH LINCS FOOD SERVICE,87422,03/10/2023,329215,ZEST Catering/Bar Provisions/Materials,13/10/2023,0,274.12,274.12,OLSI - Hospitality,Catering Supplies,61900
http://statistics.data.gov.uk/id/local-authority/12UE,Huntingdonshire District Council,200734,SOUTH LINCS FOOD SERVICE SOUTH LINCS FOOD SERVICE,90631,05/12/2023,346105,ZEST Catering/Confectionery/Bar/Material,18/12/2023,0,280.38,280.38,OLSI - Hospitality,Catering Supplies,61900
http://statistics.data.gov.uk/id/local-authority/12UE,Huntingdonshire District Council,200734,SOUTH LINCS FOOD SERVICE SOUTH LINCS FOOD SERVICE,89039,31/10/2023,336742,ZEST Catering/Confectionery/Bar,17/11/2023,0,290.05,290.05,OLSI - Hospitality,Catering Supplies,61900
http://statistics.data.gov.uk/id/local-authority/12UE,Huntingdonshire District Council,200734,SOUTH LINCS FOOD SERVICE SOUTH LINCS FOOD SERVICE,88110,21/10/2023,334438,ZEST Catering Supplies,27/10/2023,0,298.73,298.73,OLSI - Hospitality,Catering Supplies,61900
http://statistics.data.gov.uk/id/local-authority/12UE,Huntingdonshire District Council,200734,SOUTH LINCS FOOD SERVICE SOUTH LINCS FOOD SERVICE,86481,16/09/2023,324870,ZEST Catering/Vending/Bar/Materials,05/10/2023,0,311.41,311.41,OLSI - Hospitality,Catering Supplies,61900
http://statistics.data.gov.uk/id/local-authority/12UE,Huntingdonshire District Council,200723,SLUSH PUPPIE LTD SLUSH PUPPIE LTD,87205,19/09/2023,INVGB294930,OLSI Slushie Refills,13/10/2023,71.56,357.8,429.36,OLSI - Hospitality,Catering Supplies,61900
http://statistics.data.gov.uk/id/local-authority/12UE,Huntingdonshire District Council,200734,SOUTH LINCS FOOD SERVICE SOUTH LINCS FOOD SERVICE,87198,19/09/2023,325300,ZEST Catering/Materials/Bar Provisions,05/10/2023,0,366.19,366.19,OLSI - Hospitality,Catering Supplies,61900
http://statistics.data.gov.uk/id/local-authority/12UE,Huntingdonshire District Council,200845,WESTMINSTER FOODSERVICE WESTMINSTER FOODSERVICE,86494,13/09/2023,38935,OLSI Catering/Vending/Bar/Confectionery,05/10/2023,54.55,272.76,327.31,OLSI - Hospitality,Bar Provisions,61905
http://statistics.data.gov.uk/id/local-authority/12UE,Huntingdonshire District Council,203100,Booker Wholesale Cambridge,90860,19/12/2023,3552177,ZEST Bar Provisions,21/12/2023,61.01,305.03,366.04,OLSI - Hospitality,Bar Provisions,61905
http://statistics.data.gov.uk/id/local-authority/12UE,Huntingdonshire District Council,200282,ESPO ESPO,90665,27/06/2023,6994901,OLSI Sports Equipment,21/12/2023,92.15,460.75,552.9,OLSI - Indoor Sports,Equipment,61713
http://statistics.data.gov.uk/id/local-authority/12UE,Huntingdonshire District Council,203094,Institute of Swimming Limited,89354,31/10/2023,IOSINV035368,OLSI Teach Swimming Course,24/11/2023,0,9500,9500,OLSI - Site & Centre Management,Staff Development And Training,60115
http://statistics.data.gov.uk/id/local-authority/12UE,Huntingdonshire District Council,200542,MIRAMAR ENGINEERING LTD MIRAMAR ENGINEERING LTD,88962,15/11/2023,12467,OLSI Reattach Pool Vent,07/12/2023,55.3,276.49,331.79,OLSI - Site & Centre Management,Maintenance - Building,60201
http://statistics.data.gov.uk/id/local-authority/12UE,Huntingdonshire District Council,200232,DCRS LTD DCRS LTD,87755,12/10/2023,262669,OLSI Radio Repairs,02/11/2023,60.2,301,361.2,OLSI - Site & Centre Management,Maintenance - Building,60201
http://statistics.data.gov.uk/id/local-authority/12UE,Huntingdonshire District Council,200694,ROGER WILSON ELECTRONICS ROGER WILSON ELECTRONICS,90470,10/12/2023,11096,BH Multiple Works,18/12/2023,65.77,328.86,394.63,OLSI - Site & Centre Management,Maintenance - Building,60201
http://statistics.data.gov.uk/id/local-authority/12UE,Huntingdonshire District Council,202742,NFC Property Maintenance Ltd,88864,22/06/2023,995,BH Dressing Room Repairs,17/11/2023,84,420,504,OLSI - Site & Centre Management,Maintenance - Building,60201
http://statistics.data.gov.uk/id/local-authority/12UE,Huntingdonshire District Council,201608,B I CATERING EQUIPMENT SERVICES,89567,02/11/2023,44282,ZEST Griddle Call Out/Repairs,01/12/2023,108.17,540.86,649.03,OLSI - Site & Centre Management,Maintenance - Building,60201
http://statistics.data.gov.uk/id/local-authority/12UE,Huntingdonshire District Council,201608,B I CATERING EQUIPMENT SERVICES,87530,28/09/2023,43894,OLSI Griddle Repair,19/10/2023,126.4,632,758.4,OLSI - Site & Centre Management,Maintenance - Building,60201
http://statistics.data.gov.uk/id/local-authority/12UE,Huntingdonshire District Council,203093,Pennon Water Services Ltd,89984,23/11/2023,M0030058,Leak Detection - Bin Areas,07/12/2023,128,640,768,OLSI - Site & Centre Management,Maintenance - Building,60201
http://statistics.data.gov.uk/id/local-authority/12UE,Huntingdonshire District Council,200694,ROGER WILSON ELECTRONICS ROGER WILSON ELECTRONICS,87336,30/09/2023,11042,OLSI Missed PAT Testing Items,13/10/2023,137.46,687.28,824.74,OLSI - Site & Centre Management,Maintenance - Building,60201
http://statistics.data.gov.uk/id/local-authority/12UE,Huntingdonshire District Council,203044,Genie UK Ltd,90688,13/11/2023,606237,OLSI Upright PAV Service,21/12/2023,114.4,572,686.4,OLSI - Site & Centre Management,Maintenance - Mechanical And Electrical,60203
http://statistics.data.gov.uk/id/local-authority/12UE,Huntingdonshire District Council,200065,ASP ASP,86331,11/09/2023,16063,Maintenance Renewal 2023 OL,05/10/2023,119,595,714,OLSI - Site & Centre Management,Maintenance - Mechanical And Electrical,60203
http://statistics.data.gov.uk/id/local-authority/12UE,Huntingdonshire District Council,202742,NFC Property Maintenance Ltd,89640,22/11/2023,1168,OLSI Painting Throughout Centre,18/12/2023,210,1050,1260,OLSI - Site & Centre Management,Decoration,60204
http://statistics.data.gov.uk/id/local-authority/12UE,Huntingdonshire District Council,200324,G4S SECURE SOLUTIONS (UK) LTD G4S SECURE SOLUTIONS (UK) LTD,88657,01/11/2023,82610207173,OLSI Keyholding 01.12.23-30.11.24,09/11/2023,159.82,799.1,958.92,OLSI - Site & Centre Management,Fire Assessment And Safety,60205
http://statistics.data.gov.uk/id/local-authority/12UE,Huntingdonshire District Council,200913,WAVE  ANGLIAN WATER BUSINESS,87708,13/10/2023,12665547,OLSN Sep-Oct23,19/10/2023,0,349.12,349.12,OLSI - Site & Centre Management,Water And Sewerage,60302
http://statistics.data.gov.uk/id/local-authority/12UE,Huntingdonshire District Council,200913,WAVE  ANGLIAN WATER BUSINESS,90851,13/12/2023,12908755,OLSI Nov-Dec23,21/12/2023,0,379.12,379.12,OLSI - Site & Centre Management,Water And Sewerage,60302
http://statistics.data.gov.uk/id/local-authority/12UE,Huntingdonshire District Council,200913,WAVE  ANGLIAN WATER BUSINESS,89288,13/11/2023,12785175,OLSI Oct-Nov23,24/11/2023,0,400.94,400.94,OLSI - Site & Centre Management,Water And Sewerage,60302
http://statistics.data.gov.uk/id/local-authority/12UE,Huntingdonshire District Council,202135,TOTAL GAS AND POWER LTD,87563,08/10/2023,316397823/23,OLSI Sep23,13/10/2023,2944.56,14722.82,17667.38,OLSI - Site & Centre Management,Electricity,60303
http://statistics.data.gov.uk/id/local-authority/12UE,Huntingdonshire District Council,202135,TOTAL GAS AND POWER LTD,89365,18/11/2023,321055036/23,OLSI Oct23,24/11/2023,3142.44,15712.18,18854.62,OLSI - Site & Centre Management,Electricity,60303
http://statistics.data.gov.uk/id/local-authority/12UE,Huntingdonshire District Council,202135,TOTAL GAS AND POWER LTD,90668,10/12/2023,323555204/23,OLSI Nov23,21/12/2023,3300.63,16503.17,19803.8,OLSI - Site & Centre Management,Electricity,60303
http://statistics.data.gov.uk/id/local-authority/12UE,Huntingdonshire District Council,202135,TOTAL GAS AND POWER LTD,90260,05/12/2023,309179469C,OLSI Jul23,18/12/2023,-2836.95,-14184.74,-17021.69,OLSI - Site & Centre Management,Electricity,60303
http://statistics.data.gov.uk/id/local-authority/12UE,Huntingdonshire District Council,200126,BRITISH GAS BUSINESS BRITISH GAS BUSINESS,87423,06/10/2023,857633719,OLSI Sep23,13/10/2023,842.24,4211.22,5053.46,OLSI - Site & Centre Management,Gas,60305
http://statistics.data.gov.uk/id/local-authority/12UE,Huntingdonshire District Council,200126,BRITISH GAS BUSINESS BRITISH GAS BUSINESS,90355,04/12/2023,721798074,OLSI Nov23,11/12/2023,975.59,4877.95,5853.54,OLSI - Site & Centre Management,Gas,60305
http://statistics.data.gov.uk/id/local-authority/12UE,Huntingdonshire District Council,200126,BRITISH GAS BUSINESS BRITISH GAS BUSINESS,89149,07/11/2023,876832232,OLSI Oct23,21/11/2023,1086.75,5433.74,6520.49,OLSI - Site & Centre Management,Gas,60305
http://statistics.data.gov.uk/id/local-authority/12UE,Huntingdonshire District Council,203401,Elev8 Access Platforms Ltd T/A Elev8 Group Services,90437,30/11/2023,2415,Gutter Services Various Sites,21/12/2023,254,1270,1524,OLSI - Site & Centre Management,Cleaning Contract,60502
http://statistics.data.gov.uk/id/local-authority/12UE,Huntingdonshire District Council,202728,ESCOREFRESH,89916,30/11/2023,44101,BH Cleaning Materials Nov23,21/12/2023,88.67,443.34,532.01,OLSI - Site & Centre Management,Cleaning Materials,61300
http://statistics.data.gov.uk/id/local-authority/12UE,Huntingdonshire District Council,202728,ESCOREFRESH,87376,06/10/2023,43944,OLSI Cleaning Materials,27/10/2023,90.93,454.63,545.56,OLSI - Site & Centre Management,Cleaning Materials,61300
http://statistics.data.gov.uk/id/local-authority/12UE,Huntingdonshire District Council,200737,SPORTMAX SPORTMAX,87862,17/10/2023,128638,OLSI Items For Sale,09/11/2023,106.95,534.75,641.7,OLSI - Site & Centre Management,Goods For Resale,61400
http://statistics.data.gov.uk/id/local-authority/12UE,Huntingdonshire District Council,200737,SPORTMAX SPORTMAX,88992,13/11/2023,129095,OLSI Items For Sale,07/12/2023,107.94,539.7,647.64,OLSI - Site & Centre Management,Goods For Resale,61400
http://statistics.data.gov.uk/id/local-authority/12UE,Huntingdonshire District Council,200737,SPORTMAX SPORTMAX,86448,15/09/2023,128035,OLSI Items For Sale,05/10/2023,251.65,1258.25,1509.9,OLSI - Site & Centre Management,Goods For Resale,61400
http://statistics.data.gov.uk/id/local-authority/12UE,Huntingdonshire District Council,202289,HARVEST HEALTHCARE LTD,89894,28/11/2023,11140830,OLSI Hoist Maintenance,21/12/2023,61.87,309.35,371.22,OLSI - Site & Centre Management,"Maintenance - Equipment, Furniture And Materials",61702
http://statistics.data.gov.uk/id/local-authority/12UE,Huntingdonshire District Council,201107,R E J B & CO,88644,01/11/2023,605706,OLSI Sports Hall Maintenance,24/11/2023,214.6,1073,1287.6,OLSI - Site & Centre Management,"Maintenance - Equipment, Furniture And Materials",61702
http://statistics.data.gov.uk/id/local-authority/12UE,Huntingdonshire District Council,200232,DCRS LTD DCRS LTD,90816,13/10/2023,262682,OLSI Radios & Chargers,21/12/2023,144,720,864,OLSI - Site & Centre Management,Equipment,61713
http://statistics.data.gov.uk/id/local-authority/12UE,Huntingdonshire District Council,202728,ESCOREFRESH,88277,26/10/2023,44003,OLSI Cleaning Materials,17/11/2023,110.52,552.59,663.11,OLSI - Site & Centre Management,Chemicals,64000
http://statistics.data.gov.uk/id/local-authority/12UE,Huntingdonshire District Council,200117,BRAMBLE HUB LTD BRAMBLE HUB LTD,87215,28/09/2023,INV-13678,OL Data Cleansing,19/10/2023,166.11,830.56,996.67,OLSI - Site & Centre Management,Ict Hardware,64070
http://statistics.data.gov.uk/id/local-authority/12UE,Huntingdonshire District Council,200103,BIGPRINTING BIGPRINTING,88298,23/10/2023,1715506,OLSI Swim Lesson Board & Installation,17/11/2023,56,280,336,OLSI - Swimming,Equipment,61713
http://statistics.data.gov.uk/id/local-authority/12UE,Huntingdonshire District Council,200103,BIGPRINTING BIGPRINTING,88298,23/10/2023,1715506,OLSI Swim Lesson Board & Installation,17/11/2023,77,385,462,OLSI - Swimming,Equipment,61713
http://statistics.data.gov.uk/id/local-authority/12UE,Huntingdonshire District Council,202749,COMPLETE POOL CONTROLS LTD,88663,02/11/2023,INV093722,OLSI Pool Chemicals,24/11/2023,158.45,792.23,950.68,OLSI - Swimming,Chemicals,64000
http://statistics.data.gov.uk/id/local-authority/12UE,Huntingdonshire District Council,202749,COMPLETE POOL CONTROLS LTD,90733,05/10/2023,INV092792,OLSI Pool Chemicals,21/12/2023,158.45,792.23,950.68,OLSI - Swimming,Chemicals,64000
http://statistics.data.gov.uk/id/local-authority/12UE,Huntingdonshire District Council,202724,ESPRESSO CARE SOLUTIONS LTD,88109,24/10/2023,INV-ECS2808,OLSIO Bean 2 Cup Annual Service,17/11/2023,85,425,510,OLSIO - Hospitality,"Maintenance - Equipment, Furniture And Materials",61702
http://statistics.data.gov.uk/id/local-authority/12UE,Huntingdonshire District Council,200734,SOUTH LINCS FOOD SERVICE SOUTH LINCS FOOD SERVICE,89682,23/11/2023,342921,OLSIO Catering & Vending/Bar Provisions,01/12/2023,0,255.55,255.55,OLSIO - Hospitality,Catering Supplies,61900
http://statistics.data.gov.uk/id/local-authority/12UE,Huntingdonshire District Council,200734,SOUTH LINCS FOOD SERVICE SOUTH LINCS FOOD SERVICE,88966,02/11/2023,337510A,OLSIO Catering/Confectionery/Bar,17/11/2023,0,366,366,OLSIO - Hospitality,Catering Supplies,61900
http://statistics.data.gov.uk/id/local-authority/12UE,Huntingdonshire District Council,200734,SOUTH LINCS FOOD SERVICE SOUTH LINCS FOOD SERVICE,89352,16/11/2023,341108,OLSIO Catering&Vending/Bar/Materials,24/11/2023,0,438.44,438.44,OLSIO - Hospitality,Catering Supplies,61900
http://statistics.data.gov.uk/id/local-authority/12UE,Huntingdonshire District Council,200471,LACONS LACONS,89619,20/11/2023,942963,OLSI Bar Provisions,18/12/2023,60.18,300.91,361.09,OLSIO - Hospitality,Bar Provisions,61905
http://statistics.data.gov.uk/id/local-authority/12UE,Huntingdonshire District Council,200471,LACONS LACONS,88045,16/10/2023,939105,OLSIO Bar Provisions/Gas Cylinders,09/11/2023,68.49,342.43,410.92,OLSIO - Hospitality,Bar Provisions,61905
http://statistics.data.gov.uk/id/local-authority/12UE,Huntingdonshire District Council,200471,LACONS LACONS,89190,02/11/2023,9406490,OLSTI DRINKS,24/11/2023,71.68,358.39,430.07,OLSIO - Hospitality,Bar Provisions,61905
http://statistics.data.gov.uk/id/local-authority/12UE,Huntingdonshire District Council,200471,LACONS LACONS,87405,02/10/2023,937418,OLSIO Bar Provisions,27/10/2023,80.17,400.83,481,OLSIO - Hospitality,Bar Provisions,61905
http://statistics.data.gov.uk/id/local-authority/12UE,Huntingdonshire District Council,200471,LACONS LACONS,89002,06/11/2023,941423,OLSIO Bar Provisions,01/12/2023,88.25,441.26,529.51,OLSIO - Hospitality,Bar Provisions,61905
http://statistics.data.gov.uk/id/local-authority/12UE,Huntingdonshire District Council,200471,LACONS LACONS,89299,13/11/2023,942214,OLSIO Bar Provisions/Gas Cylinders,07/12/2023,90.23,451.15,541.38,OLSIO - Hospitality,Bar Provisions,61905
http://statistics.data.gov.uk/id/local-authority/12UE,Huntingdonshire District Council,200471,LACONS LACONS,86592,18/09/2023,935825,OLSIO Bar Provisions/Gas Cylinders,13/10/2023,164.28,821.38,985.66,OLSIO - Hospitality,Bar Provisions,61905
http://statistics.data.gov.uk/id/local-authority/12UE,Huntingdonshire District Council,202688,NUTRIVEND LTD,89566,22/11/2023,2040078,OLSIO Bottled Drinks,18/12/2023,59.02,295.1,354.12,OLSIO - Hospitality,Vending Materials,61907
http://statistics.data.gov.uk/id/local-authority/12UE,Huntingdonshire District Council,202688,NUTRIVEND LTD,86237,14/09/2023,2034388,OLSIO Bottled Drinks,05/10/2023,59.52,297.58,357.1,OLSIO - Hospitality,Vending Materials,61907
http://statistics.data.gov.uk/id/local-authority/12UE,Huntingdonshire District Council,202688,NUTRIVEND LTD,87869,19/10/2023,2037328,OLSIO Bottled Drinks,09/11/2023,61.89,309.47,371.36,OLSIO - Hospitality,Vending Materials,61907
http://statistics.data.gov.uk/id/local-authority/12UE,Huntingdonshire District Council,200489,LES MILLS UK LES MILLS UK,87315,05/10/2023,LMUK-SIV-181143,OLSI Licences,27/10/2023,58.6,293.02,351.62,OLSI - Fitness Activities,Licences,60410
http://statistics.data.gov.uk/id/local-authority/12UE,Huntingdonshire District Council,200489,LES MILLS UK LES MILLS UK,90732,06/11/2023,LMUK-SIV-182521,OLSI Licences,21/12/2023,58.6,293.02,351.62,OLSI - Fitness Activities,Licences,60410
http://statistics.data.gov.uk/id/local-authority/12UE,Huntingdonshire District Council,200324,G4S SECURE SOLUTIONS (UK) LTD G4S SECURE SOLUTIONS (UK) LTD,88656,01/11/2023,82610207172,OLSIO Key Holding 01.12.23-30.11.24,09/11/2023,159.82,799.1,958.92,OLSIO - Site & Centre Management,Fire Assessment And Safety,60205
http://statistics.data.gov.uk/id/local-authority/12UE,Huntingdonshire District Council,202135,TOTAL GAS AND POWER LTD,87565,08/10/2023,316397856/23,OCOMP Sep23,13/10/2023,801.5,4007.51,4809.01,OLSIO - Site & Centre Management,Electricity,60303
http://statistics.data.gov.uk/id/local-authority/12UE,Huntingdonshire District Council,202135,TOTAL GAS AND POWER LTD,89364,18/11/2023,321055069/23,OCOMP Oct23,24/11/2023,1379.61,6898.03,8277.64,OLSIO - Site & Centre Management,Electricity,60303
http://statistics.data.gov.uk/id/local-authority/12UE,Huntingdonshire District Council,202135,TOTAL GAS AND POWER LTD,90669,10/12/2023,323555270/23,OCOMP Nov23,21/12/2023,1717.33,8586.65,10303.98,OLSIO - Site & Centre Management,Electricity,60303
http://statistics.data.gov.uk/id/local-authority/12UE,Huntingdonshire District Council,200126,BRITISH GAS BUSINESS BRITISH GAS BUSINESS,89195,06/11/2023,854445742,STIVES OUTDOOR,21/11/2023,62.86,314.32,377.18,OLSIO - Site & Centre Management,Gas,60305
http://statistics.data.gov.uk/id/local-authority/12UE,Huntingdonshire District Council,200126,BRITISH GAS BUSINESS BRITISH GAS BUSINESS,90358,05/12/2023,888015107,OLSIO Nov23,11/12/2023,95.83,479.13,574.96,OLSIO - Site & Centre Management,Gas,60305
http://statistics.data.gov.uk/id/local-authority/12UE,Huntingdonshire District Council,202101,TRAINING SHED FAMILY LTD,88399,01/11/2023,INV-0167,Licences All Sites MYZONE,06/11/2023,99,495,594,OLSIO - Site & Centre Management,Licences,60410
http://statistics.data.gov.uk/id/local-authority/12UE,Huntingdonshire District Council,202101,TRAINING SHED FAMILY LTD,89909,01/12/2023,INV-0168,MyZone All Sites Licences,07/12/2023,99,495,594,OLSIO - Site & Centre Management,Licences,60410
http://statistics.data.gov.uk/id/local-authority/12UE,Huntingdonshire District Council,203401,Elev8 Access Platforms Ltd T/A Elev8 Group Services,90437,30/11/2023,2415,Gutter Services Various Sites,21/12/2023,178,890,1068,OLSIO - Site & Centre Management,Cleaning Contract,60502
http://statistics.data.gov.uk/id/local-authority/12UE,Huntingdonshire District Council,200179,CERTAS ENERGY T/A PACE FUELCARE CERTAS ENERGY T/A PACE FUELCARE,89020,06/11/2023,9256141,OLSIO Diesel Nov23,01/12/2023,233.82,1169.09,1402.91,OLSIO - Site & Centre Management,Fuel,60902
http://statistics.data.gov.uk/id/local-authority/12UE,Huntingdonshire District Council,202728,ESCOREFRESH,87636,13/10/2023,43963,OLSIO Cleaning Products,02/11/2023,90.94,454.71,545.65,OLSIO - Site & Centre Management,Cleaning Materials,61300
http://statistics.data.gov.uk/id/local-authority/12UE,Huntingdonshire District Council,200117,BRAMBLE HUB LTD BRAMBLE HUB LTD,87215,28/09/2023,INV-13678,OL Data Cleansing,19/10/2023,83.06,415.3,498.36,OLSIO - Site & Centre Management,Ict Hardware,64070
http://statistics.data.gov.uk/id/local-authority/12UE,Huntingdonshire District Council,202101,TRAINING SHED FAMILY LTD,87098,01/10/2023,INV-0164,MyZone All Sites Licences Oct23,05/10/2023,99,495,594,OLSIO - Training Shed,Licences,60410
http://statistics.data.gov.uk/id/local-authority/12UE,Huntingdonshire District Council,201123,SELECTA UK LTD,86108,11/09/2023,230123447,OLSN Vending Machine Oct-Dec23,05/10/2023,96.52,482.58,579.1,OLSN - Hospitality,Hire - Equipment Furniture And Materials,61700
http://statistics.data.gov.uk/id/local-authority/12UE,Huntingdonshire District Council,200726,SNACKLINE DIRECT LTD SNACKLINE DIRECT LTD,89205,17/10/2023,144422,OLSN Confectionery,21/11/2023,69.16,345.79,414.95,OLSN - Hospitality,Confectionery,61906
http://statistics.data.gov.uk/id/local-authority/12UE,Huntingdonshire District Council,202688,NUTRIVEND LTD,86474,18/09/2023,2034694,OLSN Bottled Drinks,13/10/2023,84.95,424.77,509.72,OLSN - Hospitality,Vending Materials,61907
http://statistics.data.gov.uk/id/local-authority/12UE,Huntingdonshire District Council,202688,NUTRIVEND LTD,87787,17/10/2023,2037118,OLSN Bottled Drinks,09/11/2023,84.95,424.77,509.72,OLSN - Hospitality,Vending Materials,61907
http://statistics.data.gov.uk/id/local-authority/12UE,Huntingdonshire District Council,202688,NUTRIVEND LTD,89174,07/11/2023,2038792,OLSTI DRINKS,01/12/2023,84.95,424.77,509.72,OLSN - Hospitality,Vending Materials,61907
http://statistics.data.gov.uk/id/local-authority/12UE,Huntingdonshire District Council,200726,SNACKLINE DIRECT LTD SNACKLINE DIRECT LTD,87532,19/09/2023,143661,OLSN Vending Materials,13/10/2023,86.65,433.23,519.88,OLSN - Hospitality,Vending Materials,61907
http://statistics.data.gov.uk/id/local-authority/12UE,Huntingdonshire District Council,200726,SNACKLINE DIRECT LTD SNACKLINE DIRECT LTD,87531,15/08/2023,142788,OLSN Vending Materials,13/10/2023,93.04,465.21,558.25,OLSN - Hospitality,Vending Materials,61907
http://statistics.data.gov.uk/id/local-authority/12UE,Huntingdonshire District Council,202742,NFC Property Maintenance Ltd,87370,28/09/2023,1120,OLSI Creche Toilet Repairs,19/10/2023,55,275,330,OLSN - Site & Centre Management,Maintenance - Building,60201
http://statistics.data.gov.uk/id/local-authority/12UE,Huntingdonshire District Council,203310,GC Services UK Ltd,86232,18/09/2023,INV-0464,OLSN Roof Investigation & Work,13/10/2023,56,280,336,OLSN - Site & Centre Management,Maintenance - Building,60201
http://statistics.data.gov.uk/id/local-authority/12UE,Huntingdonshire District Council,200427,J A K  SYSTEMS LTD J A K SYSTEMS LTD,90317,27/11/2023,17468,OLSN Granudos Call Out,21/12/2023,73.42,367.12,440.54,OLSN - Site & Centre Management,Maintenance - Building,60201
http://statistics.data.gov.uk/id/local-authority/12UE,Huntingdonshire District Council,200427,J A K  SYSTEMS LTD J A K SYSTEMS LTD,88928,03/11/2023,17370,Blocked Granudos Call Out & Clear,24/11/2023,78.5,392.5,471,OLSN - Site & Centre Management,Maintenance - Building,60201
http://statistics.data.gov.uk/id/local-authority/12UE,Huntingdonshire District Council,202030,MGS LTD,86570,18/09/2023,20005,Damaged End Stops On Shutter,13/10/2023,102,510,612,OLSN - Site & Centre Management,Maintenance - Building,60201
http://statistics.data.gov.uk/id/local-authority/12UE,Huntingdonshire District Council,200679,RICHARD SISTROM PAINTING & DECORATING RICHARD SISTROM PAINTING & DECORATING,85905,11/09/2023,INV 098,OLSN Spa Decoration,05/10/2023,0,532,532,OLSN - Site & Centre Management,Maintenance - Building,60201
http://statistics.data.gov.uk/id/local-authority/12UE,Huntingdonshire District Council,200679,RICHARD SISTROM PAINTING & DECORATING RICHARD SISTROM PAINTING & DECORATING,89289,11/09/2023,INV 095,OLSN Ladies Corridor,24/11/2023,0,665,665,OLSN - Site & Centre Management,Maintenance - Building,60201
http://statistics.data.gov.uk/id/local-authority/12UE,Huntingdonshire District Council,202742,NFC Property Maintenance Ltd,89715,27/09/2023,1113,OLSN Self Closing Tap/Fixing/Seal Sinks,04/12/2023,140,700,840,OLSN - Site & Centre Management,Maintenance - Building,60201
http://statistics.data.gov.uk/id/local-authority/12UE,Huntingdonshire District Council,200353,GYM UPHOLSTERY UK GYM UPHOLSTERY UK,88411,18/10/2023,128,OLSN x11 Gym Upholstery Pads,09/11/2023,142.21,711.03,853.24,OLSN - Site & Centre Management,Maintenance - Building,60201
http://statistics.data.gov.uk/id/local-authority/12UE,Huntingdonshire District Council,200694,ROGER WILSON ELECTRONICS ROGER WILSON ELECTRONICS,90681,05/12/2023,11093,OLSN x6 Electrical Jobs,21/12/2023,238.22,1191.09,1429.31,OLSN - Site & Centre Management,Maintenance - Building,60201
http://statistics.data.gov.uk/id/local-authority/12UE,Huntingdonshire District Council,200694,ROGER WILSON ELECTRONICS ROGER WILSON ELECTRONICS,90682,01/11/2023,11075,OLSN x9 Electrical Jobs,21/12/2023,290.5,1452.52,1743.02,OLSN - Site & Centre Management,Maintenance - Building,60201
http://statistics.data.gov.uk/id/local-authority/12UE,Huntingdonshire District Council,200065,ASP ASP,86331,11/09/2023,16063,Maintenance Renewal 2023 OL,05/10/2023,119,595,714,OLSN - Site & Centre Management,Maintenance - Mechanical And Electrical,60203
http://statistics.data.gov.uk/id/local-authority/12UE,Huntingdonshire District Council,203401,Elev8 Access Platforms Ltd T/A Elev8 Group Services,90437,30/11/2023,2415,Gutter Services Various Sites,21/12/2023,133,665,798,OLSN - Site & Centre Management,Cleaning Contract,60502
http://statistics.data.gov.uk/id/local-authority/12UE,Huntingdonshire District Council,202728,ESCOREFRESH,88412,20/10/2023,43993,OLSN Cleaning Materials,09/11/2023,51.89,259.46,311.35,OLSN - Site & Centre Management,Cleaning Materials,61300
http://statistics.data.gov.uk/id/local-authority/12UE,Huntingdonshire District Council,202728,ESCOREFRESH,87723,13/10/2023,43962,OLSN Cleaning Materials,02/11/2023,55.95,279.76,335.71,OLSN - Site & Centre Management,Cleaning Materials,61300
http://statistics.data.gov.uk/id/local-authority/12UE,Huntingdonshire District Council,202728,ESCOREFRESH,89624,23/11/2023,44073,OLSN Cleaning Materials,18/12/2023,72.64,363.21,435.85,OLSN - Site & Centre Management,Cleaning Materials,61300
http://statistics.data.gov.uk/id/local-authority/12UE,Huntingdonshire District Council,202728,ESCOREFRESH,86215,14/09/2023,43884,OLSN Cleaning Materials,05/10/2023,74.08,370.4,444.48,OLSN - Site & Centre Management,Cleaning Materials,61300
http://statistics.data.gov.uk/id/local-authority/12UE,Huntingdonshire District Council,202728,ESCOREFRESH,86571,22/09/2023,43903,OLSN Cleaning Materials,13/10/2023,86.53,432.65,519.18,OLSN - Site & Centre Management,Cleaning Materials,61300
http://statistics.data.gov.uk/id/local-authority/12UE,Huntingdonshire District Council,200737,SPORTMAX SPORTMAX,88106,23/10/2023,128744,OLSN Items For Sale,17/11/2023,145.51,727.55,873.06,OLSN - Site & Centre Management,Goods For Resale,61400
http://statistics.data.gov.uk/id/local-authority/12UE,Huntingdonshire District Council,200737,SPORTMAX SPORTMAX,86606,21/09/2023,128162,OLSN Items For Sale,13/10/2023,188.91,944.55,1133.46,OLSN - Site & Centre Management,Goods For Resale,61400
http://statistics.data.gov.uk/id/local-authority/12UE,Huntingdonshire District Council,200411,INITIAL WASHROOM SOLUTIONS INITIAL WASHROOM SOLUTIONS,87527,11/10/2023,34858636,Equipment Hire All OL Sites,02/11/2023,63.62,318.09,381.71,OLSN - Site & Centre Management,Hire - Equipment Furniture And Materials,61700
http://statistics.data.gov.uk/id/local-authority/12UE,Huntingdonshire District Council,200411,INITIAL WASHROOM SOLUTIONS INITIAL WASHROOM SOLUTIONS,89291,09/11/2023,34888883,Equipment Hire All Sites 30.11-29.12.23,01/12/2023,67.09,335.45,402.54,OLSN - Site & Centre Management,Hire - Equipment Furniture And Materials,61700
http://statistics.data.gov.uk/id/local-authority/12UE,Huntingdonshire District Council,200427,J A K  SYSTEMS LTD J A K SYSTEMS LTD,90869,01/12/2023,17506,OLSN Blocked Chlorine Dosing,21/12/2023,75,375,450,OLSN - Site & Centre Management,"Maintenance - Equipment, Furniture And Materials",61702
http://statistics.data.gov.uk/id/local-authority/12UE,Huntingdonshire District Council,200417,Swim England Trading Limited,86462,18/09/2023,SWINV091723,OLSN Distance Badges & Certificate,13/10/2023,237.91,1189.55,1427.46,OLSN - Site & Centre Management,Badges and Certificates,61712
http://statistics.data.gov.uk/id/local-authority/12UE,Huntingdonshire District Council,200430,J P LENNARD LTD J P LENNARD LTD,86497,19/09/2023,193159,Swimming Lesson Equipment,13/10/2023,85.51,427.57,513.08,OLSN - Site & Centre Management,Equipment,61713
http://statistics.data.gov.uk/id/local-authority/12UE,Huntingdonshire District Council,200117,BRAMBLE HUB LTD BRAMBLE HUB LTD,87215,28/09/2023,INV-13678,OL Data Cleansing,19/10/2023,166.11,830.54,996.65,OLSN - Site & Centre Management,Ict Hardware,64070
http://statistics.data.gov.uk/id/local-authority/12UE,Huntingdonshire District Council,200913,WAVE  ANGLIAN WATER BUSINESS,88311,26/10/2023,12717902,OLSN Sep-Oct23,02/11/2023,0,3211,3211,OLSN - Swimming,Water And Sewerage,60302
http://statistics.data.gov.uk/id/local-authority/12UE,Huntingdonshire District Council,200913,WAVE  ANGLIAN WATER BUSINESS,87216,26/09/2023,12590908,OLSN Wetside Aug-Sep23,09/10/2023,0,3321.49,3321.49,OLSN - Swimming,Water And Sewerage,60302
http://statistics.data.gov.uk/id/local-authority/12UE,Huntingdonshire District Council,200913,WAVE  ANGLIAN WATER BUSINESS,89811,26/11/2023,12837924,OLSN Oct-Nov23,04/12/2023,0,3321.49,3321.49,OLSN - Swimming,Water And Sewerage,60302
http://statistics.data.gov.uk/id/local-authority/12UE,Huntingdonshire District Council,202135,TOTAL GAS AND POWER LTD,87562,08/10/2023,316397867/23,OLSN Sep23,13/10/2023,3110.63,15553.14,18663.77,OLSN - Swimming,Electricity,60303
http://statistics.data.gov.uk/id/local-authority/12UE,Huntingdonshire District Council,202135,TOTAL GAS AND POWER LTD,89362,18/11/2023,321055070/23,OLSN Oct23,24/11/2023,3647.91,18239.55,21887.46,OLSN - Swimming,Electricity,60303
http://statistics.data.gov.uk/id/local-authority/12UE,Huntingdonshire District Council,202135,TOTAL GAS AND POWER LTD,90677,10/12/2023,323555281/23,OLSN Nov23,21/12/2023,3897.28,19486.39,23383.67,OLSN - Swimming,Electricity,60303
http://statistics.data.gov.uk/id/local-authority/12UE,Huntingdonshire District Council,200126,BRITISH GAS BUSINESS BRITISH GAS BUSINESS,87256,05/10/2023,814471464,OLSN Wet Sep23,13/10/2023,538.23,2691.17,3229.4,OLSN - Swimming,Gas,60305
http://statistics.data.gov.uk/id/local-authority/12UE,Huntingdonshire District Council,200126,BRITISH GAS BUSINESS BRITISH GAS BUSINESS,89196,06/11/2023,854445740,OLSTN WET,21/11/2023,629.16,3145.8,3774.96,OLSN - Swimming,Gas,60305
http://statistics.data.gov.uk/id/local-authority/12UE,Huntingdonshire District Council,200126,BRITISH GAS BUSINESS BRITISH GAS BUSINESS,90357,05/12/2023,888015106,OLSN Wet Nov23,11/12/2023,785.48,3927.42,4712.9,OLSN - Swimming,Gas,60305
http://statistics.data.gov.uk/id/local-authority/12UE,Huntingdonshire District Council,200126,BRITISH GAS BUSINESS BRITISH GAS BUSINESS,90867,19/12/2023,721879701,OLSN Wet Nov23 Reissued,21/12/2023,809.33,4046.67,4856,OLSN - Swimming,Gas,60305
http://statistics.data.gov.uk/id/local-authority/12UE,Huntingdonshire District Council,202749,COMPLETE POOL CONTROLS LTD,87379,05/10/2023,INV092793,OLSN Pool Chemicals,27/10/2023,181.27,906.34,1087.61,OLSN - Swimming,Chemicals,64000
http://statistics.data.gov.uk/id/local-authority/12UE,Huntingdonshire District Council,202749,COMPLETE POOL CONTROLS LTD,89157,14/11/2023,INV094010,OLSN Pool Chemicals,07/12/2023,181.27,906.34,1087.61,OLSN - Swimming,Chemicals,64000
http://statistics.data.gov.uk/id/local-authority/12UE,Huntingdonshire District Council,200117,BRAMBLE HUB LTD BRAMBLE HUB LTD,87215,28/09/2023,INV-13678,OL Data Cleansing,19/10/2023,166.11,830.54,996.65,One Leisure Call Centre Income,Ict Hardware,64070
http://statistics.data.gov.uk/id/local-authority/12UE,Huntingdonshire District Council,200072,B & H DIGITAL LTD B & H DIGITAL LTD,86746,27/09/2023,41752,Print - Health Walk Leaflets,19/10/2023,0,275,275,Integrated Lifestyle Service,"Advertising, Publicity And Marketing",62005
http://statistics.data.gov.uk/id/local-authority/12UE,Huntingdonshire District Council,200072,B & H DIGITAL LTD B & H DIGITAL LTD,86746,27/09/2023,41752,Print - Health Walk Leaflets,19/10/2023,0,684.62,684.62,Integrated Lifestyle Service,"Advertising, Publicity And Marketing",62005
http://statistics.data.gov.uk/id/local-authority/12UE,Huntingdonshire District Council,200542,MIRAMAR ENGINEERING LTD MIRAMAR ENGINEERING LTD,89963,24/11/2023,12541,HCP Replace Boiler Pump,18/12/2023,99.78,498.88,598.66,H'Brooke Countryside Centre,Maintenance - Building,60201
http://statistics.data.gov.uk/id/local-authority/12UE,Huntingdonshire District Council,200373,HI-SPEC FACILITIES SERVICES PLC HI-SPEC FACILITIES SERVICES PLC,87885,31/08/2023,52904,Various Sites Cleaning Aug23,23/10/2023,115.86,579.28,695.14,H'Brooke Countryside Centre,Cleaning Contract,60502
http://statistics.data.gov.uk/id/local-authority/12UE,Huntingdonshire District Council,200373,HI-SPEC FACILITIES SERVICES PLC HI-SPEC FACILITIES SERVICES PLC,87170,30/09/2023,53123,Monthly Cleaning Service Sep23,19/10/2023,125.51,627.55,753.06,H'Brooke Countryside Centre,Cleaning Contract,60502
http://statistics.data.gov.uk/id/local-authority/12UE,Huntingdonshire District Council,200373,HI-SPEC FACILITIES SERVICES PLC HI-SPEC FACILITIES SERVICES PLC,88816,31/10/2023,53360,Monthly Cleaning Service Oct23,24/11/2023,125.51,627.55,753.06,H'Brooke Countryside Centre,Cleaning Contract,60502
http://statistics.data.gov.uk/id/local-authority/12UE,Huntingdonshire District Council,200373,HI-SPEC FACILITIES SERVICES PLC HI-SPEC FACILITIES SERVICES PLC,90784,30/11/2023,53607,Monthly Cleaning Service Nov23,21/12/2023,125.51,627.55,753.06,H'Brooke Countryside Centre,Cleaning Contract,60502
http://statistics.data.gov.uk/id/local-authority/12UE,Huntingdonshire District Council,202135,TOTAL GAS AND POWER LTD,87956,08/10/2023,316397560/23,HCP Caf� Sep23,23/10/2023,264.32,1321.6,1585.92,Hinchingbrooke Park Cafe,Electricity,60303
http://statistics.data.gov.uk/id/local-authority/12UE,Huntingdonshire District Council,202135,TOTAL GAS AND POWER LTD,89746,18/11/2023,321054398/23,HCP Caf� Oct23,07/12/2023,368.45,1842.26,2210.71,Hinchingbrooke Park Cafe,Electricity,60303
http://statistics.data.gov.uk/id/local-authority/12UE,Huntingdonshire District Council,202633,REDACTED,89082,09/11/2023,20,HCP Items For Sale,01/12/2023,0,639.9,639.9,Hinchingbrooke Park Cafe,Goods For Resale,61400
http://statistics.data.gov.uk/id/local-authority/12UE,Huntingdonshire District Council,203370,Epos Now (UK) Ltd,88329,18/09/2023,337226,Equipment,02/11/2023,219.1,1095.49,1314.59,Hinchingbrooke Park Cafe,Equipment,61713
http://statistics.data.gov.uk/id/local-authority/12UE,Huntingdonshire District Council,200462,KING BROS KING BROS,90564,30/10/2023,274605,HCP Catering & Vending Supplies,18/12/2023,51.5,257.49,308.99,Hinchingbrooke Park Cafe,Catering Supplies,61900
http://statistics.data.gov.uk/id/local-authority/12UE,Huntingdonshire District Council,200462,KING BROS KING BROS,87836,18/10/2023,273179,HCP Catering/Vending Supplies,09/11/2023,51.68,258.42,310.1,Hinchingbrooke Park Cafe,Catering Supplies,61900
http://statistics.data.gov.uk/id/local-authority/12UE,Huntingdonshire District Council,200462,KING BROS KING BROS,87542,20/09/2023,269028,HCP Catering/Vending Supplies,13/10/2023,51.88,259.42,311.3,Hinchingbrooke Park Cafe,Catering Supplies,61900
http://statistics.data.gov.uk/id/local-authority/12UE,Huntingdonshire District Council,200462,KING BROS KING BROS,87646,30/09/2023,270541,HCP Catering/Vending Supplies,19/10/2023,0,263.52,263.52,Hinchingbrooke Park Cafe,Catering Supplies,61900
http://statistics.data.gov.uk/id/local-authority/12UE,Huntingdonshire District Council,200462,KING BROS KING BROS,90562,04/11/2023,275583,HCP Catering & Vending Supplies,18/12/2023,53.51,267.56,321.07,Hinchingbrooke Park Cafe,Catering Supplies,61900
http://statistics.data.gov.uk/id/local-authority/12UE,Huntingdonshire District Council,200462,KING BROS KING BROS,90565,27/10/2023,274362,HCP Catering & Vending Supplies,18/12/2023,0,268.1,268.1,Hinchingbrooke Park Cafe,Catering Supplies,61900
http://statistics.data.gov.uk/id/local-authority/12UE,Huntingdonshire District Council,200462,KING BROS KING BROS,86926,16/08/2023,264083,HCP Catering/Vending Supplies,05/10/2023,0,275.4,275.4,Hinchingbrooke Park Cafe,Catering Supplies,61900
http://statistics.data.gov.uk/id/local-authority/12UE,Huntingdonshire District Council,200462,KING BROS KING BROS,87640,10/10/2023,271943,HCP Catering/Vending Supplies,02/11/2023,0,275.44,275.44,Hinchingbrooke Park Cafe,Catering Supplies,61900
http://statistics.data.gov.uk/id/local-authority/12UE,Huntingdonshire District Council,200462,KING BROS KING BROS,86788,14/09/2023,268206,HCP Catering/Vending Supplies,05/10/2023,0,285,285,Hinchingbrooke Park Cafe,Catering Supplies,61900
http://statistics.data.gov.uk/id/local-authority/12UE,Huntingdonshire District Council,200462,KING BROS KING BROS,87542,20/09/2023,269028,HCP Catering/Vending Supplies,13/10/2023,0,287.95,287.95,Hinchingbrooke Park Cafe,Catering Supplies,61900
http://statistics.data.gov.uk/id/local-authority/12UE,Huntingdonshire District Council,200462,KING BROS KING BROS,87662,16/10/2023,272792,HCP Catering/Vending Supplies,09/11/2023,59.79,298.96,358.75,Hinchingbrooke Park Cafe,Catering Supplies,61900
http://statistics.data.gov.uk/id/local-authority/12UE,Huntingdonshire District Council,200462,KING BROS KING BROS,89764,25/11/2023,278920,HCP Catering & Vending Supplies,18/12/2023,0,319.27,319.27,Hinchingbrooke Park Cafe,Catering Supplies,61900
http://statistics.data.gov.uk/id/local-authority/12UE,Huntingdonshire District Council,200462,KING BROS KING BROS,87836,18/10/2023,273179,HCP Catering/Vending Supplies,09/11/2023,0,320.97,320.97,Hinchingbrooke Park Cafe,Catering Supplies,61900
http://statistics.data.gov.uk/id/local-authority/12UE,Huntingdonshire District Council,200462,KING BROS KING BROS,89223,13/11/2023,276807,HCP Catering & Vending Supplies,07/12/2023,0,325.11,325.11,Hinchingbrooke Park Cafe,Catering Supplies,61900
http://statistics.data.gov.uk/id/local-authority/12UE,Huntingdonshire District Council,200462,KING BROS KING BROS,87543,26/09/2023,269874,HCP Catering/Vending Supplies,19/10/2023,67.94,339.68,407.62,Hinchingbrooke Park Cafe,Catering Supplies,61900
http://statistics.data.gov.uk/id/local-authority/12UE,Huntingdonshire District Council,200462,KING BROS KING BROS,87540,18/09/2023,268612,HCP Catering/Vending Supplies,13/10/2023,0,370.89,370.89,Hinchingbrooke Park Cafe,Catering Supplies,61900
http://statistics.data.gov.uk/id/local-authority/12UE,Huntingdonshire District Council,200462,KING BROS KING BROS,87662,16/10/2023,272792,HCP Catering/Vending Supplies,09/11/2023,0,384.04,384.04,Hinchingbrooke Park Cafe,Catering Supplies,61900
http://statistics.data.gov.uk/id/local-authority/12UE,Huntingdonshire District Council,200462,KING BROS KING BROS,90559,06/10/2023,271565,HCP Catering & Vending Supplies,18/12/2023,78.78,393.89,472.67,Hinchingbrooke Park Cafe,Catering Supplies,61900
http://statistics.data.gov.uk/id/local-authority/12UE,Huntingdonshire District Council,200462,KING BROS KING BROS,87543,26/09/2023,269874,HCP Catering/Vending Supplies,19/10/2023,0,397.22,397.22,Hinchingbrooke Park Cafe,Catering Supplies,61900
http://statistics.data.gov.uk/id/local-authority/12UE,Huntingdonshire District Council,200462,KING BROS KING BROS,87642,07/10/2023,271647,HCP Catering/Vending Supplies,27/10/2023,0,398.38,398.38,Hinchingbrooke Park Cafe,Catering Supplies,61900
http://statistics.data.gov.uk/id/local-authority/12UE,Huntingdonshire District Council,200462,KING BROS KING BROS,88737,08/08/2023,262983,HCP Catering/Vending Supplies,13/11/2023,89.87,449.37,539.24,Hinchingbrooke Park Cafe,Catering Supplies,61900
http://statistics.data.gov.uk/id/local-authority/12UE,Huntingdonshire District Council,200462,KING BROS KING BROS,87539,03/08/2023,262515,HCP Catering/Vending Supplies,13/10/2023,90.71,453.57,544.28,Hinchingbrooke Park Cafe,Catering Supplies,61900
http://statistics.data.gov.uk/id/local-authority/12UE,Huntingdonshire District Council,200462,KING BROS KING BROS,87645,02/10/2023,270694,HCP Catering/Vending Supplies,27/10/2023,0,473.83,473.83,Hinchingbrooke Park Cafe,Catering Supplies,61900
http://statistics.data.gov.uk/id/local-authority/12UE,Huntingdonshire District Council,200462,KING BROS KING BROS,88737,08/08/2023,262983,HCP Catering/Vending Supplies,13/11/2023,0,488.26,488.26,Hinchingbrooke Park Cafe,Catering Supplies,61900
http://statistics.data.gov.uk/id/local-authority/12UE,Huntingdonshire District Council,200462,KING BROS KING BROS,90566,24/10/2023,273855,HCP Catering & Vending Supplies,18/12/2023,0,510.66,510.66,Hinchingbrooke Park Cafe,Catering Supplies,61900
http://statistics.data.gov.uk/id/local-authority/12UE,Huntingdonshire District Council,200462,KING BROS KING BROS,87640,10/10/2023,271943,HCP Catering/Vending Supplies,02/11/2023,109.03,545.14,654.17,Hinchingbrooke Park Cafe,Catering Supplies,61900
http://statistics.data.gov.uk/id/local-authority/12UE,Huntingdonshire District Council,200462,KING BROS KING BROS,87540,18/09/2023,268612,HCP Catering/Vending Supplies,13/10/2023,110.76,553.8,664.56,Hinchingbrooke Park Cafe,Catering Supplies,61900
http://statistics.data.gov.uk/id/local-authority/12UE,Huntingdonshire District Council,200571,NISBETS NISBETS,87545,27/09/2023,27592756,HCP Catering Equipment,19/10/2023,80,399.98,479.98,Hinchingbrooke Park Cafe,Catering Equipment,61901
http://statistics.data.gov.uk/id/local-authority/12UE,Huntingdonshire District Council,200571,NISBETS NISBETS,90560,27/09/2023,26306532,HCP Catering Equipment,18/12/2023,80,399.98,479.98,Hinchingbrooke Park Cafe,Catering Equipment,61901
http://statistics.data.gov.uk/id/local-authority/12UE,Huntingdonshire District Council,200075,B S GRAVES ELECTRICAL LTD B S GRAVES ELECTRICAL LTD,90452,29/11/2023,31404,Building Alterations - CC 32A Socket,21/12/2023,123.5,617.5,741,Hinchingbrooke Park Management,Site Alterations And Materials,60273
http://statistics.data.gov.uk/id/local-authority/12UE,Huntingdonshire District Council,200913,WAVE  ANGLIAN WATER BUSINESS,87915,14/10/2023,12668216,HCP Jul-Oct23,23/10/2023,0,660.45,660.45,Hinchingbrooke Park Management,Water And Sewerage,60302
http://statistics.data.gov.uk/id/local-authority/12UE,Huntingdonshire District Council,202135,TOTAL GAS AND POWER LTD,87957,08/10/2023,316397735/23,HCP Visitors Centre Sep23,23/10/2023,15.26,305.16,320.42,Hinchingbrooke Park Management,Electricity,60303
http://statistics.data.gov.uk/id/local-authority/12UE,Huntingdonshire District Council,202135,TOTAL GAS AND POWER LTD,89747,18/11/2023,321054563/23,HCP Visitors Centre Oct23,07/12/2023,20.41,408.26,428.67,Hinchingbrooke Park Management,Electricity,60303
http://statistics.data.gov.uk/id/local-authority/12UE,Huntingdonshire District Council,200390,HEVEY BUILDING SUPPLIES LTD HUNTINGDON TIMBER SUPPLIES,89482,27/09/2023,949641,HCP Materials - Roofing,27/11/2023,60.72,303.6,364.32,Hinchingbrooke Park Management,Materials,61709
http://statistics.data.gov.uk/id/local-authority/12UE,Huntingdonshire District Council,200072,B & H DIGITAL LTD B & H DIGITAL LTD,89328,20/11/2023,42203,Print - Park Signage,18/12/2023,73.33,366.67,440,Barford Road Pocket Park,Signs,60299
http://statistics.data.gov.uk/id/local-authority/12UE,Huntingdonshire District Council,202834,MCVEIGH PARKER & CO LTD,88297,27/10/2023,37108,Materials,17/11/2023,81.59,407.96,489.55,Barford Road Pocket Park,Materials,61709
http://statistics.data.gov.uk/id/local-authority/12UE,Huntingdonshire District Council,202448,FIBREGRID LTD,89880,07/11/2023,100/10029225,St Ives NR Materials,07/12/2023,50,250,300,Holt Island,Materials,61709
http://statistics.data.gov.uk/id/local-authority/12UE,Huntingdonshire District Council,202448,FIBREGRID LTD,89880,07/11/2023,100/10029225,St Ives NR Materials,07/12/2023,132,660,792,Holt Island,Materials,61709
http://statistics.data.gov.uk/id/local-authority/12UE,Huntingdonshire District Council,202448,FIBREGRID LTD,89880,07/11/2023,100/10029225,St Ives NR Materials,07/12/2023,549,2745,3294,Holt Island,Materials,61709
http://statistics.data.gov.uk/id/local-authority/12UE,Huntingdonshire District Council,201158,KITE UTILITY SERVICES LTD,88665,20/10/2023,INV1762,Pump Station Services,09/11/2023,95,475,570,Paxton Pits,Maintenance - Building,60201
http://statistics.data.gov.uk/id/local-authority/12UE,Huntingdonshire District Council,202135,TOTAL GAS AND POWER LTD,89664,18/11/2023,321054288/23,Little Paxton VC Oct23,01/12/2023,86.16,430.81,516.97,Paxton Pits,Electricity,60303
http://statistics.data.gov.uk/id/local-authority/12UE,Huntingdonshire District Council,202135,TOTAL GAS AND POWER LTD,87985,08/10/2023,316397450/23,Little Paxton VC Sep23,27/10/2023,97.85,489.25,587.1,Paxton Pits,Electricity,60303
http://statistics.data.gov.uk/id/local-authority/12UE,Huntingdonshire District Council,203376,Heyland Marine,88093,24/10/2023,INV-0203,Deposit - Heyland Floating Platform,27/10/2023,480,2400,2880,Paxton Pits,"Purchase - Equipment, Furniture And Materials",61703
http://statistics.data.gov.uk/id/local-authority/12UE,Huntingdonshire District Council,202488,FILCRIS LTD,89257,19/09/2023,54870,Materials,24/11/2023,105.16,525.8,630.96,Paxton Pits,Materials,61709
http://statistics.data.gov.uk/id/local-authority/12UE,Huntingdonshire District Council,203364,REDACTED,87526,06/10/2023,63,Mooring Tree Clear Up,27/10/2023,0,320,320,Paxton Pits,Tree Works,64040
http://statistics.data.gov.uk/id/local-authority/12UE,Huntingdonshire District Council,200250,DTS SOLUTIONS (UK) LTD DTS SOLUTIONS (UK) LTD,86394,19/09/2023,S012102,Paxton Pits NR - IT Licences,13/10/2023,136,680,816,Paxton Pits,Ict Licences,64072
http://statistics.data.gov.uk/id/local-authority/12UE,Huntingdonshire District Council,200451,K & M LIGHTING SERVICES LTD K & M LIGHTING SERVICES LTD,86553,20/09/2023,8306,Hill Rise Skate Park - Replace Clocks,13/10/2023,114.48,572.39,686.87,Parks & Open Spaces,Maintenance - Building,60201
http://statistics.data.gov.uk/id/local-authority/12UE,Huntingdonshire District Council,200355,HAGS-SMP LTD HAGS-SMP LTD,88001,17/07/2023,90441,Oxmoor Playground Equipment Repairs,23/10/2023,582,2910,3492,Parks & Open Spaces,Maintenance - Building,60201
http://statistics.data.gov.uk/id/local-authority/12UE,Huntingdonshire District Council,200355,HAGS-SMP LTD HAGS-SMP LTD,88981,29/09/2023,92043,Playground Equipment,17/11/2023,10010,50050,60060,Parks & Open Spaces,Maintenance - Building,60201
http://statistics.data.gov.uk/id/local-authority/12UE,Huntingdonshire District Council,201118,ST NEOTS FENCING COMPANY LTD,89090,09/11/2023,INV-4192A,H'don Riverside Knee Railing,01/12/2023,58.43,292.13,350.56,Parks & Open Spaces,Site Alterations And Materials,60273
http://statistics.data.gov.uk/id/local-authority/12UE,Huntingdonshire District Council,201118,ST NEOTS FENCING COMPANY LTD,88285,28/10/2023,INV-4907A,River Road - Knee Railing Removal,17/11/2023,78,390,468,Parks & Open Spaces,Site Alterations And Materials,60273
http://statistics.data.gov.uk/id/local-authority/12UE,Huntingdonshire District Council,201118,ST NEOTS FENCING COMPANY LTD,87725,11/09/2023,INV-4877A,Church Lane Bollard,19/10/2023,111.62,558.1,669.72,Parks & Open Spaces,Site Alterations And Materials,60273
http://statistics.data.gov.uk/id/local-authority/12UE,Huntingdonshire District Council,201118,ST NEOTS FENCING COMPANY LTD,87303,06/10/2023,INV-4902A,Knee Railing - Hill Estate,27/10/2023,248.2,1241,1489.2,Parks & Open Spaces,Site Alterations And Materials,60273
http://statistics.data.gov.uk/id/local-authority/12UE,Huntingdonshire District Council,202918,NPower Commercial Gas Ltd,87147,04/10/2023,IN08558759,Views Common Footpath & CP Jul-Sep23,13/10/2023,23.7,474.07,497.77,Parks & Open Spaces,Electricity,60303
http://statistics.data.gov.uk/id/local-authority/12UE,Huntingdonshire District Council,200373,HI-SPEC FACILITIES SERVICES PLC HI-SPEC FACILITIES SERVICES PLC,87885,31/08/2023,52904,Various Sites Cleaning Aug23,23/10/2023,178.7,893.52,1072.22,Parks & Open Spaces,Cleaning Contract,60502
http://statistics.data.gov.uk/id/local-authority/12UE,Huntingdonshire District Council,200373,HI-SPEC FACILITIES SERVICES PLC HI-SPEC FACILITIES SERVICES PLC,87170,30/09/2023,53123,Monthly Cleaning Service Sep23,19/10/2023,193.6,967.98,1161.58,Parks & Open Spaces,Cleaning Contract,60502
http://statistics.data.gov.uk/id/local-authority/12UE,Huntingdonshire District Council,200373,HI-SPEC FACILITIES SERVICES PLC HI-SPEC FACILITIES SERVICES PLC,88816,31/10/2023,53360,Monthly Cleaning Service Oct23,24/11/2023,193.6,967.98,1161.58,Parks & Open Spaces,Cleaning Contract,60502
http://statistics.data.gov.uk/id/local-authority/12UE,Huntingdonshire District Council,200373,HI-SPEC FACILITIES SERVICES PLC HI-SPEC FACILITIES SERVICES PLC,90784,30/11/2023,53607,Monthly Cleaning Service Nov23,21/12/2023,193.6,967.98,1161.58,Parks & Open Spaces,Cleaning Contract,60502
http://statistics.data.gov.uk/id/local-authority/12UE,Huntingdonshire District Council,200466,KOMPAN LTD KOMPAN LTD,90515,03/11/2023,250047,Playground Equipment,18/12/2023,51.2,256,307.2,Parks & Open Spaces,Playground Equipment,61706
http://statistics.data.gov.uk/id/local-authority/12UE,Huntingdonshire District Council,200355,HAGS-SMP LTD HAGS-SMP LTD,88776,30/10/2023,92529,Playground Equipment,24/11/2023,54.34,271.72,326.06,Parks & Open Spaces,Playground Equipment,61706
http://statistics.data.gov.uk/id/local-authority/12UE,Huntingdonshire District Council,200466,KOMPAN LTD KOMPAN LTD,90515,03/11/2023,250047,Playground Equipment,18/12/2023,59,295,354,Parks & Open Spaces,Playground Equipment,61706
http://statistics.data.gov.uk/id/local-authority/12UE,Huntingdonshire District Council,200466,KOMPAN LTD KOMPAN LTD,87480,08/09/2023,248862,Playground Equipment,13/10/2023,86,430,516,Parks & Open Spaces,Playground Equipment,61706
http://statistics.data.gov.uk/id/local-authority/12UE,Huntingdonshire District Council,203212,Reids Playground Maintenance Ltd,88392,15/08/2023,5735,Fit New Cableway/Safety Inspection,06/11/2023,90,450,540,Parks & Open Spaces,Playground Equipment,61706
http://statistics.data.gov.uk/id/local-authority/12UE,Huntingdonshire District Council,200355,HAGS-SMP LTD HAGS-SMP LTD,88776,30/10/2023,92529,Playground Equipment,24/11/2023,120.89,604.44,725.33,Parks & Open Spaces,Playground Equipment,61706
http://statistics.data.gov.uk/id/local-authority/12UE,Huntingdonshire District Council,203212,Reids Playground Maintenance Ltd,88392,15/08/2023,5735,Fit New Cableway/Safety Inspection,06/11/2023,150,750,900,Parks & Open Spaces,Playground Equipment,61706
http://statistics.data.gov.uk/id/local-authority/12UE,Huntingdonshire District Council,203201,Zurich Management Services Ltd,87491,23/06/2023,BILL0000000045622,Playground Equipment - Ramps,13/10/2023,183.2,916,1099.2,Parks & Open Spaces,Playground Equipment,61706
http://statistics.data.gov.uk/id/local-authority/12UE,Huntingdonshire District Council,203212,Reids Playground Maintenance Ltd,88391,26/07/2023,5681,Refurbish Cableway - Priory Park,06/11/2023,205,1025,1230,Parks & Open Spaces,Playground Equipment,61706
http://statistics.data.gov.uk/id/local-authority/12UE,Huntingdonshire District Council,203363,East Anglian Haulage Ltd T/A Madingley Mulch,88324,04/10/2023,10289908,Play Area Mulch,02/11/2023,237.6,1188,1425.6,Parks & Open Spaces,Playground Equipment,61706
http://statistics.data.gov.uk/id/local-authority/12UE,Huntingdonshire District Council,203201,Zurich Management Services Ltd,87492,11/07/2023,BILL0000000045724,Playground Equipment Inspection Report,13/10/2023,246.6,1233,1479.6,Parks & Open Spaces,Playground Equipment,61706
http://statistics.data.gov.uk/id/local-authority/12UE,Huntingdonshire District Council,203212,Reids Playground Maintenance Ltd,88393,25/10/2023,5865,Oxmoor Lane & Wetpour - Repairs,17/11/2023,350,1750,2100,Parks & Open Spaces,Playground Equipment,61706
http://statistics.data.gov.uk/id/local-authority/12UE,Huntingdonshire District Council,201118,ST NEOTS FENCING COMPANY LTD,87697,13/10/2023,INV-4903A,Replacement Gateway,02/11/2023,360.5,1802.5,2163,Parks & Open Spaces,Playground Equipment,61706
http://statistics.data.gov.uk/id/local-authority/12UE,Huntingdonshire District Council,203212,Reids Playground Maintenance Ltd,88393,25/10/2023,5865,Oxmoor Lane & Wetpour - Repairs,17/11/2023,1042,5210,6252,Parks & Open Spaces,Playground Equipment,61706
http://statistics.data.gov.uk/id/local-authority/12UE,Huntingdonshire District Council,203396,Ground Tech East Anglia Limited,88413,31/08/2023,62,Season Start Pitch Marking,06/11/2023,372,1860,2232,Parks & Open Spaces,Materials,61709
http://statistics.data.gov.uk/id/local-authority/12UE,Huntingdonshire District Council,202997,Partnering Regeneration Development Ltd,88444,28/09/2023,1113,Consultancy Fees,06/11/2023,696.3,3481.5,4177.8,Parks & Open Spaces,Subcontractors,62401
http://statistics.data.gov.uk/id/local-authority/12UE,Huntingdonshire District Council,202997,Partnering Regeneration Development Ltd,89959,29/11/2023,1148,Consultancy Fees,21/12/2023,808.85,4044.26,4853.11,Parks & Open Spaces,Subcontractors,62401
http://statistics.data.gov.uk/id/local-authority/12UE,Huntingdonshire District Council,200311,FREETHS  LLP FREETHS  LLP,88653,27/09/2023,428470,Legal Fees,09/11/2023,120,600,720,Parks & Open Spaces,Legal Fees,63200
http://statistics.data.gov.uk/id/local-authority/12UE,Huntingdonshire District Council,200311,FREETHS  LLP FREETHS  LLP,88655,31/03/2023,389456,Legal Fees,09/11/2023,253.6,1268,1521.6,Parks & Open Spaces,Legal Fees,63200
http://statistics.data.gov.uk/id/local-authority/12UE,Huntingdonshire District Council,200054,APSE APSE,87573,18/07/2023,2324/860,Conference Expenses,13/10/2023,109.2,546,655.2,Parks & Open Spaces,Conference Expenses,64300
http://statistics.data.gov.uk/id/local-authority/12UE,Huntingdonshire District Council,200913,WAVE  ANGLIAN WATER BUSINESS,89684,04/11/2023,12752016,Hartford Rd Sports Pav Aug-Nov23,01/12/2023,0,266.29,266.29,Parks & Open Spaces,Water And Sewerage,60302
http://statistics.data.gov.uk/id/local-authority/12UE,Huntingdonshire District Council,202135,TOTAL GAS AND POWER LTD,87991,08/10/2023,316397340/23,Priory Park Pav Old Sep23,23/10/2023,91.26,456.28,547.54,Parks & Open Spaces,Electricity,60303
http://statistics.data.gov.uk/id/local-authority/12UE,Huntingdonshire District Council,202135,TOTAL GAS AND POWER LTD,87989,08/10/2023,316397669/23,Priory Park Pav New Sep23,23/10/2023,189.87,949.37,1139.24,Parks & Open Spaces,Electricity,60303
http://statistics.data.gov.uk/id/local-authority/12UE,Huntingdonshire District Council,201607,GROUNDWORK EAST,90690,07/12/2023,1000009466,GreenSkills Project 3 Materials,21/12/2023,399.55,1997.73,2397.28,Biodiversity For All,Materials,61709
http://statistics.data.gov.uk/id/local-authority/12UE,Huntingdonshire District Council,200060,ARTHUR IBBETT LTD ARTHUR IBBETT LTD,87312,03/10/2023,161169,Materials,27/10/2023,82,410,492,Biodiversity For All,Equipment,61713
http://statistics.data.gov.uk/id/local-authority/12UE,Huntingdonshire District Council,200060,ARTHUR IBBETT LTD ARTHUR IBBETT LTD,87312,03/10/2023,161169,Materials,27/10/2023,87,435,522,Biodiversity For All,Equipment,61713
http://statistics.data.gov.uk/id/local-authority/12UE,Huntingdonshire District Council,200060,ARTHUR IBBETT LTD ARTHUR IBBETT LTD,87312,03/10/2023,161169,Materials,27/10/2023,114,570,684,Biodiversity For All,Equipment,61713
http://statistics.data.gov.uk/id/local-authority/12UE,Huntingdonshire District Council,200060,ARTHUR IBBETT LTD ARTHUR IBBETT LTD,87312,03/10/2023,161169,Materials,27/10/2023,258,1290,1548,Biodiversity For All,Equipment,61713
http://statistics.data.gov.uk/id/local-authority/12UE,Huntingdonshire District Council,202132,NHBS LTD,87682,29/09/2023,V817857,Various Ecological,19/10/2023,271.85,1359.27,1631.12,Biodiversity For All,Equipment,61713
http://statistics.data.gov.uk/id/local-authority/12UE,Huntingdonshire District Council,201138,BORNEY UK LTD,88947,15/11/2023,58597,External Printing,07/12/2023,222.54,1112.7,1335.24,Biodiversity For All,"Advertising, Publicity And Marketing",62005
http://statistics.data.gov.uk/id/local-authority/12UE,Huntingdonshire District Council,203410,REDACTED,89541,24/11/2023,4097,Consultancy Fees 17.11.23,18/12/2023,0,1310,1310,Biodiversity For All,Consultancy Fees,62400
http://statistics.data.gov.uk/id/local-authority/12UE,Huntingdonshire District Council,202780,MKA ECOLOGY LIMITED,89445,08/09/2023,2112624,HDC Biodiversity Audit,24/11/2023,700,3500,4200,Biodiversity For All,Consultancy Fees,62400
http://statistics.data.gov.uk/id/local-authority/12UE,Huntingdonshire District Council,201607,GROUNDWORK EAST,90689,07/12/2023,1000009465,Consultancy Fees,21/12/2023,5887,29435,35322,Biodiversity For All,Consultancy Fees,62400
http://statistics.data.gov.uk/id/local-authority/12UE,Huntingdonshire District Council,202780,MKA ECOLOGY LIMITED,88762,08/09/2023,2112631,GCN eDNA Surey,13/11/2023,191,955,1146,Biodiversity For All,Surveys,64020
http://statistics.data.gov.uk/id/local-authority/12UE,Huntingdonshire District Council,200480,LAVAT CONSULTING LTD T/A PSTAX LAVAT CONSULTING LTD T/A PSTAX,89888,31/10/2023,INV-111629,Partial Exemption Calculation,07/12/2023,280,1400,1680,Corporate Finance,Consultancy Fees,62400
http://statistics.data.gov.uk/id/local-authority/12UE,Huntingdonshire District Council,203340,SW19Lawyers,87447,12/09/2023,5303,Employment Advice,13/10/2023,100,500,600,Head Of Leisure & Health,Pay In Lieu Of Notice,60018
http://statistics.data.gov.uk/id/local-authority/12UE,Huntingdonshire District Council,200292,FENNERS CHAMBERS FENNERS CHAMBERS,87306,04/10/2023,394725 04.10.23,Professional Services,27/10/2023,132,660,792,Head Of Leisure & Health,Legal Fees,63200
http://statistics.data.gov.uk/id/local-authority/12UE,Huntingdonshire District Council,203163,REDACTED,89966,29/11/2023,HDC CATERING 291123,EFH Catering 29.11.23,18/12/2023,0,1711,1711,Head Of Operations,Catering Services,61902
http://statistics.data.gov.uk/id/local-authority/12UE,Huntingdonshire District Council,200731,SOLACE IN BUSINESS SOLACE IN BUSINESS,88926,14/11/2023,13390,Staff Recruitment Costs,07/12/2023,125.96,629.79,755.75,Managing Directors Team,Staff Recruitment Costs,60116
http://statistics.data.gov.uk/id/local-authority/12UE,Huntingdonshire District Council,200731,SOLACE IN BUSINESS SOLACE IN BUSINESS,88431,31/10/2023,13353,Staff Recruitment Costs,24/11/2023,161.95,809.73,971.68,Managing Directors Team,Staff Recruitment Costs,60116
http://statistics.data.gov.uk/id/local-authority/12UE,Huntingdonshire District Council,203400,Coulter Elite Resourcing Ltd,88666,24/10/2023,INV-S-0106,Staff Recruitment Costs,17/11/2023,220,1100,1320,Managing Directors Team,Staff Recruitment Costs,60116
http://statistics.data.gov.uk/id/local-authority/12UE,Huntingdonshire District Council,200731,SOLACE IN BUSINESS SOLACE IN BUSINESS,88926,14/11/2023,13390,Staff Recruitment Costs,07/12/2023,220.43,1102.13,1322.56,Managing Directors Team,Staff Recruitment Costs,60116
http://statistics.data.gov.uk/id/local-authority/12UE,Huntingdonshire District Council,200731,SOLACE IN BUSINESS SOLACE IN BUSINESS,88431,31/10/2023,13353,Staff Recruitment Costs,24/11/2023,283.41,1417.02,1700.43,Managing Directors Team,Staff Recruitment Costs,60116
http://statistics.data.gov.uk/id/local-authority/12UE,Huntingdonshire District Council,200731,SOLACE IN BUSINESS SOLACE IN BUSINESS,88926,14/11/2023,13390,Staff Recruitment Costs,07/12/2023,283.41,1417.02,1700.43,Managing Directors Team,Staff Recruitment Costs,60116
http://statistics.data.gov.uk/id/local-authority/12UE,Huntingdonshire District Council,200731,SOLACE IN BUSINESS SOLACE IN BUSINESS,86263,19/09/2023,13264,Staff Recruitment Costs,13/10/2023,305.27,1526.35,1831.62,Managing Directors Team,Staff Recruitment Costs,60116
http://statistics.data.gov.uk/id/local-authority/12UE,Huntingdonshire District Council,200731,SOLACE IN BUSINESS SOLACE IN BUSINESS,88431,31/10/2023,13353,Staff Recruitment Costs,24/11/2023,364.38,1821.89,2186.27,Managing Directors Team,Staff Recruitment Costs,60116
http://statistics.data.gov.uk/id/local-authority/12UE,Huntingdonshire District Council,200731,SOLACE IN BUSINESS SOLACE IN BUSINESS,87507,20/07/2023,13155,Staff Recruitment Costs,13/10/2023,519.88,2599.4,3119.28,Managing Directors Team,Staff Recruitment Costs,60116
http://statistics.data.gov.uk/id/local-authority/12UE,Huntingdonshire District Council,203156,Navigate NDC Limited,89825,13/10/2023,21613,Staff Recruitment Costs,04/12/2023,1281,6405,7686,Managing Directors Team,Staff Recruitment Costs,60116
http://statistics.data.gov.uk/id/local-authority/12UE,Huntingdonshire District Council,200255,EAST OF ENGLAND LGA EAST OF ENGLAND LGA,90835,11/09/2023,1003239,Pension Liability - 23/24 Contribution,21/12/2023,0,2000,2000,Managing Directors Team,Membership And Subscriptions,64800
http://statistics.data.gov.uk/id/local-authority/12UE,Huntingdonshire District Council,201054,Cambridgeshire Pension Fund,87233,16/08/2023,4.23E+11,Asset Ceiling Calculations 23/24,09/10/2023,150,750,900,Non Distributed Costs,Pension Increase Act Payments,60101
http://statistics.data.gov.uk/id/local-authority/12UE,Huntingdonshire District Council,201054,Cambridgeshire Pension Fund,87226,05/09/2023,4.23E+11,Unfunded Pension Aug23,09/10/2023,0,14486.73,14486.73,Non Distributed Costs,Pension Increase Act Payments,60101
http://statistics.data.gov.uk/id/local-authority/12UE,Huntingdonshire District Council,201054,Cambridgeshire Pension Fund,87429,10/10/2023,4.23E+11,Unfunded Pension Sep23,02/11/2023,0,14507.9,14507.9,Non Distributed Costs,Pension Increase Act Payments,60101
http://statistics.data.gov.uk/id/local-authority/12UE,Huntingdonshire District Council,201054,Cambridgeshire Pension Fund,87321,01/07/2023,4.23E+11,Unfunded Pension Apr/May23,13/10/2023,0,28642.36,28642.36,Non Distributed Costs,Pension Increase Act Payments,60101
http://statistics.data.gov.uk/id/local-authority/12UE,Huntingdonshire District Council,201054,Cambridgeshire Pension Fund,87528,10/10/2023,4.23E+11,Pension Strain- C Robert,02/11/2023,0,23112.22,23112.22,Non Distributed Costs,Pension Early Retirements,60103
http://statistics.data.gov.uk/id/local-authority/12UE,Huntingdonshire District Council,203307,Invuse Ltd,87242,30/09/2023,IC INV 0434,Intranet Project,19/10/2023,1317.33,6586.67,7904,Communications & Information,Communication Material,62009
http://statistics.data.gov.uk/id/local-authority/12UE,Huntingdonshire District Council,203307,Invuse Ltd,87514,30/08/2023,IC INV 0419,Intranet Project,13/10/2023,1317.33,6586.67,7904,Communications & Information,Communication Material,62009
http://statistics.data.gov.uk/id/local-authority/12UE,Huntingdonshire District Council,203307,Invuse Ltd,90321,31/10/2023,IC INV 0436,Intranet Project,07/12/2023,1317.33,6586.67,7904,Communications & Information,Communication Material,62009
http://statistics.data.gov.uk/id/local-authority/12UE,Huntingdonshire District Council,200827,VIVID RESOURCING LIMITED VIVID RESOURCING LIMITED,89571,22/11/2023,SLIVRL0128126,Interim Dem Services Officer 19.11.23,18/12/2023,124.55,622.75,747.3,Committee Management,Agency Staff,60011
http://statistics.data.gov.uk/id/local-authority/12UE,Huntingdonshire District Council,200159,CAMBRIDGESHIRE COUNTY COUNCIL CAMBRIDGESHIRE COUNTY COUNCIL,87449,04/10/2023,4.23E+11,Fees & Charges Income Sep23,27/10/2023,540,2700,3240,Committee Management,Agency Staff,60011
http://statistics.data.gov.uk/id/local-authority/12UE,Huntingdonshire District Council,200159,CAMBRIDGESHIRE COUNTY COUNCIL CAMBRIDGESHIRE COUNTY COUNCIL,87516,01/09/2023,4.23E+11,Fees & Charges RL Aug23,13/10/2023,540,2700,3240,Committee Management,Agency Staff,60011
http://statistics.data.gov.uk/id/local-authority/12UE,Huntingdonshire District Council,200159,CAMBRIDGESHIRE COUNTY COUNCIL CAMBRIDGESHIRE COUNTY COUNCIL,90810,01/11/2023,4.23E+11,Fees & Charges RL Oct-Nov23,21/12/2023,717.53,3587.67,4305.2,Committee Management,Agency Staff,60011
http://statistics.data.gov.uk/id/local-authority/12UE,Huntingdonshire District Council,200687,RILEY DUNN & WILSON LTD RILEY DUNN & WILSON LTD,89945,22/11/2023,4427,Minute Books,18/12/2023,130.46,652.32,782.78,Committee Management,"Purchase - Equipment, Furniture And Materials",61703
http://statistics.data.gov.uk/id/local-authority/12UE,Huntingdonshire District Council,202907,Service AV,87438,10/09/2023,3063,Streaming & Tech Support,13/10/2023,360,1800,2160,Committee Management,"Purchase - Equipment, Furniture And Materials",61703
http://statistics.data.gov.uk/id/local-authority/12UE,Huntingdonshire District Council,202907,Service AV,89431,30/10/2023,5011411,Streaming & Tech Support,24/11/2023,390,1950,2340,Committee Management,"Purchase - Equipment, Furniture And Materials",61703
http://statistics.data.gov.uk/id/local-authority/12UE,Huntingdonshire District Council,200215,CORNERSTONE BARRISTERS CORNERSTONE BARRISTERS,88702,30/10/2023,166573,Call In Advice,24/11/2023,80,400,480,Committee Management,Enquiries,63400
http://statistics.data.gov.uk/id/local-authority/12UE,Huntingdonshire District Council,202507,SELLICK PARTNERSHIP LTD,89133,05/10/2023,INV513117,W/E 08.10.23,20/11/2023,120,600,720,Programme Delivery Manager,Agency Staff,60011
http://statistics.data.gov.uk/id/local-authority/12UE,Huntingdonshire District Council,203400,Coulter Elite Resourcing Ltd,88889,18/10/2023,INV-S-0105,OL Programme Manager,17/11/2023,220,1100,1320,Programme Delivery Manager,Staff Recruitment Costs,60116
http://statistics.data.gov.uk/id/local-authority/12UE,Huntingdonshire District Council,202209,MAGPAS AIR AMBULANCE,88636,17/10/2023,INV-0420,Charity Donation - MAGPAS,09/11/2023,72,360,432,Civic Allowances & Support,Grants And Contributions,64600
http://statistics.data.gov.uk/id/local-authority/12UE,Huntingdonshire District Council,200655,SYNECTICS SECURITY LTD QUADRANT SECURITY GROUP,89917,29/11/2023,SIN107778,Upgrade Hikvision Equipment,21/12/2023,116,580,696,Cctv Huntingdonshire,"Purchase - Equipment, Furniture And Materials",61703
http://statistics.data.gov.uk/id/local-authority/12UE,Huntingdonshire District Council,200655,SYNECTICS SECURITY LTD QUADRANT SECURITY GROUP,89918,29/11/2023,SIN107777,Upgrade Hikvision Equipment,21/12/2023,116,580,696,Cctv Huntingdonshire,"Purchase - Equipment, Furniture And Materials",61703
http://statistics.data.gov.uk/id/local-authority/12UE,Huntingdonshire District Council,202943,Vetting & Screening.com,88414,30/10/2023,2023201,Staff Vetting Fee,17/11/2023,0,255,255,Cctv Shared Service Hosting,Staff Development And Training,60115
http://statistics.data.gov.uk/id/local-authority/12UE,Huntingdonshire District Council,202918,NPower Commercial Gas Ltd,87144,04/10/2023,IN08558758,Unmetered CCTV Jul-Sep23,13/10/2023,519.68,2598.38,3118.06,Cctv Shared Service Hosting,Electricity,60303
http://statistics.data.gov.uk/id/local-authority/12UE,Huntingdonshire District Council,202736,PLASS SOLUTIONS LTD,88070,20/10/2023,JP1611,Audit Fees 10.10.23,09/11/2023,80,400,480,Cctv Shared Service Hosting,Audit Fees,62100
http://statistics.data.gov.uk/id/local-authority/12UE,Huntingdonshire District Council,201155,BALFOUR BEATTY LIVING PLACES LTD,87716,16/10/2023,CSUK OU/INV/149878,CCTV Glebe Farm Power Install,09/11/2023,115.63,578.16,693.79,Cctv Shared Service Hosting,Installation Fees,64073
http://statistics.data.gov.uk/id/local-authority/12UE,Huntingdonshire District Council,200620,PLAYFORDS LTD PLAYFORDS LTD,90211,30/11/2023,25389,EFH Additional Network Points,21/12/2023,177.4,887,1064.4,Cctv Shared Service Hosting,Installation Fees,64073
http://statistics.data.gov.uk/id/local-authority/12UE,Huntingdonshire District Council,202821,CVSS LIMITED,89088,06/11/2023,41097,High Spec RDC PC Installation,01/12/2023,910.4,4552,5462.4,Cctv Shared Service Hosting,Installation Fees,64073
http://statistics.data.gov.uk/id/local-authority/12UE,Huntingdonshire District Council,200655,SYNECTICS SECURITY LTD QUADRANT SECURITY GROUP,89384,16/11/2023,SIN107521,Install CCTV Ditchburn Place,07/12/2023,4468.81,22344.03,26812.84,Cctv Shared Service Hosting,Installation Fees,64073
http://statistics.data.gov.uk/id/local-authority/12UE,Huntingdonshire District Council,200129,BRITISH TELECOMMUNICATIONS PLC BRITISH TELECOMMUNICATIONS PLC,89561,01/11/2023,20037055,Annual Charge,01/12/2023,374.82,1874.08,2248.9,Cctv Shared Service Hosting,Line Rental,64075
http://statistics.data.gov.uk/id/local-authority/12UE,Huntingdonshire District Council,200655,SYNECTICS SECURITY LTD QUADRANT SECURITY GROUP,87757,02/12/2022,SIN102426,CCTV Maintenance CITY,19/10/2023,554.42,2772.08,3326.5,Cctv Shared Service - City,"Purchase - Equipment, Furniture And Materials",61703
http://statistics.data.gov.uk/id/local-authority/12UE,Huntingdonshire District Council,200655,SYNECTICS SECURITY LTD QUADRANT SECURITY GROUP,86754,30/09/2023,SIN106627,CCTV Camera Maintenance CITY,19/10/2023,573.67,2868.33,3442,Cctv Shared Service - City,"Purchase - Equipment, Furniture And Materials",61703
http://statistics.data.gov.uk/id/local-authority/12UE,Huntingdonshire District Council,200655,SYNECTICS SECURITY LTD QUADRANT SECURITY GROUP,88786,03/11/2023,SIN107258,CCTV Maintenance CITY,24/11/2023,573.67,2868.33,3442,Cctv Shared Service - City,"Purchase - Equipment, Furniture And Materials",61703
http://statistics.data.gov.uk/id/local-authority/12UE,Huntingdonshire District Council,202881,Eversheds Sutherland (International) LLP,89654,23/11/2023,9020040339,Licences For Works,07/12/2023,250,1250,1500,Cctv Shared Service - City,Legal Fees,63200
http://statistics.data.gov.uk/id/local-authority/12UE,Huntingdonshire District Council,201155,BALFOUR BEATTY LIVING PLACES LTD,89086,08/11/2023,CSUK OU/INV/151281,"Wulstan Way, Cambs CCTV",01/12/2023,53.49,267.46,320.95,Cctv Shared Service - City,Installation Fees,64073
http://statistics.data.gov.uk/id/local-authority/12UE,Huntingdonshire District Council,201155,BALFOUR BEATTY LIVING PLACES LTD,87229,26/09/2023,CSUK OU/INV/148775,RCCTV Application - Petersfield Green,19/10/2023,55.19,275.94,331.13,Cctv Shared Service - City,Installation Fees,64073
http://statistics.data.gov.uk/id/local-authority/12UE,Huntingdonshire District Council,201155,BALFOUR BEATTY LIVING PLACES LTD,90541,02/11/2023,CSUK OU/INV/150904,CCTV Nuns Way/Harris Road,18/12/2023,56.51,282.56,339.07,Cctv Shared Service - City,Installation Fees,64073
http://statistics.data.gov.uk/id/local-authority/12UE,Huntingdonshire District Council,201155,BALFOUR BEATTY LIVING PLACES LTD,88310,26/10/2023,CSUK OU/INV/150559,King Hedges Park CCTV Installation,17/11/2023,57.35,286.75,344.1,Cctv Shared Service - City,Installation Fees,64073
http://statistics.data.gov.uk/id/local-authority/12UE,Huntingdonshire District Council,201155,BALFOUR BEATTY LIVING PLACES LTD,89382,17/11/2023,CSUK OU/INV/151978,Install CCTV Ropes Walk Cambridge,07/12/2023,57.6,287.98,345.58,Cctv Shared Service - City,Installation Fees,64073
http://statistics.data.gov.uk/id/local-authority/12UE,Huntingdonshire District Council,201155,BALFOUR BEATTY LIVING PLACES LTD,87325,02/10/2023,CSUK OU/INV/149028,RCCTV Akerman Street,27/10/2023,58.14,290.72,348.86,Cctv Shared Service - City,Installation Fees,64073
http://statistics.data.gov.uk/id/local-authority/12UE,Huntingdonshire District Council,200655,SYNECTICS SECURITY LTD QUADRANT SECURITY GROUP,88689,19/10/2023,SIN106961,Supply x6 Signs,09/11/2023,71.2,356,427.2,Cctv Shared Service - City,Installation Fees,64073
http://statistics.data.gov.uk/id/local-authority/12UE,Huntingdonshire District Council,200655,SYNECTICS SECURITY LTD QUADRANT SECURITY GROUP,90297,26/09/2023,SIN106619,Fix Faulty Camera,07/12/2023,128,640,768,Cctv Shared Service - City,Installation Fees,64073
http://statistics.data.gov.uk/id/local-authority/12UE,Huntingdonshire District Council,202821,CVSS LIMITED,88260,26/10/2023,40720,Sheltered Housing CCTV Report,17/11/2023,272,1360,1632,Cctv Shared Service - City,Installation Fees,64073
http://statistics.data.gov.uk/id/local-authority/12UE,Huntingdonshire District Council,202821,CVSS LIMITED,88305,19/10/2023,40725,Kings Hedges RDC,09/11/2023,720.6,3603,4323.6,Cctv Shared Service - City,Installation Fees,64073
http://statistics.data.gov.uk/id/local-authority/12UE,Huntingdonshire District Council,200129,BRITISH TELECOMMUNICATIONS PLC BRITISH TELECOMMUNICATIONS PLC,88432,18/08/2023,219265,CCTV Barnwell Rd Connection,06/11/2023,1922.68,9613.42,11536.1,Cctv Shared Service - City,Broadband Line Rental,64080
http://statistics.data.gov.uk/id/local-authority/12UE,Huntingdonshire District Council,202722,THE CCTV USER GROUP LTD,87535,11/10/2023,SI-12461,Subscription Renewal Oct23,19/10/2023,59.8,299,358.8,Cctv Shared Service - City,Membership And Subscriptions,64800
http://statistics.data.gov.uk/id/local-authority/12UE,Huntingdonshire District Council,200655,SYNECTICS SECURITY LTD QUADRANT SECURITY GROUP,88081,02/12/2022,SIN102425,HDC CCTV Maintenance Nov22,27/10/2023,554.42,2772.08,3326.5,Cctv Shared Service - HDC,"Maintenance - Equipment, Furniture And Materials",61702
http://statistics.data.gov.uk/id/local-authority/12UE,Huntingdonshire District Council,200655,SYNECTICS SECURITY LTD QUADRANT SECURITY GROUP,87487,30/09/2023,SIN106626,CCTV Cameras,19/10/2023,573.67,2868.33,3442,Cctv Shared Service - HDC,"Maintenance - Equipment, Furniture And Materials",61702
http://statistics.data.gov.uk/id/local-authority/12UE,Huntingdonshire District Council,200655,SYNECTICS SECURITY LTD QUADRANT SECURITY GROUP,88787,03/11/2023,SIN107257,CCTV Maintenance HDC,24/11/2023,573.67,2868.33,3442,Cctv Shared Service - HDC,"Maintenance - Equipment, Furniture And Materials",61702
http://statistics.data.gov.uk/id/local-authority/12UE,Huntingdonshire District Council,200655,SYNECTICS SECURITY LTD QUADRANT SECURITY GROUP,88805,14/02/2023,SIN103165,St Neots Car Park Project,17/11/2023,97.22,486.12,583.34,Cctv Shared Service - HDC,Installation Fees,64073
http://statistics.data.gov.uk/id/local-authority/12UE,Huntingdonshire District Council,200655,SYNECTICS SECURITY LTD QUADRANT SECURITY GROUP,88748,30/10/2023,SIN107107,Huntingdon RDC Move,24/11/2023,100,500,600,Cctv Shared Service - HDC,Installation Fees,64073
http://statistics.data.gov.uk/id/local-authority/12UE,Huntingdonshire District Council,201155,BALFOUR BEATTY LIVING PLACES LTD,89024,07/11/2023,CSUK OU/INV/151198,Relocation of L2LMB/Transfer UMS,01/12/2023,125.95,629.73,755.68,Cctv Shared Service - HDC,Installation Fees,64073
http://statistics.data.gov.uk/id/local-authority/12UE,Huntingdonshire District Council,201155,BALFOUR BEATTY LIVING PLACES LTD,89024,07/11/2023,CSUK OU/INV/151198,Relocation of L2LMB/Transfer UMS,01/12/2023,269.98,1349.92,1619.9,Cctv Shared Service - HDC,Installation Fees,64073
http://statistics.data.gov.uk/id/local-authority/12UE,Huntingdonshire District Council,200655,SYNECTICS SECURITY LTD QUADRANT SECURITY GROUP,89513,21/11/2023,SIN107584,DWP Cable,18/12/2023,405.72,2028.6,2434.32,Cctv Shared Service - HDC,Installation Fees,64073
http://statistics.data.gov.uk/id/local-authority/12UE,Huntingdonshire District Council,201980,MLL TELECOM LTD,89975,30/11/2023,SI33295,Stilton Pavilion CCTV,21/12/2023,552.26,2761.32,3313.58,Cctv Shared Service - HDC,Installation Fees,64073
http://statistics.data.gov.uk/id/local-authority/12UE,Huntingdonshire District Council,200655,SYNECTICS SECURITY LTD QUADRANT SECURITY GROUP,88805,14/02/2023,SIN103165,St Neots Car Park Project,17/11/2023,902.75,4513.77,5416.52,Cctv Shared Service - HDC,Installation Fees,64073
http://statistics.data.gov.uk/id/local-authority/12UE,Huntingdonshire District Council,202821,CVSS LIMITED,90827,24/11/2023,DSSL-INV-297,Equipment For Installation,21/12/2023,2456,12280,14736,Cctv Shared Service - HDC,Installation Fees,64073
http://statistics.data.gov.uk/id/local-authority/12UE,Huntingdonshire District Council,202821,CVSS LIMITED,90827,24/11/2023,DSSL-INV-297,Equipment For Installation,21/12/2023,2456,12280,14736,Cctv Shared Service - HDC,Installation Fees,64073
http://statistics.data.gov.uk/id/local-authority/12UE,Huntingdonshire District Council,200655,SYNECTICS SECURITY LTD QUADRANT SECURITY GROUP,88807,08/02/2023,SCR002546,St Neots Car Park Project,24/11/2023,-814.98,-4074.92,-4889.9,Cctv Shared Service - HDC,Installation Fees,64073
http://statistics.data.gov.uk/id/local-authority/12UE,Huntingdonshire District Council,200655,SYNECTICS SECURITY LTD QUADRANT SECURITY GROUP,88807,08/02/2023,SCR002546,St Neots Car Park Project,24/11/2023,-87.77,-438.85,-526.62,Cctv Shared Service - HDC,Installation Fees,64073
http://statistics.data.gov.uk/id/local-authority/12UE,Huntingdonshire District Council,200129,BRITISH TELECOMMUNICATIONS PLC BRITISH TELECOMMUNICATIONS PLC,88661,03/04/2023,20035828,CCTV HDC Annual Ethernet Changes,09/11/2023,3252.02,16260.11,19512.13,Cctv Shared Service - HDC,Broadband Line Rental,64080
http://statistics.data.gov.uk/id/local-authority/12UE,Huntingdonshire District Council,200159,CAMBRIDGESHIRE COUNTY COUNCIL CAMBRIDGESHIRE COUNTY COUNCIL,86662,26/09/2023,4.23E+11,Grants & Contribution,19/10/2023,0,4000,4000,Community Development,Grants And Contributions,64600
http://statistics.data.gov.uk/id/local-authority/12UE,Huntingdonshire District Council,200609,PENGELLY AND MIZEN PENGELLY AND MIZEN,89132,13/11/2023,MERLIN3-804975893,Vets DWA Inspection Nov23,07/12/2023,75,375,450,Animal Licensing - Inspections,Vets,62407
http://statistics.data.gov.uk/id/local-authority/12UE,Huntingdonshire District Council,200609,PENGELLY AND MIZEN PENGELLY AND MIZEN,88779,24/10/2023,MERLIN3-804810174,Vet Costs,17/11/2023,100,500,600,Animal Licensing - Inspections,Vets,62407
http://statistics.data.gov.uk/id/local-authority/12UE,Huntingdonshire District Council,200854,WOOD GREEN ANIMAL SHELTERS WOOD GREEN ANIMAL SHELTERS,87473,30/09/2023,S-INV000993,Strays & Credit Sep23,19/10/2023,375,1875,2250,Dog Control,Grants And Contributions,64600
http://statistics.data.gov.uk/id/local-authority/12UE,Huntingdonshire District Council,200854,WOOD GREEN ANIMAL SHELTERS WOOD GREEN ANIMAL SHELTERS,89131,31/10/2023,S-INV001045,Strays & Credit Oct23,24/11/2023,375,1875,2250,Dog Control,Grants And Contributions,64600
http://statistics.data.gov.uk/id/local-authority/12UE,Huntingdonshire District Council,200854,WOOD GREEN ANIMAL SHELTERS WOOD GREEN ANIMAL SHELTERS,90546,30/11/2023,S-INV001106,Grants & Contribution,21/12/2023,375,1875,2250,Dog Control,Grants And Contributions,64600
http://statistics.data.gov.uk/id/local-authority/12UE,Huntingdonshire District Council,201313,Central England Co-Operative Limited,89226,25/10/2023,60357470 / 522664 0,Cremation & Burial - REDACTED,21/11/2023,0,1378,1378,Burials Under Health Act,Cremation And Burial Costs,62600
http://statistics.data.gov.uk/id/local-authority/12UE,Huntingdonshire District Council,201313,Central England Co-Operative Limited,89928,09/11/2023,60358778 - 522642,Cremation & Burial - REDACTED,07/12/2023,0,1378,1378,Burials Under Health Act,Cremation And Burial Costs,62600
http://statistics.data.gov.uk/id/local-authority/12UE,Huntingdonshire District Council,201313,Central England Co-Operative Limited,90200,06/12/2023,522642 / 60359692,Cremation & Burial - REDACTED,07/12/2023,0,1390,1390,Burials Under Health Act,Cremation And Burial Costs,62600
http://statistics.data.gov.uk/id/local-authority/12UE,Huntingdonshire District Council,201313,Central England Co-Operative Limited,87840,29/03/2023,60340219/522664 499772,Cremation & Burial - REDACTED,19/10/2023,0,1460,1460,Burials Under Health Act,Cremation And Burial Costs,62600
http://statistics.data.gov.uk/id/local-authority/12UE,Huntingdonshire District Council,203321,The Energy Saving Trust Enterprises Limited,86803,22/09/2023,SI11920,Fleet Review,02/10/2023,2400,12000,14400,Climate Change Strategy,Consultancy Fees,62400
http://statistics.data.gov.uk/id/local-authority/12UE,Huntingdonshire District Council,202022,HIGHFIELD AWARDING BODY FOR COMPLIANCE,89043,02/11/2023,5782,HRC Materials,24/11/2023,70,350,420,Food Safety General,Materials,61709
http://statistics.data.gov.uk/id/local-authority/12UE,Huntingdonshire District Council,200546,MOGO UK MOGO UK,89119,14/09/2023,T37249,Licence Plates,20/11/2023,101.18,505.9,607.08,Ph & Hc Vechicles,Licence Plates,60912
http://statistics.data.gov.uk/id/local-authority/12UE,Huntingdonshire District Council,200546,MOGO UK MOGO UK,89442,20/11/2023,T38009,Licence Plates,18/12/2023,102.58,512.9,615.48,Ph & Hc Vechicles,Licence Plates,60912
http://statistics.data.gov.uk/id/local-authority/12UE,Huntingdonshire District Council,200546,MOGO UK MOGO UK,88694,27/10/2023,T377737,Licence Plates,17/11/2023,162.18,810.9,973.08,Ph & Hc Vechicles,Licence Plates,60912
http://statistics.data.gov.uk/id/local-authority/12UE,Huntingdonshire District Council,200415,INSTITUTE OF LICENSING(EVENTS) LIMITED INSTITUTE OF LICENSING(EVENTS) LIMITED,88703,01/11/2023,EVE40494,Staff Training & Development,24/11/2023,0,940.8,940.8,Licensing Common Costs,Staff Development And Training,60115
http://statistics.data.gov.uk/id/local-authority/12UE,Huntingdonshire District Council,202033,FENLAND DISTRICT COUNCIL,89091,18/10/2023,183866,Staffing Costs  Aug23,20/11/2023,331.04,1655.19,1986.23,Licensing Common Costs,Consultancy Fees,62400
http://statistics.data.gov.uk/id/local-authority/12UE,Huntingdonshire District Council,202033,FENLAND DISTRICT COUNCIL,87409,06/10/2023,183775,Staffing Costs - Sep23,13/10/2023,389.22,1946.09,2335.31,Licensing Common Costs,Consultancy Fees,62400
http://statistics.data.gov.uk/id/local-authority/12UE,Huntingdonshire District Council,202033,FENLAND DISTRICT COUNCIL,87189,25/08/2023,183419, Jul23,05/10/2023,391.57,1957.86,2349.43,Licensing Common Costs,Consultancy Fees,62400
http://statistics.data.gov.uk/id/local-authority/12UE,Huntingdonshire District Council,200415.01,INSTITUTE OF LICENSING LTD,86894,13/07/2023,39576,membership apr 23-mar 24,05/10/2023,0,310,310,Licensing Common Costs,Membership And Subscriptions,64800
http://statistics.data.gov.uk/id/local-authority/12UE,Huntingdonshire District Council,200072,B & H DIGITAL LTD B & H DIGITAL LTD,90206,22/11/2023,42209,Print-Abandonded Vehicle & PSPO Stickers,18/12/2023,126,630,756,Environmental Enforcement,Stationery,62002
http://statistics.data.gov.uk/id/local-authority/12UE,Huntingdonshire District Council,200072,B & H DIGITAL LTD B & H DIGITAL LTD,90206,22/11/2023,42209,Print-Abandonded Vehicle & PSPO Stickers,18/12/2023,164,820,984,Environmental Enforcement,Stationery,62002
http://statistics.data.gov.uk/id/local-authority/12UE,Huntingdonshire District Council,200743,STAFFLINE GROUP STAFFLINE GROUP,87870,18/10/2023,199879,Recycling Staff W/C 08.10.23,09/11/2023,67.28,336.38,403.66,Recycling Collections,Agency Staff,60011
http://statistics.data.gov.uk/id/local-authority/12UE,Huntingdonshire District Council,200743,STAFFLINE GROUP STAFFLINE GROUP,89176,15/11/2023,203061,recycling wc 051123,07/12/2023,67.28,336.38,403.66,Recycling Collections,Agency Staff,60011
http://statistics.data.gov.uk/id/local-authority/12UE,Huntingdonshire District Council,200743,STAFFLINE GROUP STAFFLINE GROUP,89898,29/11/2023,204767,Recycling Staff W/E 19.11.23,21/12/2023,67.28,336.38,403.66,Recycling Collections,Agency Staff,60011
http://statistics.data.gov.uk/id/local-authority/12UE,Huntingdonshire District Council,200743,STAFFLINE GROUP STAFFLINE GROUP,87346,04/10/2023,198478,Recycling Staff W/C 24.09.23,27/10/2023,68.81,344.03,412.84,Recycling Collections,Agency Staff,60011
http://statistics.data.gov.uk/id/local-authority/12UE,Huntingdonshire District Council,200743,STAFFLINE GROUP STAFFLINE GROUP,87758,13/09/2023,196416,Garden Waste Staff W/C 03.09.23,19/10/2023,113.15,565.73,678.88,Recycling Collections,Agency Staff,60011
http://statistics.data.gov.uk/id/local-authority/12UE,Huntingdonshire District Council,200743,STAFFLINE GROUP STAFFLINE GROUP,87760,02/08/2023,192445,Garden Waste Staff W/C 23.07.23,19/10/2023,113.15,565.73,678.88,Recycling Collections,Agency Staff,60011
http://statistics.data.gov.uk/id/local-authority/12UE,Huntingdonshire District Council,202548,SAFFRON VANTAGE LTD,87347,17/08/2023,3165,Recycling Staff W/E 13.08.23,13/10/2023,572.36,2861.8,3434.16,Recycling Collections,Agency Staff,60011
http://statistics.data.gov.uk/id/local-authority/12UE,Huntingdonshire District Council,202548,SAFFRON VANTAGE LTD,86467,14/09/2023,3417,Recycling Staff W/E 10.09.23,05/10/2023,781.76,3908.8,4690.56,Recycling Collections,Agency Staff,60011
http://statistics.data.gov.uk/id/local-authority/12UE,Huntingdonshire District Council,202548,SAFFRON VANTAGE LTD,86669,21/09/2023,3530,Recycling Staff W/E 17.09.23,13/10/2023,893.44,4467.2,5360.64,Recycling Collections,Agency Staff,60011
http://statistics.data.gov.uk/id/local-authority/12UE,Huntingdonshire District Council,202548,SAFFRON VANTAGE LTD,87192,28/09/2023,3564,Recycling Staff W/E 24.09.23,19/10/2023,983.84,4919.2,5903.04,Recycling Collections,Agency Staff,60011
http://statistics.data.gov.uk/id/local-authority/12UE,Huntingdonshire District Council,202548,SAFFRON VANTAGE LTD,89456,12/10/2023,3709,Recycling Staff W/E 08.10.23,24/11/2023,1121.44,5607.2,6728.64,Recycling Collections,Agency Staff,60011
http://statistics.data.gov.uk/id/local-authority/12UE,Huntingdonshire District Council,202548,SAFFRON VANTAGE LTD,89341,16/11/2023,4016,Recycling Staff W/E 12.11.23,07/12/2023,1239.76,6198.8,7438.56,Recycling Collections,Agency Staff,60011
http://statistics.data.gov.uk/id/local-authority/12UE,Huntingdonshire District Council,202548,SAFFRON VANTAGE LTD,89193,09/11/2023,3930,RECYCLING WC 051123,01/12/2023,1267.68,6338.4,7606.08,Recycling Collections,Agency Staff,60011
http://statistics.data.gov.uk/id/local-authority/12UE,Huntingdonshire District Council,202548,SAFFRON VANTAGE LTD,87718,05/10/2023,3655,Recycling Staff W/E 01.10.23,27/10/2023,1278.32,6391.6,7669.92,Recycling Collections,Agency Staff,60011
http://statistics.data.gov.uk/id/local-authority/12UE,Huntingdonshire District Council,202548,SAFFRON VANTAGE LTD,90007,30/11/2023,4091,Recycling Staff W/E 26.11.23,21/12/2023,1278.32,6391.6,7669.92,Recycling Collections,Agency Staff,60011
http://statistics.data.gov.uk/id/local-authority/12UE,Huntingdonshire District Council,202548,SAFFRON VANTAGE LTD,90328,26/10/2023,3845,Recycling Staff W/E 22.10.23,07/12/2023,1288.96,6444.8,7733.76,Recycling Collections,Agency Staff,60011
http://statistics.data.gov.uk/id/local-authority/12UE,Huntingdonshire District Council,202548,SAFFRON VANTAGE LTD,90324,03/11/2023,3910,Recycling Staff W/E 29.10.23,07/12/2023,1314.88,6574.4,7889.28,Recycling Collections,Agency Staff,60011
http://statistics.data.gov.uk/id/local-authority/12UE,Huntingdonshire District Council,202548,SAFFRON VANTAGE LTD,87910,19/10/2023,3754,Recycling Staff W/E 15.10.23,09/11/2023,1400.64,7003.2,8403.84,Recycling Collections,Agency Staff,60011
http://statistics.data.gov.uk/id/local-authority/12UE,Huntingdonshire District Council,200000,A C COMMERCIALS A C COMMERCIALS,89617,22/11/2023,INV0025351,AdBlue,18/12/2023,113.75,568.75,682.5,Recycling Collections,Vehicle Repairs And Maintenance,60904
http://statistics.data.gov.uk/id/local-authority/12UE,Huntingdonshire District Council,200815,VEHICLE WEIGHTING SOLUTIONS LTD VEHICLE WEIGHTING SOLUTIONS LTD,86423,14/09/2023,INV50324,Onboard Weigher/Calibrations,05/10/2023,63,315,378,Recycling Collections,Vehicle Maintenance - External,60921
http://statistics.data.gov.uk/id/local-authority/12UE,Huntingdonshire District Council,200725,SMI INT GROUP LTD SMI GROUP,90214,26/10/2023,INV1324667,Materials - Hand Wipes,07/12/2023,66,330,396,Recycling Collections,"Clothes, Uniform And Laundry",62000
http://statistics.data.gov.uk/id/local-authority/12UE,Huntingdonshire District Council,200725,SMI INT GROUP LTD SMI GROUP,88388,30/10/2023,INV1326580,Uniform - HDC Logo Fleece,24/11/2023,311.64,1558.2,1869.84,Recycling Collections,"Clothes, Uniform And Laundry",62000
http://statistics.data.gov.uk/id/local-authority/12UE,Huntingdonshire District Council,203162,Integrated Skills Limited,86922,10/07/2023,INV-201747,Consultancy Fees,05/10/2023,1620,8100,9720,Recycling Collections,Consultancy Fees,62400
http://statistics.data.gov.uk/id/local-authority/12UE,Huntingdonshire District Council,201468.01,BROWNE JACOBSON LLP,90626,28/11/2023,1044774,Legal Fees,18/12/2023,626.4,3132,3758.4,Recycling Collections,Legal Fees,63200
http://statistics.data.gov.uk/id/local-authority/12UE,Huntingdonshire District Council,200743,STAFFLINE GROUP STAFFLINE GROUP,86175,13/09/2023,196418,Street Cleaner W/C 03.09.23,05/10/2023,145.96,729.81,875.77,Street Cleansing,Agency Staff,60011
http://statistics.data.gov.uk/id/local-authority/12UE,Huntingdonshire District Council,202548,SAFFRON VANTAGE LTD,87847,07/09/2023,3360,Cleaning Staff W/E 03.09.23,19/10/2023,801.4,4007,4808.4,Street Cleansing,Agency Staff,60011
http://statistics.data.gov.uk/id/local-authority/12UE,Huntingdonshire District Council,202548,SAFFRON VANTAGE LTD,87841,14/09/2023,3431,Cleaning Staff W/E 10.09.23,19/10/2023,896.8,4484,5380.8,Street Cleansing,Agency Staff,60011
http://statistics.data.gov.uk/id/local-authority/12UE,Huntingdonshire District Council,202548,SAFFRON VANTAGE LTD,89444,16/11/2023,4019,Street Cleaning Staff W/E 12.11.23,07/12/2023,1011.04,5055.2,6066.24,Street Cleansing,Agency Staff,60011
http://statistics.data.gov.uk/id/local-authority/12UE,Huntingdonshire District Council,202548,SAFFRON VANTAGE LTD,88814,03/11/2023,3908,Street Cleaning Staff W/E 29.10.23,24/11/2023,1019.04,5095.22,6114.26,Street Cleansing,Agency Staff,60011
http://statistics.data.gov.uk/id/local-authority/12UE,Huntingdonshire District Council,202548,SAFFRON VANTAGE LTD,87848,20/07/2023,3035,Cleaning Staff W/E 16.07.23,19/10/2023,1064.77,5323.84,6388.61,Street Cleansing,Agency Staff,60011
http://statistics.data.gov.uk/id/local-authority/12UE,Huntingdonshire District Council,202548,SAFFRON VANTAGE LTD,90009,30/11/2023,4093,Cleaning Staff W/E 26.11.23,21/12/2023,1101.02,5505.12,6606.14,Street Cleansing,Agency Staff,60011
http://statistics.data.gov.uk/id/local-authority/12UE,Huntingdonshire District Council,202548,SAFFRON VANTAGE LTD,88744,19/10/2023,3761,Street Cleaning Staff W/E 15.10.23,13/11/2023,1136.72,5683.6,6820.32,Street Cleansing,Agency Staff,60011
http://statistics.data.gov.uk/id/local-authority/12UE,Huntingdonshire District Council,202548,SAFFRON VANTAGE LTD,86665,21/09/2023,3526,Cleaning Staff W/E 17.09.23,13/10/2023,1165.28,5826.4,6991.68,Street Cleansing,Agency Staff,60011
http://statistics.data.gov.uk/id/local-authority/12UE,Huntingdonshire District Council,202548,SAFFRON VANTAGE LTD,89443,09/11/2023,3926,Cleaning Staff W/E 05.11.23,01/12/2023,1179.57,5897.84,7077.41,Street Cleansing,Agency Staff,60011
http://statistics.data.gov.uk/id/local-authority/12UE,Huntingdonshire District Council,202548,SAFFRON VANTAGE LTD,87785,12/10/2023,3707,Cleaning Staff W/E 08.10.23,02/11/2023,1193.84,5969.2,7163.04,Street Cleansing,Agency Staff,60011
http://statistics.data.gov.uk/id/local-authority/12UE,Huntingdonshire District Council,202548,SAFFRON VANTAGE LTD,88142,26/10/2023,3849,Cleaning Staff W/E 22.10.23,17/11/2023,1248.69,6243.44,7492.13,Street Cleansing,Agency Staff,60011
http://statistics.data.gov.uk/id/local-authority/12UE,Huntingdonshire District Council,202548,SAFFRON VANTAGE LTD,88813,28/09/2023,3567,Street Cleaning Staff W/E 24.09.23,13/11/2023,1250.96,6254.8,7505.76,Street Cleansing,Agency Staff,60011
http://statistics.data.gov.uk/id/local-authority/12UE,Huntingdonshire District Council,202548,SAFFRON VANTAGE LTD,87786,05/10/2023,3650,Cleaning Staff W/E 01.10.23,27/10/2023,1365.2,6826,8191.2,Street Cleansing,Agency Staff,60011
http://statistics.data.gov.uk/id/local-authority/12UE,Huntingdonshire District Council,200000,A C COMMERCIALS A C COMMERCIALS,89617,22/11/2023,INV0025351,AdBlue,18/12/2023,68.25,341.25,409.5,Street Cleansing,Vehicle Repairs And Maintenance,60904
http://statistics.data.gov.uk/id/local-authority/12UE,Huntingdonshire District Council,200815,VEHICLE WEIGHTING SOLUTIONS LTD VEHICLE WEIGHTING SOLUTIONS LTD,86773,25/09/2023,INV50582,Onboard Weigher/Calibrations,19/10/2023,53.89,269.46,323.35,Street Cleansing,Vehicle Maintenance - External,60921
http://statistics.data.gov.uk/id/local-authority/12UE,Huntingdonshire District Council,200815,VEHICLE WEIGHTING SOLUTIONS LTD VEHICLE WEIGHTING SOLUTIONS LTD,86491,21/09/2023,INV50499,Onboard Weigher/Calibrations,13/10/2023,125,625,750,Street Cleansing,Vehicle Maintenance - External,60921
http://statistics.data.gov.uk/id/local-authority/12UE,Huntingdonshire District Council,201612,STEVENAGE PACKAGING LTD,86812,18/09/2023,125950,Black Bin Bags,13/10/2023,515.36,2576.79,3092.15,Street Cleansing,Refuse Containers/Litter Bins,61200
http://statistics.data.gov.uk/id/local-authority/12UE,Huntingdonshire District Council,201612,STEVENAGE PACKAGING LTD,86660,15/09/2023,125883,HCC Red Plain Bags,13/10/2023,1556.06,7780.32,9336.38,Street Cleansing,Refuse Containers/Litter Bins,61200
http://statistics.data.gov.uk/id/local-authority/12UE,Huntingdonshire District Council,201898,HUBBUB FOUNDATION ENTERPRISE LTD,90414,22/06/2023,INV-1500,Ballot Bin - Litter Min Trial,11/12/2023,110,550,660,Street Cleansing,Equipment,61713
http://statistics.data.gov.uk/id/local-authority/12UE,Huntingdonshire District Council,200350,GROUNDSMAN GROUNDSMAN,87437,06/10/2023,68699,Grounds Maintenance Materials,27/10/2023,146.56,732.8,879.36,Street Cleansing,Equipment,61713
http://statistics.data.gov.uk/id/local-authority/12UE,Huntingdonshire District Council,200054.01,APSE,87298,15/09/2023,2234/1547,ASPE Networks 01.09.23-31.08.24,09/10/2023,70,350,420,Street Cleansing,Membership And Subscriptions,64800
http://statistics.data.gov.uk/id/local-authority/12UE,Huntingdonshire District Council,200054.01,APSE,89370,24/07/2023,2324/996,APSE Performance Membership 23/24,24/11/2023,293.6,1468,1761.6,Street Cleansing,Membership And Subscriptions,64800
http://statistics.data.gov.uk/id/local-authority/12UE,Huntingdonshire District Council,203102,Newsquest Media Group Limited,88119,31/07/2023,43248803,Green News Page - 31.07.23,27/10/2023,95.62,478.08,573.7,Waste Minimisation,"Advertising, Publicity And Marketing",62005
http://statistics.data.gov.uk/id/local-authority/12UE,Huntingdonshire District Council,203102,Newsquest Media Group Limited,88861,30/09/2023,43664383,Green News Page 30.09.23,17/11/2023,95.62,478.08,573.7,Waste Minimisation,"Advertising, Publicity And Marketing",62005
http://statistics.data.gov.uk/id/local-authority/12UE,Huntingdonshire District Council,200072,B & H DIGITAL LTD B & H DIGITAL LTD,89808,29/11/2023,42281,Print - Christmas Bin Hangers,21/12/2023,1188,5940,7128,Waste Minimisation,Communication Material,62009
http://statistics.data.gov.uk/id/local-authority/12UE,Huntingdonshire District Council,202548,SAFFRON VANTAGE LTD,89204,09/11/2023,3928,Bulky Waste Staff W/E 05.11.23,01/12/2023,111.68,558.4,670.08,Bulky Refuse,Agency Staff,60011
http://statistics.data.gov.uk/id/local-authority/12UE,Huntingdonshire District Council,202548,SAFFRON VANTAGE LTD,86667,21/09/2023,3531,Bulky Waste Staff W/E 17.09.23,13/10/2023,139.6,698,837.6,Bulky Refuse,Agency Staff,60011
http://statistics.data.gov.uk/id/local-authority/12UE,Huntingdonshire District Council,202548,SAFFRON VANTAGE LTD,87348,17/08/2023,3167,Bulky Waste Staff W/E 13.08.23,13/10/2023,139.6,698,837.6,Bulky Refuse,Agency Staff,60011
http://statistics.data.gov.uk/id/local-authority/12UE,Huntingdonshire District Council,202548,SAFFRON VANTAGE LTD,87612,12/10/2023,3711,Bulky Waste Staff W/E 08.10.23,02/11/2023,139.6,698,837.6,Bulky Refuse,Agency Staff,60011
http://statistics.data.gov.uk/id/local-authority/12UE,Huntingdonshire District Council,202548,SAFFRON VANTAGE LTD,87819,11/08/2023,3130,Bulky Waste Staff W/E 06.08.23,19/10/2023,139.6,698,837.6,Bulky Refuse,Agency Staff,60011
http://statistics.data.gov.uk/id/local-authority/12UE,Huntingdonshire District Council,200743,STAFFLINE GROUP STAFFLINE GROUP,88128,25/10/2023,200604,Refuse Staff W/C 15.10.23,17/11/2023,68.81,344.03,412.84,Domestic Waste Collection,Agency Staff,60011
http://statistics.data.gov.uk/id/local-authority/12UE,Huntingdonshire District Council,200743,STAFFLINE GROUP STAFFLINE GROUP,89644,22/11/2023,203949,Refuse Staff W/C 12.11.23,18/12/2023,68.81,344.03,412.84,Domestic Waste Collection,Agency Staff,60011
http://statistics.data.gov.uk/id/local-authority/12UE,Huntingdonshire District Council,200743,STAFFLINE GROUP STAFFLINE GROUP,86545,20/09/2023,197080,Refuse Staff W/C 10.09.23,13/10/2023,90.21,451.06,541.27,Domestic Waste Collection,Agency Staff,60011
http://statistics.data.gov.uk/id/local-authority/12UE,Huntingdonshire District Council,200743,STAFFLINE GROUP STAFFLINE GROUP,87722,11/10/2023,199182,Refuse Staff W/C 01.10.23,02/11/2023,113.15,565.73,678.88,Domestic Waste Collection,Agency Staff,60011
http://statistics.data.gov.uk/id/local-authority/12UE,Huntingdonshire District Council,200743,STAFFLINE GROUP STAFFLINE GROUP,87474,30/08/2023,195083,Refuse Staff W/C 20.08.23,13/10/2023,148.31,741.53,889.84,Domestic Waste Collection,Agency Staff,60011
http://statistics.data.gov.uk/id/local-authority/12UE,Huntingdonshire District Council,202548,SAFFRON VANTAGE LTD,89332,16/11/2023,4017,Refuse Staff W/E 12.11.23,07/12/2023,965.92,4829.6,5795.52,Domestic Waste Collection,Agency Staff,60011
http://statistics.data.gov.uk/id/local-authority/12UE,Huntingdonshire District Council,202548,SAFFRON VANTAGE LTD,86664,21/09/2023,3529,Refuse Staff W/E 17.09.23,13/10/2023,1075.6,5378,6453.6,Domestic Waste Collection,Agency Staff,60011
http://statistics.data.gov.uk/id/local-authority/12UE,Huntingdonshire District Council,202548,SAFFRON VANTAGE LTD,86442,14/09/2023,3418,Refuse Staff W/E 10.09.23,05/10/2023,1086.07,5430.35,6516.42,Domestic Waste Collection,Agency Staff,60011
http://statistics.data.gov.uk/id/local-authority/12UE,Huntingdonshire District Council,202548,SAFFRON VANTAGE LTD,87912,19/10/2023,3753,Refuse Staff W/E 15.10.23,09/11/2023,1136.15,5680.75,6816.9,Domestic Waste Collection,Agency Staff,60011
http://statistics.data.gov.uk/id/local-authority/12UE,Huntingdonshire District Council,202548,SAFFRON VANTAGE LTD,90008,30/11/2023,4090,Refuse Staff W/E 26.11.23,21/12/2023,1161.36,5806.8,6968.16,Domestic Waste Collection,Agency Staff,60011
http://statistics.data.gov.uk/id/local-authority/12UE,Huntingdonshire District Council,202548,SAFFRON VANTAGE LTD,90325,03/11/2023,3912,Refuse Staff W/E 29.10.23,07/12/2023,1206.56,6032.8,7239.36,Domestic Waste Collection,Agency Staff,60011
http://statistics.data.gov.uk/id/local-authority/12UE,Huntingdonshire District Council,202548,SAFFRON VANTAGE LTD,87193,28/09/2023,3565,Refuse Staff W/E 24.09.23,19/10/2023,1234.48,6172.4,7406.88,Domestic Waste Collection,Agency Staff,60011
http://statistics.data.gov.uk/id/local-authority/12UE,Huntingdonshire District Council,202548,SAFFRON VANTAGE LTD,87609,12/10/2023,3712,Refuse Staff W/E 08.10.23,02/11/2023,1466.48,7332.4,8798.88,Domestic Waste Collection,Agency Staff,60011
http://statistics.data.gov.uk/id/local-authority/12UE,Huntingdonshire District Council,202548,SAFFRON VANTAGE LTD,87719,05/10/2023,36527,Refuse Staff W/E 01.10.23,27/10/2023,1509.68,7548.4,9058.08,Domestic Waste Collection,Agency Staff,60011
http://statistics.data.gov.uk/id/local-authority/12UE,Huntingdonshire District Council,202548,SAFFRON VANTAGE LTD,88304,26/10/2023,3847,Refuse Staff W/E 22.10.23,17/11/2023,1539.6,7698,9237.6,Domestic Waste Collection,Agency Staff,60011
http://statistics.data.gov.uk/id/local-authority/12UE,Huntingdonshire District Council,202548,SAFFRON VANTAGE LTD,87351,17/08/2023,3168,Refuse Staff W/E 13.08.23,13/10/2023,1555.17,7775.84,9331.01,Domestic Waste Collection,Agency Staff,60011
http://statistics.data.gov.uk/id/local-authority/12UE,Huntingdonshire District Council,202548,SAFFRON VANTAGE LTD,90326,09/11/2023,3929,Refuse Staff W/E 05.11.23,07/12/2023,1694.48,8472.4,10166.88,Domestic Waste Collection,Agency Staff,60011
http://statistics.data.gov.uk/id/local-authority/12UE,Huntingdonshire District Council,202959,5Day (Norwich) Ltd,88853,06/11/2023,PE-P9346,Driving Course,17/11/2023,213.33,1066.67,1280,Domestic Waste Collection,Staff Development And Training,60115
http://statistics.data.gov.uk/id/local-authority/12UE,Huntingdonshire District Council,202959,5Day (Norwich) Ltd,88978,07/11/2023,PE-7M7Y4,Driving Course - REDACTED,17/11/2023,213.33,1066.67,1280,Domestic Waste Collection,Staff Development And Training,60115
http://statistics.data.gov.uk/id/local-authority/12UE,Huntingdonshire District Council,201474,APEX TRAINING CENTRES (UK) LTD,87555,10/10/2023,26194,HGV Sessions/Test Fees,02/11/2023,460,2300,2760,Domestic Waste Collection,Staff Development And Training,60115
http://statistics.data.gov.uk/id/local-authority/12UE,Huntingdonshire District Council,200000,A C COMMERCIALS A C COMMERCIALS,89617,22/11/2023,INV0025351,AdBlue,18/12/2023,113.75,568.75,682.5,Domestic Waste Collection,Vehicle Repairs And Maintenance,60904
http://statistics.data.gov.uk/id/local-authority/12UE,Huntingdonshire District Council,202267,ALPHADRUGS LTD,86607,26/09/2023,HDC004,Pharmacy Sharps Disposal Oct22-Ep23,19/10/2023,0,600,600,Domestic Waste Collection,Waste Disposal Costs,64050
http://statistics.data.gov.uk/id/local-authority/12UE,Huntingdonshire District Council,202416,REPEAT PRESCRIPTION ORDER LINE LTD T/A HALLS THE CHEMIST,87460,04/10/2023,HDC CLINICAL DISPOSAL,Clinical Sharps Disposal Apr23-Mar24,27/10/2023,120,600,720,Domestic Waste Collection,Waste Disposal Costs,64050
http://statistics.data.gov.uk/id/local-authority/12UE,Huntingdonshire District Council,203165,Warsham LTD T/A J W Anderson Dispensing Chemist,88639,01/11/2023,JWA01.11.23,Sharps Disposal Costs Oct22-Sep23,09/11/2023,0,600,600,Domestic Waste Collection,Waste Disposal Costs,64050
http://statistics.data.gov.uk/id/local-authority/12UE,Huntingdonshire District Council,203165.01,Warsham LTD T/A Wards Of Warboys Dispensing Chemist,88640,01/11/2023,WW01.11.23,Sharps Disposal Costs Oct22-Sep23,09/11/2023,0,600,600,Domestic Waste Collection,Waste Disposal Costs,64050
http://statistics.data.gov.uk/id/local-authority/12UE,Huntingdonshire District Council,203165.01,Warsham LTD T/A Wards Of Warboys Dispensing Chemist,89675,10/11/2023,WW10.11.23,Returned Sharp Disposal Cost Oct23-Sep24,01/12/2023,0,600,600,Domestic Waste Collection,Waste Disposal Costs,64050
http://statistics.data.gov.uk/id/local-authority/12UE,Huntingdonshire District Council,203165,Warsham LTD T/A J W Anderson Dispensing Chemist,89676,10/11/2023,JWA10.11.23,Returned Sharp Disposal Cost Oct23-Sep24,01/12/2023,0,600,600,Domestic Waste Collection,Waste Disposal Costs,64050
http://statistics.data.gov.uk/id/local-authority/12UE,Huntingdonshire District Council,201654,NOVUS ENVIRONMENTAL,87459,30/09/2023,INV699367,Clinical Waste Disposal Costs,19/10/2023,122.1,610.5,732.6,Domestic Waste Collection,Waste Disposal Costs,64050
http://statistics.data.gov.uk/id/local-authority/12UE,Huntingdonshire District Council,201654,NOVUS ENVIRONMENTAL,89911,31/10/2023,INV706688,Clinical Waste Disposal Costs Oct23,07/12/2023,198,990,1188,Domestic Waste Collection,Waste Disposal Costs,64050
http://statistics.data.gov.uk/id/local-authority/12UE,Huntingdonshire District Council,201654,NOVUS ENVIRONMENTAL,90630,30/11/2023,INV710719,Clinical Waste Disposal Costs Nov23,21/12/2023,198,990,1188,Domestic Waste Collection,Waste Disposal Costs,64050
http://statistics.data.gov.uk/id/local-authority/12UE,Huntingdonshire District Council,200733,SOUTH CAMBRIDGESHIRE DISTRICT COUNCIL SOUTH CAMBRIDGESHIRE DISTRICT COUNCIL,87490,05/10/2023,80077408,MRF Compliance Officer Contributions,19/10/2023,0,10933.56,10933.56,Domestic Waste Collection,Grants And Contributions,64600
http://statistics.data.gov.uk/id/local-authority/12UE,Huntingdonshire District Council,201033,CAMBRIDGESHIRE COUNTY COUNCIL,86185,12/09/2023,4.23E+11,HDC RECAP Contributions 23-24,05/10/2023,0,24482,24482,Domestic Waste Collection,Grants And Contributions,64600
http://statistics.data.gov.uk/id/local-authority/12UE,Huntingdonshire District Council,200743,STAFFLINE GROUP STAFFLINE GROUP,89077,08/11/2023,202182,Garden Waste Staff W/C 29.10.23,01/12/2023,68.81,344.03,412.84,Green Waste Collection,Agency Staff,60011
http://statistics.data.gov.uk/id/local-authority/12UE,Huntingdonshire District Council,200743,STAFFLINE GROUP STAFFLINE GROUP,87721,11/10/2023,199181,Garden Waste W/C 01.10.23,02/11/2023,113.15,565.73,678.88,Green Waste Collection,Agency Staff,60011
http://statistics.data.gov.uk/id/local-authority/12UE,Huntingdonshire District Council,200743,STAFFLINE GROUP STAFFLINE GROUP,87759,13/09/2023,196417,Recycling Staff W/C 03.09.23,19/10/2023,113.15,565.73,678.88,Green Waste Collection,Agency Staff,60011
http://statistics.data.gov.uk/id/local-authority/12UE,Huntingdonshire District Council,200743,STAFFLINE GROUP STAFFLINE GROUP,88002,27/09/2023,197768,Garden Waste Staff W/C 17.09.23,23/10/2023,113.15,565.73,678.88,Green Waste Collection,Agency Staff,60011
http://statistics.data.gov.uk/id/local-authority/12UE,Huntingdonshire District Council,200743,STAFFLINE GROUP STAFFLINE GROUP,88127,25/10/2023,200602,Garden Waste W/C 15.10.23,17/11/2023,113.15,565.73,678.88,Green Waste Collection,Agency Staff,60011
http://statistics.data.gov.uk/id/local-authority/12UE,Huntingdonshire District Council,200743,STAFFLINE GROUP STAFFLINE GROUP,86544,20/09/2023,197070,Garden Waste Staff W/C 10.09.23,13/10/2023,136.08,680.41,816.49,Green Waste Collection,Agency Staff,60011
http://statistics.data.gov.uk/id/local-authority/12UE,Huntingdonshire District Council,200743,STAFFLINE GROUP STAFFLINE GROUP,87354,04/10/2023,198477,Garden Waste Staff W/C 24.09.23,27/10/2023,136.08,680.41,816.49,Green Waste Collection,Agency Staff,60011
http://statistics.data.gov.uk/id/local-authority/12UE,Huntingdonshire District Council,200743,STAFFLINE GROUP STAFFLINE GROUP,87871,18/10/2023,199878,Garden Waste W/C 08.10.23,09/11/2023,159.02,795.08,954.1,Green Waste Collection,Agency Staff,60011
http://statistics.data.gov.uk/id/local-authority/12UE,Huntingdonshire District Council,200743,STAFFLINE GROUP STAFFLINE GROUP,88649,01/11/2023,201316,Garden Waste Staff W/C 22.10.23,24/11/2023,226.29,1131.46,1357.75,Green Waste Collection,Agency Staff,60011
http://statistics.data.gov.uk/id/local-authority/12UE,Huntingdonshire District Council,202548,SAFFRON VANTAGE LTD,89207,09/11/2023,3927,Garden Waste Staff W/E 05.11.23,01/12/2023,414.8,2074,2488.8,Green Waste Collection,Agency Staff,60011
http://statistics.data.gov.uk/id/local-authority/12UE,Huntingdonshire District Council,202548,SAFFRON VANTAGE LTD,89333,16/11/2023,4015,Garden Waste Staff W/E 12.11.23,07/12/2023,535.12,2675.6,3210.72,Green Waste Collection,Agency Staff,60011
http://statistics.data.gov.uk/id/local-authority/12UE,Huntingdonshire District Council,202548,SAFFRON VANTAGE LTD,90006,30/11/2023,4092,Garden Waste Staff W/E 26.11.23,21/12/2023,681.36,3406.8,4088.16,Green Waste Collection,Agency Staff,60011
http://statistics.data.gov.uk/id/local-authority/12UE,Huntingdonshire District Council,202548,SAFFRON VANTAGE LTD,86443,14/09/2023,3415,Garden Waste Staff W/E 10.09.23,05/10/2023,936.64,4683.2,5619.84,Green Waste Collection,Agency Staff,60011
http://statistics.data.gov.uk/id/local-authority/12UE,Huntingdonshire District Council,202548,SAFFRON VANTAGE LTD,88303,26/10/2023,3848,Garden Staff W/E 22.10.23,17/11/2023,967.2,4836,5803.2,Green Waste Collection,Agency Staff,60011
http://statistics.data.gov.uk/id/local-authority/12UE,Huntingdonshire District Council,202548,SAFFRON VANTAGE LTD,86670,21/09/2023,3527,Garden Waste Staff W/E 17.09.23,13/10/2023,981.84,4909.2,5891.04,Green Waste Collection,Agency Staff,60011
http://statistics.data.gov.uk/id/local-authority/12UE,Huntingdonshire District Council,202548,SAFFRON VANTAGE LTD,90322,03/11/2023,3909,Garden Staff W/E 29.10.23,07/12/2023,1007.76,5038.8,6046.56,Green Waste Collection,Agency Staff,60011
http://statistics.data.gov.uk/id/local-authority/12UE,Huntingdonshire District Council,202548,SAFFRON VANTAGE LTD,87194,28/09/2023,3563,Garden Waste Staff W/E 24.09.23,19/10/2023,1029.04,5145.2,6174.24,Green Waste Collection,Agency Staff,60011
http://statistics.data.gov.uk/id/local-authority/12UE,Huntingdonshire District Council,202548,SAFFRON VANTAGE LTD,87350,17/08/2023,31669,Garden Waste Staff W/E 13.08.23,13/10/2023,1062.28,5311.4,6373.68,Green Waste Collection,Agency Staff,60011
http://statistics.data.gov.uk/id/local-authority/12UE,Huntingdonshire District Council,202548,SAFFRON VANTAGE LTD,89457,05/10/2023,3654,Garden Waste Staff W/E 01.10.23,24/11/2023,1112.8,5564,6676.8,Green Waste Collection,Agency Staff,60011
http://statistics.data.gov.uk/id/local-authority/12UE,Huntingdonshire District Council,202548,SAFFRON VANTAGE LTD,87610,12/10/2023,3713,Garden Waste Staff W/E 08.10.23,02/11/2023,1117.44,5587.2,6704.64,Green Waste Collection,Agency Staff,60011
http://statistics.data.gov.uk/id/local-authority/12UE,Huntingdonshire District Council,202548,SAFFRON VANTAGE LTD,87911,19/10/2023,3756,Garden Waste Staff W/E 15.10.23,09/11/2023,1122.08,5610.4,6732.48,Green Waste Collection,Agency Staff,60011
http://statistics.data.gov.uk/id/local-authority/12UE,Huntingdonshire District Council,200000,A C COMMERCIALS A C COMMERCIALS,89617,22/11/2023,INV0025351,AdBlue,18/12/2023,113.75,568.75,682.5,Green Waste Collection,Vehicle Repairs And Maintenance,60904
http://statistics.data.gov.uk/id/local-authority/12UE,Huntingdonshire District Council,200725,SMI INT GROUP LTD SMI GROUP,87363,03/10/2023,INV1311894,Uniform - Cargo Trousers/Hi-Vis Trousers,27/10/2023,82.44,412.2,494.64,Green Waste Collection,"Clothes, Uniform And Laundry",62000
http://statistics.data.gov.uk/id/local-authority/12UE,Huntingdonshire District Council,200987,Causeway Technologies Limited,89372,16/11/2023,PS80472,Consultancy Fees,07/12/2023,1296,6480,7776,Green Waste Collection,Consultancy Fees,62400
http://statistics.data.gov.uk/id/local-authority/12UE,Huntingdonshire District Council,203325,Specialist Fleet Servives Ltd t/a CTS Hire,86697,25/09/2023,S049095,7.5tn RCV With Bin Lift,19/10/2023,816,4080,4896,Narrow Access,Vehicle Hire,60909
http://statistics.data.gov.uk/id/local-authority/12UE,Huntingdonshire District Council,200451,K & M LIGHTING SERVICES LTD K & M LIGHTING SERVICES LTD,87672,09/10/2023,8317,Cattle Market CP,02/11/2023,119,595,714,Car Park Management,Site Alterations And Materials,60273
http://statistics.data.gov.uk/id/local-authority/12UE,Huntingdonshire District Council,202918,NPower Commercial Gas Ltd,87140,04/10/2023,IN08521804,Car Park Ticket Machine Jun-Sep23,13/10/2023,37.8,755.9,793.7,Car Park Management,Electricity,60303
http://statistics.data.gov.uk/id/local-authority/12UE,Huntingdonshire District Council,200373,HI-SPEC FACILITIES SERVICES PLC HI-SPEC FACILITIES SERVICES PLC,87885,31/08/2023,52904,Various Sites Cleaning Aug23,23/10/2023,126.76,633.8,760.56,Car Park Management,Cleaning Contract,60502
http://statistics.data.gov.uk/id/local-authority/12UE,Huntingdonshire District Council,200373,HI-SPEC FACILITIES SERVICES PLC HI-SPEC FACILITIES SERVICES PLC,87170,30/09/2023,53123,Monthly Cleaning Service Sep23,19/10/2023,137.32,686.62,823.94,Car Park Management,Cleaning Contract,60502
http://statistics.data.gov.uk/id/local-authority/12UE,Huntingdonshire District Council,200373,HI-SPEC FACILITIES SERVICES PLC HI-SPEC FACILITIES SERVICES PLC,88816,31/10/2023,53360,Monthly Cleaning Service Oct23,24/11/2023,137.32,686.62,823.94,Car Park Management,Cleaning Contract,60502
http://statistics.data.gov.uk/id/local-authority/12UE,Huntingdonshire District Council,200373,HI-SPEC FACILITIES SERVICES PLC HI-SPEC FACILITIES SERVICES PLC,90784,30/11/2023,53607,Monthly Cleaning Service Nov23,21/12/2023,137.32,686.62,823.94,Car Park Management,Cleaning Contract,60502
http://statistics.data.gov.uk/id/local-authority/12UE,Huntingdonshire District Council,200429,J BREHENY CIVIL ENGINEERING LTD J BREHENY CIVIL ENGINEERING LTD,88046,20/10/2023,HM/5106/36991,Equipment Maintenance,09/11/2023,186.4,932,1118.4,Car Park Management,"Maintenance - Equipment, Furniture And Materials",61702
http://statistics.data.gov.uk/id/local-authority/12UE,Huntingdonshire District Council,201912,FLOWBIRD SMART CITY UK LTD,86685,25/09/2023,UK164743,Materials,19/10/2023,140,700,840,Car Park Management,Cark Park Machines,61707
http://statistics.data.gov.uk/id/local-authority/12UE,Huntingdonshire District Council,201912,FLOWBIRD SMART CITY UK LTD,88195,20/10/2023,UK165055,Mill Common Call Out 19.10.23,09/11/2023,182.8,914,1096.8,Car Park Management,Cark Park Machines,61707
http://statistics.data.gov.uk/id/local-authority/12UE,Huntingdonshire District Council,201912,FLOWBIRD SMART CITY UK LTD,90001,23/11/2023,UK165399,Machine Call Out 20.11.23,18/12/2023,215.2,1076,1291.2,Car Park Management,Cark Park Machines,61707
http://statistics.data.gov.uk/id/local-authority/12UE,Huntingdonshire District Council,201912,FLOWBIRD SMART CITY UK LTD,89694,09/11/2023,UK165271,HCP Machine Call Out,01/12/2023,223,1115,1338,Car Park Management,Cark Park Machines,61707
http://statistics.data.gov.uk/id/local-authority/12UE,Huntingdonshire District Council,201912,FLOWBIRD SMART CITY UK LTD,90359,24/11/2023,UI00004575,Card Transactions Oct23,18/12/2023,239.18,1195.92,1435.1,Car Park Management,Cark Park Machines,61707
http://statistics.data.gov.uk/id/local-authority/12UE,Huntingdonshire District Council,201912,FLOWBIRD SMART CITY UK LTD,86566,09/08/2023,UI00001881,Transaction Fees Jun23,13/10/2023,243.72,1218.6,1462.32,Car Park Management,Cark Park Machines,61707
http://statistics.data.gov.uk/id/local-authority/12UE,Huntingdonshire District Council,201912,FLOWBIRD SMART CITY UK LTD,89693,18/10/2023,UI00003439,Card Transactions Sep23,01/12/2023,250.84,1254.19,1505.03,Car Park Management,Cark Park Machines,61707
http://statistics.data.gov.uk/id/local-authority/12UE,Huntingdonshire District Council,201912,FLOWBIRD SMART CITY UK LTD,86564,09/08/2023,UI00001879,Transaction Fees Apr23,13/10/2023,265.73,1328.64,1594.37,Car Park Management,Cark Park Machines,61707
http://statistics.data.gov.uk/id/local-authority/12UE,Huntingdonshire District Council,201912,FLOWBIRD SMART CITY UK LTD,86685,25/09/2023,UK164743,Materials,19/10/2023,266,1330,1596,Car Park Management,Cark Park Machines,61707
http://statistics.data.gov.uk/id/local-authority/12UE,Huntingdonshire District Council,201912,FLOWBIRD SMART CITY UK LTD,89692,22/09/2023,UI00002673,Card Transactions 23/24,01/12/2023,276.22,1381.1,1657.32,Car Park Management,Cark Park Machines,61707
http://statistics.data.gov.uk/id/local-authority/12UE,Huntingdonshire District Council,201912,FLOWBIRD SMART CITY UK LTD,88433,27/10/2023,UK165097,Machine Call Out 19 & 26.10.23,17/11/2023,417.8,2089,2506.8,Car Park Management,Cark Park Machines,61707
http://statistics.data.gov.uk/id/local-authority/12UE,Huntingdonshire District Council,201912,FLOWBIRD SMART CITY UK LTD,86593,21/09/2023,UI00002573,Web Office/Card Transactions,13/10/2023,457.5,2287.5,2745,Car Park Management,Cark Park Machines,61707
http://statistics.data.gov.uk/id/local-authority/12UE,Huntingdonshire District Council,201912,FLOWBIRD SMART CITY UK LTD,86593,21/09/2023,UI00002573,Web Office/Card Transactions,13/10/2023,609,3045,3654,Car Park Management,Cark Park Machines,61707
http://statistics.data.gov.uk/id/local-authority/12UE,Huntingdonshire District Council,201912,FLOWBIRD SMART CITY UK LTD,85701,15/06/2023,UK163388,Machine Call Out 14.06.23,13/10/2023,612.6,3063,3675.6,Car Park Management,Cark Park Machines,61707
http://statistics.data.gov.uk/id/local-authority/12UE,Huntingdonshire District Council,201912,FLOWBIRD SMART CITY UK LTD,86685,25/09/2023,UK164743,Materials,19/10/2023,898,4490,5388,Car Park Management,Cark Park Machines,61707
http://statistics.data.gov.uk/id/local-authority/12UE,Huntingdonshire District Council,201912,FLOWBIRD SMART CITY UK LTD,86567,15/09/2023,UK164610,Equipment,05/10/2023,59,295,354,Car Park Management,Equipment,61713
http://statistics.data.gov.uk/id/local-authority/12UE,Huntingdonshire District Council,202338,PRINTED CLOTHING LTD,88403,01/11/2023,INV-1861,Clothes Uniform & Laundry,09/11/2023,125.27,626.35,751.62,Car Park Management,Equipment,61713
http://statistics.data.gov.uk/id/local-authority/12UE,Huntingdonshire District Council,201702,NAGELS UK LTD,85964,11/09/2023,246358,OPS PCN ROLLS,05/10/2023,133,665,798,Car Park Management,Equipment,61713
http://statistics.data.gov.uk/id/local-authority/12UE,Huntingdonshire District Council,200190,CHIPSIDE CHIPSIDE,90802,15/08/2023,S235160,Chipassist - Hardware Tech Support,21/12/2023,352.21,1761.05,2113.26,Car Park Management,Equipment,61713
http://statistics.data.gov.uk/id/local-authority/12UE,Huntingdonshire District Council,200190,CHIPSIDE CHIPSIDE,90796,15/08/2023,S235161,Chipassist - Software Tech Support,21/12/2023,380,1900,2280,Car Park Management,Equipment,61713
http://statistics.data.gov.uk/id/local-authority/12UE,Huntingdonshire District Council,201912,FLOWBIRD SMART CITY UK LTD,89999,30/11/2023,UK165495,Equipment,21/12/2023,1934.4,9671.98,11606.38,Car Park Management,Equipment,61713
http://statistics.data.gov.uk/id/local-authority/12UE,Huntingdonshire District Council,201912,FLOWBIRD SMART CITY UK LTD,88208,29/09/2023,UK164805,Equipment,06/11/2023,4898,24489.98,29387.98,Car Park Management,Equipment,61713
http://statistics.data.gov.uk/id/local-authority/12UE,Huntingdonshire District Council,200190,CHIPSIDE CHIPSIDE,90797,31/08/2023,S235536,Credit S23161 Apr-Jul24,21/12/2023,-126.67,-633.33,-760,Car Park Management,Equipment,61713
http://statistics.data.gov.uk/id/local-authority/12UE,Huntingdonshire District Council,200190,CHIPSIDE CHIPSIDE,90803,31/08/2023,S235535,Credit S23160 Apri-Jul24,21/12/2023,-117.4,-587.02,-704.42,Car Park Management,Equipment,61713
http://statistics.data.gov.uk/id/local-authority/12UE,Huntingdonshire District Council,200190,CHIPSIDE CHIPSIDE,87300,30/09/2023,S240415,MiPermit Fee Sep23,19/10/2023,53.52,267.58,321.1,Car Park Management,Contract Charges ,61800
http://statistics.data.gov.uk/id/local-authority/12UE,Huntingdonshire District Council,200190,CHIPSIDE CHIPSIDE,88209,31/08/2023,S235528,MiPermit Charge Aug23,30/10/2023,127.42,637.08,764.5,Car Park Management,Contract Charges ,61800
http://statistics.data.gov.uk/id/local-authority/12UE,Huntingdonshire District Council,200190,CHIPSIDE CHIPSIDE,90361,31/10/2023,S240789,MiPermit Charge Oct23,11/12/2023,132.74,663.68,796.42,Car Park Management,Contract Charges ,61800
http://statistics.data.gov.uk/id/local-authority/12UE,Huntingdonshire District Council,200190,CHIPSIDE CHIPSIDE,87299,30/09/2023,S240506,MiPermit Charge Sep23,19/10/2023,133.9,669.49,803.39,Car Park Management,Contract Charges ,61800
http://statistics.data.gov.uk/id/local-authority/12UE,Huntingdonshire District Council,200190,CHIPSIDE CHIPSIDE,88210,31/08/2023,S235434,MiPermit Fee Aug23,30/10/2023,584.62,2923.08,3507.7,Car Park Management,Contract Charges ,61800
http://statistics.data.gov.uk/id/local-authority/12UE,Huntingdonshire District Council,200190,CHIPSIDE CHIPSIDE,90360,31/10/2023,S240697,MiPermit Fee Oct23,11/12/2023,590.3,2951.5,3541.8,Car Park Management,Contract Charges ,61800
http://statistics.data.gov.uk/id/local-authority/12UE,Huntingdonshire District Council,200190,CHIPSIDE CHIPSIDE,87300,30/09/2023,S240415,MiPermit Fee Sep23,19/10/2023,590.94,2954.71,3545.65,Car Park Management,Contract Charges ,61800
http://statistics.data.gov.uk/id/local-authority/12UE,Huntingdonshire District Council,200434,JADE SECURITY SERVICES LTD JADE SECURITY SERVICES LTD,87389,30/09/2023,6364,Cash Collections Contract Charge Sep23,19/10/2023,711.42,3557.1,4268.52,Car Park Management,Contract Charges ,61800
http://statistics.data.gov.uk/id/local-authority/12UE,Huntingdonshire District Council,200434,JADE SECURITY SERVICES LTD JADE SECURITY SERVICES LTD,90235,31/10/2023,6461,Cash Collection Contract Charges,07/12/2023,755,3775,4530,Car Park Management,Contract Charges ,61800
http://statistics.data.gov.uk/id/local-authority/12UE,Huntingdonshire District Council,200434,JADE SECURITY SERVICES LTD JADE SECURITY SERVICES LTD,90458,30/11/2023,6624,Cash Collections Nov23,21/12/2023,758.02,3790.1,4548.12,Car Park Management,Contract Charges ,61800
http://statistics.data.gov.uk/id/local-authority/12UE,Huntingdonshire District Council,200434,JADE SECURITY SERVICES LTD JADE SECURITY SERVICES LTD,87774,31/08/2023,6117,Parking Cash Collections Aug23,19/10/2023,766.8,3834,4600.8,Car Park Management,Contract Charges ,61800
http://statistics.data.gov.uk/id/local-authority/12UE,Huntingdonshire District Council,202135,TOTAL GAS AND POWER LTD,87948,08/10/2023,316397372/23,Bridge Place CP Sep23,23/10/2023,12.56,251.16,263.72,Bridge Place (GOD),Electricity,60303
http://statistics.data.gov.uk/id/local-authority/12UE,Huntingdonshire District Council,202135,TOTAL GAS AND POWER LTD,89739,18/11/2023,321054190/23,Bridge Place CP Oct23,07/12/2023,16.58,331.5,348.08,Bridge Place (GOD),Electricity,60303
http://statistics.data.gov.uk/id/local-authority/12UE,Huntingdonshire District Council,202135,TOTAL GAS AND POWER LTD,87953,08/10/2023,316397570,Great Northern Street CP Sep23,23/10/2023,14.72,294.4,309.12,Great Northern Street (HUN),Electricity,60303
http://statistics.data.gov.uk/id/local-authority/12UE,Huntingdonshire District Council,202135,TOTAL GAS AND POWER LTD,89744,18/11/2023,321054409/23,Gt Northern Street CP Oct23,07/12/2023,19.42,388.42,407.84,Great Northern Street (HUN),Electricity,60303
http://statistics.data.gov.uk/id/local-authority/12UE,Huntingdonshire District Council,200772,TEMPLE LIFTS LIMITED TEMPLE LIFTS LIMITED,89965,30/11/2023,573180,MSCP Supply & Install Lift Door,21/12/2023,255,1275,1530,MSCP (HUN),Maintenance - Building,60201
http://statistics.data.gov.uk/id/local-authority/12UE,Huntingdonshire District Council,202135,TOTAL GAS AND POWER LTD,87961,08/10/2023,316397713/23,Multi-Story Car Park Sep23,23/10/2023,87.94,1758.85,1846.79,MSCP (HUN),Electricity,60303
http://statistics.data.gov.uk/id/local-authority/12UE,Huntingdonshire District Council,202135,TOTAL GAS AND POWER LTD,89753,18/11/2023,321054299/23,Riverside CP Oct23,07/12/2023,14.25,285,299.25,Riverside (HUN),Electricity,60303
http://statistics.data.gov.uk/id/local-authority/12UE,Huntingdonshire District Council,202135,TOTAL GAS AND POWER LTD,87969,08/10/2023,316397647/23,Cattle Market Sep23,23/10/2023,17.77,355.31,373.08,Waitrose (STI),Electricity,60303
http://statistics.data.gov.uk/id/local-authority/12UE,Huntingdonshire District Council,202135,TOTAL GAS AND POWER LTD,89656,18/11/2023,321054475/23,Cattle Market CP Oct23,01/12/2023,101.09,505.47,606.56,Waitrose (STI),Electricity,60303
http://statistics.data.gov.uk/id/local-authority/12UE,Huntingdonshire District Council,202135,TOTAL GAS AND POWER LTD,87996,08/10/2023,316397702/23,Riverside CP Sep23,23/10/2023,110.6,552.99,663.59,Riverside (STN),Electricity,60303
http://statistics.data.gov.uk/id/local-authority/12UE,Huntingdonshire District Council,202135,TOTAL GAS AND POWER LTD,89669,18/11/2023,321054530/23,Riverside CP Oct23,01/12/2023,146.58,732.89,879.47,Riverside (STN),Electricity,60303
http://statistics.data.gov.uk/id/local-authority/12UE,Huntingdonshire District Council,202135,TOTAL GAS AND POWER LTD,87999,08/10/2023,3163973694/23,Tebbutts Road CP Sep23,23/10/2023,16.13,322.67,338.8,Tebbutts Road (STN),Electricity,60303
http://statistics.data.gov.uk/id/local-authority/12UE,Huntingdonshire District Council,202135,TOTAL GAS AND POWER LTD,89672,18/11/2023,321054211/23,Tebbutts Road CP Oct23,01/12/2023,21.28,425.62,446.9,Tebbutts Road (STN),Electricity,60303
http://statistics.data.gov.uk/id/local-authority/12UE,Huntingdonshire District Council,202918,NPower Commercial Gas Ltd,87148,04/10/2023,IN08558761,Bus Shelter Lighting Jul-Sep23,13/10/2023,38.73,774.63,813.36,Bus Shelters,Electricity,60303
http://statistics.data.gov.uk/id/local-authority/12UE,Huntingdonshire District Council,200699,RTA ASSOCIATES LTD RTA ASSOCIATES LTD,90240,06/11/2023,INV-1551,Tender Decriminalisation CPE,07/12/2023,480.65,2403.23,2883.88,Civil Parking Enforcement,Consultancy Fees,62400
http://statistics.data.gov.uk/id/local-authority/12UE,Huntingdonshire District Council,200699,RTA ASSOCIATES LTD RTA ASSOCIATES LTD,88104,20/10/2023,INV-1547,Survey/Consult,09/11/2023,759.05,3795.25,4554.3,Civil Parking Enforcement,Consultancy Fees,62400
http://statistics.data.gov.uk/id/local-authority/12UE,Huntingdonshire District Council,200699,RTA ASSOCIATES LTD RTA ASSOCIATES LTD,90239,06/11/2023,INV-1550,TRO Review Works Consultant/Surveyor,07/12/2023,1133.38,5666.89,6800.27,Civil Parking Enforcement,Consultancy Fees,62400
http://statistics.data.gov.uk/id/local-authority/12UE,Huntingdonshire District Council,200699,RTA ASSOCIATES LTD RTA ASSOCIATES LTD,90239,06/11/2023,INV-1550,TRO Review Works Consultant/Surveyor,07/12/2023,1200,6000,7200,Civil Parking Enforcement,Consultancy Fees,62400
http://statistics.data.gov.uk/id/local-authority/12UE,Huntingdonshire District Council,200226,DAL-ROD (CAMRIDGESHIRE) DAL-ROD (CAMRIDGESHIRE),86390,20/09/2023,30001915,HBS Various Works,13/10/2023,50,250,300,Huntingdon Bus Station,Maintenance - Building,60201
http://statistics.data.gov.uk/id/local-authority/12UE,Huntingdonshire District Council,202135,TOTAL GAS AND POWER LTD,87949,08/10/2023,316397427/23,Mill Common BS Sep23,23/10/2023,216.55,1082.75,1299.3,Huntingdon Bus Station,Electricity,60303
http://statistics.data.gov.uk/id/local-authority/12UE,Huntingdonshire District Council,202135,TOTAL GAS AND POWER LTD,89741,18/11/2023,321054255/23,Mill Common BS Oct23,07/12/2023,300.24,1501.18,1801.42,Huntingdon Bus Station,Electricity,60303
http://statistics.data.gov.uk/id/local-authority/12UE,Huntingdonshire District Council,200373,HI-SPEC FACILITIES SERVICES PLC HI-SPEC FACILITIES SERVICES PLC,87885,31/08/2023,52904,Various Sites Cleaning Aug23,23/10/2023,219.59,1097.96,1317.55,Huntingdon Bus Station,Cleaning Contract,60502
http://statistics.data.gov.uk/id/local-authority/12UE,Huntingdonshire District Council,200373,HI-SPEC FACILITIES SERVICES PLC HI-SPEC FACILITIES SERVICES PLC,87170,30/09/2023,53123,Monthly Cleaning Service Sep23,19/10/2023,237.89,1189.46,1427.35,Huntingdon Bus Station,Cleaning Contract,60502
http://statistics.data.gov.uk/id/local-authority/12UE,Huntingdonshire District Council,200373,HI-SPEC FACILITIES SERVICES PLC HI-SPEC FACILITIES SERVICES PLC,88816,31/10/2023,53360,Monthly Cleaning Service Oct23,24/11/2023,237.89,1189.46,1427.35,Huntingdon Bus Station,Cleaning Contract,60502
http://statistics.data.gov.uk/id/local-authority/12UE,Huntingdonshire District Council,200373,HI-SPEC FACILITIES SERVICES PLC HI-SPEC FACILITIES SERVICES PLC,90784,30/11/2023,53607,Monthly Cleaning Service Nov23,21/12/2023,237.89,1189.46,1427.35,Huntingdon Bus Station,Cleaning Contract,60502
http://statistics.data.gov.uk/id/local-authority/12UE,Huntingdonshire District Council,200373,HI-SPEC FACILITIES SERVICES PLC HI-SPEC FACILITIES SERVICES PLC,89977,23/11/2023,53431,Cleaning Materials,18/12/2023,52.15,260.74,312.89,Huntingdon Bus Station,Cleaning Materials,61300
http://statistics.data.gov.uk/id/local-authority/12UE,Huntingdonshire District Council,200373,HI-SPEC FACILITIES SERVICES PLC HI-SPEC FACILITIES SERVICES PLC,90821,23/11/2023,53430,Cleaning Materials,21/12/2023,129.48,647.4,776.88,Huntingdon Bus Station,Cleaning Materials,61300
http://statistics.data.gov.uk/id/local-authority/12UE,Huntingdonshire District Council,200339,GEZE  UK LTD GEZE  UK LTD,88930,02/10/2023,905789667,St Ives BS,17/11/2023,61.56,307.8,369.36,St Ives Bus Station,Maintenance - Building,60201
http://statistics.data.gov.uk/id/local-authority/12UE,Huntingdonshire District Council,200923,ST IVES TOWN COUNCIL,86921,29/09/2023,3374,St Ives BS Cleaning Apr-Sep,05/10/2023,271.38,1356.9,1628.28,St Ives Bus Station,Cleaning Services,60501
http://statistics.data.gov.uk/id/local-authority/12UE,Huntingdonshire District Council,200354,HACT HACT,89964,30/11/2023,INV-CT3995,HACT Concessionary Fares Nov23,21/12/2023,0,1256.53,1256.53,Concessionary Fares,Grants And Contributions,64600
http://statistics.data.gov.uk/id/local-authority/12UE,Huntingdonshire District Council,203368,Panther Cambridge Limited,90279,31/10/2023,76768,Taxi Charges - Clients Oct23,07/12/2023,161.23,806.16,967.39,Homelessness,Taxi Charges - Client Transport,60910
http://statistics.data.gov.uk/id/local-authority/12UE,Huntingdonshire District Council,203368,Panther Cambridge Limited,89993,30/11/2023,77560,Taxi Charges - Clients Nov23,21/12/2023,167.68,838.42,1006.1,Homelessness,Taxi Charges - Client Transport,60910
http://statistics.data.gov.uk/id/local-authority/12UE,Huntingdonshire District Council,203368,Panther Cambridge Limited,87649,30/09/2023,75968,Taxi Charges - Clients Sep23,19/10/2023,242.43,1212.14,1454.57,Homelessness,Taxi Charges - Client Transport,60910
http://statistics.data.gov.uk/id/local-authority/12UE,Huntingdonshire District Council,202236,EASTFIELD GUESTHOUSE LTD,89548,20/11/2023,HST0032,Oliver's Lodge TA - 13-19.11.23,01/12/2023,52,260,312,Homelessness,B&B Accommodation,64401
http://statistics.data.gov.uk/id/local-authority/12UE,Huntingdonshire District Council,201011,CENTENNIAL PROPERTY LTD,87358,01/10/2023,CEN-202309023,TA - Sep23,13/10/2023,60,300,360,Homelessness,B&B Accommodation,64401
http://statistics.data.gov.uk/id/local-authority/12UE,Huntingdonshire District Council,200673,RENT CONNECT RENT CONNECT,88643,31/10/2023,RC-HDC155,TA - Oct23,09/11/2023,0,300,300,Homelessness,B&B Accommodation,64401
http://statistics.data.gov.uk/id/local-authority/12UE,Huntingdonshire District Council,202236,EASTFIELD GUESTHOUSE LTD,90849,11/12/2023,HUN0341,TA - 04-10.12.23,21/12/2023,60,300,360,Homelessness,B&B Accommodation,64401
http://statistics.data.gov.uk/id/local-authority/12UE,Huntingdonshire District Council,202236,EASTFIELD GUESTHOUSE LTD,90543,16/10/2023,HUN0325,TA - 09-15.10.23,18/12/2023,65,325,390,Homelessness,B&B Accommodation,64401
http://statistics.data.gov.uk/id/local-authority/12UE,Huntingdonshire District Council,201011,CENTENNIAL PROPERTY LTD,90256,01/12/2023,CEN-202311023,TA - Nov23,07/12/2023,75.6,378,453.6,Homelessness,B&B Accommodation,64401
http://statistics.data.gov.uk/id/local-authority/12UE,Huntingdonshire District Council,202236,EASTFIELD GUESTHOUSE LTD,88631,23/10/2023,HUN0320,Nags Head TA - 16-22.10.23,09/11/2023,80,400,480,Homelessness,B&B Accommodation,64401
http://statistics.data.gov.uk/id/local-authority/12UE,Huntingdonshire District Council,202236,EASTFIELD GUESTHOUSE LTD,89433,31/07/2023,HUN0303,TA - 24-30.07.23,24/11/2023,90,450,540,Homelessness,B&B Accommodation,64401
http://statistics.data.gov.uk/id/local-authority/12UE,Huntingdonshire District Council,202236,EASTFIELD GUESTHOUSE LTD,87088,25/09/2023,HUN0319,TA 18-24.09.23,05/10/2023,91,455,546,Homelessness,B&B Accommodation,64401
http://statistics.data.gov.uk/id/local-authority/12UE,Huntingdonshire District Council,202236,EASTFIELD GUESTHOUSE LTD,88637,23/10/2023,HUN0327,TA - 16-22.10.23,09/11/2023,91,455,546,Homelessness,B&B Accommodation,64401
http://statistics.data.gov.uk/id/local-authority/12UE,Huntingdonshire District Council,202236,EASTFIELD GUESTHOUSE LTD,90618,11/12/2023,HST0035,Oliver's Lodge TA - 04-10.12.23,18/12/2023,91,455,546,Homelessness,B&B Accommodation,64401
http://statistics.data.gov.uk/id/local-authority/12UE,Huntingdonshire District Council,202236,EASTFIELD GUESTHOUSE LTD,89121,06/11/2023,HUN0324B,Nags Head TA - 30.10-05.11.23,20/11/2023,96,480,576,Homelessness,B&B Accommodation,64401
http://statistics.data.gov.uk/id/local-authority/12UE,Huntingdonshire District Council,202236,EASTFIELD GUESTHOUSE LTD,87859,16/10/2023,HST0027,Oliver's Lodge TA - 09-15.10.23,23/10/2023,104,520,624,Homelessness,B&B Accommodation,64401
http://statistics.data.gov.uk/id/local-authority/12UE,Huntingdonshire District Council,202236,EASTFIELD GUESTHOUSE LTD,87559,09/10/2023,HUN0326,Nags Head TA - 02-08.10.23,13/10/2023,112,560,672,Homelessness,B&B Accommodation,64401
http://statistics.data.gov.uk/id/local-authority/12UE,Huntingdonshire District Council,202236,EASTFIELD GUESTHOUSE LTD,87860,16/10/2023,HUN0328,Nag's Head TA -09-15.10.23,23/10/2023,112,560,672,Homelessness,B&B Accommodation,64401
http://statistics.data.gov.uk/id/local-authority/12UE,Huntingdonshire District Council,202236,EASTFIELD GUESTHOUSE LTD,87567,09/10/2023,HST0026,Oliver's Lodge TA - 02-08.10.23,13/10/2023,117,585,702,Homelessness,B&B Accommodation,64401
http://statistics.data.gov.uk/id/local-authority/12UE,Huntingdonshire District Council,202236,EASTFIELD GUESTHOUSE LTD,90364,28/11/2023,HST0033,Oliver's Lodge TA 20-26.11.23,11/12/2023,143,715,858,Homelessness,B&B Accommodation,64401
http://statistics.data.gov.uk/id/local-authority/12UE,Huntingdonshire District Council,202236,EASTFIELD GUESTHOUSE LTD,90622,04/12/2023,HST0034,Oliver's Lodge TA - 27.11-03.12.23,18/12/2023,143,715,858,Homelessness,B&B Accommodation,64401
http://statistics.data.gov.uk/id/local-authority/12UE,Huntingdonshire District Council,202236,EASTFIELD GUESTHOUSE LTD,87136,02/10/2023,HUN0324,Nags Head TA - 25.09-01.10.23,05/10/2023,144,720,864,Homelessness,B&B Accommodation,64401
http://statistics.data.gov.uk/id/local-authority/12UE,Huntingdonshire District Council,200673,RENT CONNECT RENT CONNECT,87251,30/09/2023,RC-HDC154,TA - 01-30.09.23,09/10/2023,0,800,800,Homelessness,B&B Accommodation,64401
http://statistics.data.gov.uk/id/local-authority/12UE,Huntingdonshire District Council,202236,EASTFIELD GUESTHOUSE LTD,90300,13/11/2023,HUN0326A,Nags Head TA - 06-12.11.23,07/12/2023,160,800,960,Homelessness,B&B Accommodation,64401
http://statistics.data.gov.uk/id/local-authority/12UE,Huntingdonshire District Council,202236,EASTFIELD GUESTHOUSE LTD,86778,25/09/2023,HUN0322,Nags Head TA - 18-24.09.23,02/10/2023,176,880,1056,Homelessness,B&B Accommodation,64401
http://statistics.data.gov.uk/id/local-authority/12UE,Huntingdonshire District Council,202236,EASTFIELD GUESTHOUSE LTD,89243,13/11/2023,HST0031,Oliver's Lodge TA - 06-12.11.23,21/11/2023,182,910,1092,Homelessness,B&B Accommodation,64401
http://statistics.data.gov.uk/id/local-authority/12UE,Huntingdonshire District Council,202236,EASTFIELD GUESTHOUSE LTD,90888,18/12/2023,HST0036,Oliver's Lodge TA - 11-17.12.23,21/12/2023,182,910,1092,Homelessness,B&B Accommodation,64401
http://statistics.data.gov.uk/id/local-authority/12UE,Huntingdonshire District Council,202236,EASTFIELD GUESTHOUSE LTD,90366,03/12/2023,HUN0342,Nag's Head TA - 27.11-03.12.23,11/12/2023,208,1040,1248,Homelessness,B&B Accommodation,64401
http://statistics.data.gov.uk/id/local-authority/12UE,Huntingdonshire District Council,200808,IMPERIAL PORTFOLIOS LTD,88854,01/11/2023,IMP-202310010,TA - Oct23,17/11/2023,220,1100,1320,Homelessness,B&B Accommodation,64401
http://statistics.data.gov.uk/id/local-authority/12UE,Huntingdonshire District Council,202236,EASTFIELD GUESTHOUSE LTD,88876,06/11/2023,HST0030,Oliver's Lodge TA - 30.10-05.11.23,17/11/2023,221,1105,1326,Homelessness,B&B Accommodation,64401
http://statistics.data.gov.uk/id/local-authority/12UE,Huntingdonshire District Council,202236,EASTFIELD GUESTHOUSE LTD,90305,20/11/2023,HUN0328B,Nags Head TA - 13-19.11.23,07/12/2023,224,1120,1344,Homelessness,B&B Accommodation,64401
http://statistics.data.gov.uk/id/local-authority/12UE,Huntingdonshire District Council,202236,EASTFIELD GUESTHOUSE LTD,90365,04/12/2023,HUN0339,TA - 27.11-03.12.23,11/12/2023,225,1125,1350,Homelessness,B&B Accommodation,64401
http://statistics.data.gov.uk/id/local-authority/12UE,Huntingdonshire District Council,202236,EASTFIELD GUESTHOUSE LTD,89995,28/11/2023,HUN0330,Nags Head TA - 20-26.11.23,07/12/2023,240,1200,1440,Homelessness,B&B Accommodation,64401
http://statistics.data.gov.uk/id/local-authority/12UE,Huntingdonshire District Council,202236,EASTFIELD GUESTHOUSE LTD,90889,18/12/2023,HUN0346,Nags Head TA - 11-17.12.23,21/12/2023,256,1280,1536,Homelessness,B&B Accommodation,64401
http://statistics.data.gov.uk/id/local-authority/12UE,Huntingdonshire District Council,202236,EASTFIELD GUESTHOUSE LTD,88638,22/10/2023,HST0028,Oliver's Lodge TA - 16-22.10.23,09/11/2023,299,1495,1794,Homelessness,B&B Accommodation,64401
http://statistics.data.gov.uk/id/local-authority/12UE,Huntingdonshire District Council,202236,EASTFIELD GUESTHOUSE LTD,87137,02/10/2023,HST0025,Oliver's Lodge TA - 25.09-01.10.23,05/10/2023,312,1560,1872,Homelessness,B&B Accommodation,64401
http://statistics.data.gov.uk/id/local-authority/12UE,Huntingdonshire District Council,202236,EASTFIELD GUESTHOUSE LTD,90850,11/12/2023,HUN0344,Nags Head TA - 04-10.12.23,21/12/2023,336,1680,2016,Homelessness,B&B Accommodation,64401
http://statistics.data.gov.uk/id/local-authority/12UE,Huntingdonshire District Council,200536,METROPOLITAN HOUSING TRUST LTD METROPOLITAN HOUSING TRUST LTD,87916,16/10/2023,3065760,Coneygear Court Funding Oct-Dec23,23/10/2023,0,29163.32,29163.32,Homelessness,Hostel Accommodation,64402
http://statistics.data.gov.uk/id/local-authority/12UE,Huntingdonshire District Council,202355,IT TAKES A CITY (CAMBRIDGE),87356,21/09/2023,INV-0043,District Share Of Street Support 23/24,13/10/2023,0,1140,1140,Homelessness,Membership And Subscriptions,64800
http://statistics.data.gov.uk/id/local-authority/12UE,Huntingdonshire District Council,201861,PEOPLE POTENTIAL POSSIBILITIES T/A P3 CHARITY,87591,01/10/2023,INV_S019734,Street Outreach Grant,13/10/2023,0,26025,26025,Homelessness,Grants And Contributions,64600
http://statistics.data.gov.uk/id/local-authority/12UE,Huntingdonshire District Council,200550,MORGAN HUNT PUBLIC UK LTD MORGAN HUNT PUBLIC UK LTD,86870,24/09/2023,1332491,REDACTED,02/10/2023,260.32,1301.61,1561.93,Benefits Management,Agency Staff,60011
http://statistics.data.gov.uk/id/local-authority/12UE,Huntingdonshire District Council,200550,MORGAN HUNT PUBLIC UK LTD MORGAN HUNT PUBLIC UK LTD,87367,01/10/2023,1333492,REDACTED,13/10/2023,260.32,1301.61,1561.93,Benefits Management,Agency Staff,60011
http://statistics.data.gov.uk/id/local-authority/12UE,Huntingdonshire District Council,200550,MORGAN HUNT PUBLIC UK LTD MORGAN HUNT PUBLIC UK LTD,87789,08/10/2023,1334243,REDACTED,19/10/2023,260.32,1301.61,1561.93,Benefits Management,Agency Staff,60011
http://statistics.data.gov.uk/id/local-authority/12UE,Huntingdonshire District Council,200550,MORGAN HUNT PUBLIC UK LTD MORGAN HUNT PUBLIC UK LTD,87907,15/10/2023,1334975,REDACTED,23/10/2023,260.32,1301.61,1561.93,Benefits Management,Agency Staff,60011
http://statistics.data.gov.uk/id/local-authority/12UE,Huntingdonshire District Council,200550,MORGAN HUNT PUBLIC UK LTD MORGAN HUNT PUBLIC UK LTD,88328,22/10/2023,1335697,REDACTED,02/11/2023,260.32,1301.61,1561.93,Benefits Management,Agency Staff,60011
http://statistics.data.gov.uk/id/local-authority/12UE,Huntingdonshire District Council,200550,MORGAN HUNT PUBLIC UK LTD MORGAN HUNT PUBLIC UK LTD,88918,05/11/2023,1338134,REDACTED,17/11/2023,260.32,1301.61,1561.93,Benefits Management,Agency Staff,60011
http://statistics.data.gov.uk/id/local-authority/12UE,Huntingdonshire District Council,200550,MORGAN HUNT PUBLIC UK LTD MORGAN HUNT PUBLIC UK LTD,89166,12/11/2023,1338887,REDACTED,21/11/2023,260.32,1301.61,1561.93,Benefits Management,Agency Staff,60011
http://statistics.data.gov.uk/id/local-authority/12UE,Huntingdonshire District Council,200550,MORGAN HUNT PUBLIC UK LTD MORGAN HUNT PUBLIC UK LTD,89549,19/11/2023,1339679,REDACTED,01/12/2023,260.32,1301.61,1561.93,Benefits Management,Agency Staff,60011
http://statistics.data.gov.uk/id/local-authority/12UE,Huntingdonshire District Council,200550,MORGAN HUNT PUBLIC UK LTD MORGAN HUNT PUBLIC UK LTD,89927,26/11/2023,1341165,REDACTED,07/12/2023,260.32,1301.61,1561.93,Benefits Management,Agency Staff,60011
http://statistics.data.gov.uk/id/local-authority/12UE,Huntingdonshire District Council,200550,MORGAN HUNT PUBLIC UK LTD MORGAN HUNT PUBLIC UK LTD,90451,03/12/2023,1342242,REDACTED,18/12/2023,260.32,1301.61,1561.93,Benefits Management,Agency Staff,60011
http://statistics.data.gov.uk/id/local-authority/12UE,Huntingdonshire District Council,200550,MORGAN HUNT PUBLIC UK LTD MORGAN HUNT PUBLIC UK LTD,90871,17/12/2023,1344047,REDACTED,21/12/2023,260.32,1301.61,1561.93,Benefits Management,Agency Staff,60011
http://statistics.data.gov.uk/id/local-authority/12UE,Huntingdonshire District Council,202828,UNIFIEDPOST LIMITED,89258,31/10/2023,INUKUP002827,Change/Support Request,24/11/2023,56,280,336,Benefits Management,Printing,62001
http://statistics.data.gov.uk/id/local-authority/12UE,Huntingdonshire District Council,202828,UNIFIEDPOST LIMITED,89260,31/10/2023,INUKUP002846,Hybrid Mail Oct23,24/11/2023,130.77,653.85,784.62,Benefits Management,Printing,62001
http://statistics.data.gov.uk/id/local-authority/12UE,Huntingdonshire District Council,202828,UNIFIEDPOST LIMITED,89259,31/10/2023,INUKUP002848,CTAX/Housing Benefit/DTI Oct23,24/11/2023,902.18,4510.92,5413.1,Benefits Management,Printing,62001
http://statistics.data.gov.uk/id/local-authority/12UE,Huntingdonshire District Council,203246,Airey Consultancy Services Limited,87577,05/10/2023,O10059,Council Tax Reduction Consultancy,13/10/2023,303.75,1518.75,1822.5,Benefits Management,Professional Services - General,62402
http://statistics.data.gov.uk/id/local-authority/12UE,Huntingdonshire District Council,200148,CALLCREDIT LTD CALLCREDIT LTD,87430,01/10/2023,970246,Sep-23,19/10/2023,209.15,1045.76,1254.91,Benefits Management,Enquiries,63400
http://statistics.data.gov.uk/id/local-authority/12UE,Huntingdonshire District Council,200148,CALLCREDIT LTD CALLCREDIT LTD,89080,01/11/2023,972146,Oct-23,24/11/2023,260.47,1302.34,1562.81,Benefits Management,Enquiries,63400
http://statistics.data.gov.uk/id/local-authority/12UE,Huntingdonshire District Council,200148,CALLCREDIT LTD CALLCREDIT LTD,87112,01/09/2023,968819,TranUnion Aug23,05/10/2023,270.68,1353.41,1624.09,Benefits Management,Enquiries,63400
http://statistics.data.gov.uk/id/local-authority/12UE,Huntingdonshire District Council,200148,CALLCREDIT LTD CALLCREDIT LTD,90653,01/12/2023,974818,Nov-23,21/12/2023,282.96,1414.82,1697.78,Benefits Management,Enquiries,63400
http://statistics.data.gov.uk/id/local-authority/12UE,Huntingdonshire District Council,200968,NEC SOFTWARE SOLUTIONS LTD,89432,21/11/2023,91479474,SHBE API/UC Stop Notice Changes,18/12/2023,1306.36,6531.81,7838.17,Benefits Management,Ict Software,64071
http://statistics.data.gov.uk/id/local-authority/12UE,Huntingdonshire District Council,202135,TOTAL GAS AND POWER LTD,88356,10/09/2023,313264066/23,St Neots MHP Aug23,02/11/2023,504.49,2522.45,3026.94,Mobile Home Park,Electricity,60303
